NUMERO_MANDATO;RIGA_MANDATO;QUIET;IMPORTO_RIGA;IMPORTO_MANDATO;BENEFICIARIO;CIG;TITOLO_PAGAMENTO;DATA_MANDATO;CAPITOLO;ARTICOLO;NUMERO_IMPEGNO;TITOLO;DESCR_TITOLO;LIVELLO_II;DESCR_LIVELLO_II;LIVELLO_III;DESCR_LIVELLO_III;LIVELLO_IV;DESCR_LIVELLO_IV;LIVELLO_V;DESCR_LIVELLO_V;DATA_PAG_EFF
2223;1;9999999;327;327;ENEL ENERGIA SPA;9118031536;ACCONTO Fatt.n. 004336509098  del 08/06/2023 MAGGIO 2023 - CONSUMI SC. ELEM - PALESTRA - ASILO S.ANGELO;03/07/2023;134;31;452;1;Spese correnti;3;Acquisto di beni e servizi;2;Acquisto di servizi;5;Utenze e canoni;4;Energia elettrica;05/07/2023
2224;1;9999999;293;293;ENEL ENERGIA SPA;9118031536;ACCONTO Fatt.n. 004336509111  del 08/06/2023 MAGGIO 2023 - CONSUMI SC. ELEM - PALESTRA VETERNIGO;03/07/2023;134;31;452;1;Spese correnti;3;Acquisto di beni e servizi;2;Acquisto di servizi;5;Utenze e canoni;4;Energia elettrica;05/07/2023
2225;1;9999999;293;293;ENEL ENERGIA SPA;9118031536;ACCONTO Fatt.n. 004336509111  del 08/06/2023 MAGGIO 2023 - CONSUMI SC. ELEM - PALESTRA VETERNIGO;03/07/2023;134;31;452;1;Spese correnti;3;Acquisto di beni e servizi;2;Acquisto di servizi;5;Utenze e canoni;4;Energia elettrica;05/07/2023
2226;1;9999999;237,6;237,6;ENEL ENERGIA SPA;9118031536;ACCONTO Fatt.n. 004336509095  del 08/06/2023 MAGGIO 2023 - CONSUMI PALESTRA SMS;03/07/2023;134;31;452;1;Spese correnti;3;Acquisto di beni e servizi;2;Acquisto di servizi;5;Utenze e canoni;4;Energia elettrica;05/07/2023
2227;1;9999999;186,77;186,77;ENEL ENERGIA SPA;9118031536;ACCONTO Fatt.n. 004336509095  del 08/06/2023 MAGGIO 2023 - CONSUMI PALESTRA SMS;03/07/2023;134;31;452;1;Spese correnti;3;Acquisto di beni e servizi;2;Acquisto di servizi;5;Utenze e canoni;4;Energia elettrica;05/07/2023
2228;1;9999999;318;318;ENEL ENERGIA SPA;9118031536;ACCONTO Fatt.n. 004336509083  del 08/06/2023 MAGGIO 2023 - CONSUMI SC. ELEM - PALESTRA STIGLIANO;03/07/2023;1834;0;454;1;Spese correnti;3;Acquisto di beni e servizi;2;Acquisto di servizi;5;Utenze e canoni;4;Energia elettrica;05/07/2023
2229;1;9999999;710,88;710,88;ENEL ENERGIA SPA;97224145D7;SALDO Fatt.n. 004336509115  del 08/06/2023 MAGGIO 2023 - CONSUMI IMP. SPORT. VETERNIGO;03/07/2023;1934;0;316;1;Spese correnti;3;Acquisto di beni e servizi;2;Acquisto di servizi;5;Utenze e canoni;4;Energia elettrica;05/07/2023
2230;1;9999999;150,93;150,93;ENEL ENERGIA SPA;97224145D7;SALDO Fatt.n. 004336509116  del 08/06/2023 MAGGIO 2023 - CONSUMI IMP. SPORT. CALTANA;03/07/2023;1934;0;316;1;Spese correnti;3;Acquisto di beni e servizi;2;Acquisto di servizi;5;Utenze e canoni;4;Energia elettrica;05/07/2023
2231;1;9999999;296,23;296,23;ENEL ENERGIA SPA;97224145D7;SALDO Fatt.n. 004338564331  del 10/06/2023 MAGGIO 2023 - CONSUMI IMP. SPORT. SMS;03/07/2023;1934;0;316;1;Spese correnti;3;Acquisto di beni e servizi;2;Acquisto di servizi;5;Utenze e canoni;4;Energia elettrica;05/07/2023
2232;1;9999999;51,29;51,29;ENEL ENERGIA SPA;9118031536;SALDO Fatt.n. 004336509112  del 08/06/2023 MAGGIO 2023 - CONSUMI IMP. SPORT. CASELLE;03/07/2023;1934;0;455;1;Spese correnti;3;Acquisto di beni e servizi;2;Acquisto di servizi;5;Utenze e canoni;4;Energia elettrica;05/07/2023
2233;1;9999999;139,65;139,65;ENEL ENERGIA SPA;9118031536;SALDO Fatt.n. 004336509096  del 08/06/2023 MAGGIO 2023 - CONSUMI IMP. SPORT. PARROCCHIA CASELLE;03/07/2023;1934;0;455;1;Spese correnti;3;Acquisto di beni e servizi;2;Acquisto di servizi;5;Utenze e canoni;4;Energia elettrica;05/07/2023
2234;1;9999999;90,6;90,6;ENEL ENERGIA SPA;9118031536;SALDO Fatt.n. 004336509090  del 08/06/2023 MAGGIO 2023 - CONSUMI IMP. SPORT. SMS;03/07/2023;1934;0;455;1;Spese correnti;3;Acquisto di beni e servizi;2;Acquisto di servizi;5;Utenze e canoni;4;Energia elettrica;05/07/2023
2235;1;9999999;143,2;143,2;ENEL ENERGIA SPA;9118031536;ACCONTO Fatt.n. 004336509084  del 08/06/2023 MAGGIO 2023 - CONSUMI PALESTRA CASELLE;03/07/2023;1934;0;455;1;Spese correnti;3;Acquisto di beni e servizi;2;Acquisto di servizi;5;Utenze e canoni;4;Energia elettrica;05/07/2023
2236;1;9999999;143,21;143,21;ENEL ENERGIA SPA;9118031536;SALDO Fatt.n. 004336509084  del 08/06/2023 MAGGIO 2023 - CONSUMI PALESTRA CASELLE;03/07/2023;3534;0;456;1;Spese correnti;3;Acquisto di beni e servizi;2;Acquisto di servizi;5;Utenze e canoni;4;Energia elettrica;05/07/2023
2237;1;9999999;50,83;50,83;ENEL ENERGIA SPA;9118031536;SALDO Fatt.n. 004336509095  del 08/06/2023 MAGGIO 2023 - CONSUMI PALESTRA SMS;03/07/2023;3534;0;456;1;Spese correnti;3;Acquisto di beni e servizi;2;Acquisto di servizi;5;Utenze e canoni;4;Energia elettrica;05/07/2023
2238;1;9999999;30,45;11.549,35;ENEL ENERGIA SPA;9118031536;SALDO Fatt.n. 004336509114  del 08/06/2023 MAGGIO 2023 - CONSUMI ILLUMINAZIONE PUBBLICA;03/07/2023;3544;0;336;1;Spese correnti;3;Acquisto di beni e servizi;2;Acquisto di servizi;15;Contratti di servizio pubblico;15;Contratti di servizio per l'illuminazione pubblica;05/07/2023
2238;2;9999999;69,87;11.549,35;ENEL ENERGIA SPA;9118031536;SALDO Fatt.n. 004336509107  del 08/06/2023 MAGGIO 2023 - CONSUMI ILLUMINAZIONE PUBBLICA;03/07/2023;3544;0;336;1;Spese correnti;3;Acquisto di beni e servizi;2;Acquisto di servizi;15;Contratti di servizio pubblico;15;Contratti di servizio per l'illuminazione pubblica;05/07/2023
2238;3;9999999;11.449,03;11.549,35;ENEL ENERGIA SPA;9118031536;SALDO Fatt.n. 004343646325  del 12/06/2023 MAGGIO 2023 - CONSUMI ILLUMINAZIONE PUBBLICA;03/07/2023;3544;0;336;1;Spese correnti;3;Acquisto di beni e servizi;2;Acquisto di servizi;15;Contratti di servizio pubblico;15;Contratti di servizio per l'illuminazione pubblica;05/07/2023
2239;1;9999999;3.448,81;3.448,81;ENEL ENERGIA SPA;9118031536;ACCONTO Fatt.n. 004343646326  del 12/06/2023 MAGGIO 2023 - CONSUMI ILLUMINAZIONE PUBBLICA;03/07/2023;3544;0;336;1;Spese correnti;3;Acquisto di beni e servizi;2;Acquisto di servizi;15;Contratti di servizio pubblico;15;Contratti di servizio per l'illuminazione pubblica;05/07/2023
2240;1;9999999;5.013,12;5.013,12;ENEL ENERGIA SPA;9118031536;SALDO Fatt.n. 004343646326  del 12/06/2023 MAGGIO 2023 - CONSUMI ILLUMINAZIONE PUBBLICA;03/07/2023;3544;0;459;1;Spese correnti;3;Acquisto di beni e servizi;2;Acquisto di servizi;15;Contratti di servizio pubblico;15;Contratti di servizio per l'illuminazione pubblica;05/07/2023
2241;1;9999999;13,79;411,14;ENEL ENERGIA SPA;9118031536;SALDO Fatt.n. 004336509079  del 08/06/2023 MAGGIO 2023 - CONSUMI ILLUMINAZIONE PUBBLICA;03/07/2023;3544;0;459;1;Spese correnti;3;Acquisto di beni e servizi;2;Acquisto di servizi;15;Contratti di servizio pubblico;15;Contratti di servizio per l'illuminazione pubblica;05/07/2023
2241;2;9999999;18,21;411,14;ENEL ENERGIA SPA;9118031536;SALDO Fatt.n. 004336509105  del 08/06/2023 MAGGIO 2023 - CONSUMI ILLUMINAZIONE PUBBLICA;03/07/2023;3544;0;459;1;Spese correnti;3;Acquisto di beni e servizi;2;Acquisto di servizi;15;Contratti di servizio pubblico;15;Contratti di servizio per l'illuminazione pubblica;05/07/2023
2241;3;9999999;18,95;411,14;ENEL ENERGIA SPA;9118031536;SALDO Fatt.n. 004336509075  del 08/06/2023 MAGGIO 2023 - CONSUMI ILLUMINAZIONE PUBBLICA;03/07/2023;3544;0;459;1;Spese correnti;3;Acquisto di beni e servizi;2;Acquisto di servizi;15;Contratti di servizio pubblico;15;Contratti di servizio per l'illuminazione pubblica;05/07/2023
2241;4;9999999;75,08;411,14;ENEL ENERGIA SPA;9118031536;SALDO Fatt.n. 004336509097  del 08/06/2023 MAGGIO 2023 - CONSUMI ILLUMINAZIONE PUBBLICA;03/07/2023;3544;0;459;1;Spese correnti;3;Acquisto di beni e servizi;2;Acquisto di servizi;15;Contratti di servizio pubblico;15;Contratti di servizio per l'illuminazione pubblica;05/07/2023
2241;5;9999999;132,74;411,14;ENEL ENERGIA SPA;9118031536;SALDO Fatt.n. 004336509087  del 08/06/2023 MAGGIO 2023 - CONSUMI ILLUMINAZIONE PUBBLICA;03/07/2023;3544;0;459;1;Spese correnti;3;Acquisto di beni e servizi;2;Acquisto di servizi;15;Contratti di servizio pubblico;15;Contratti di servizio per l'illuminazione pubblica;05/07/2023
2241;6;9999999;152,37;411,14;ENEL ENERGIA SPA;9118031536;SALDO Fatt.n. 004336509102  del 08/06/2023 MAGGIO 2023 - CONSUMI ILLUMINAZIONE PUBBLICA;03/07/2023;3544;0;459;1;Spese correnti;3;Acquisto di beni e servizi;2;Acquisto di servizi;15;Contratti di servizio pubblico;15;Contratti di servizio per l'illuminazione pubblica;05/07/2023
2242;1;9999999;410,81;410,81;ENEL ENERGIA SPA;9118031536;SALDO Fatt.n. 004336509088  del 08/06/2023 MAGGIO 2023 - CONSUMI MAGAZZINO COMUNALE;03/07/2023;3544;0;459;1;Spese correnti;3;Acquisto di beni e servizi;2;Acquisto di servizi;15;Contratti di servizio pubblico;15;Contratti di servizio per l'illuminazione pubblica;05/07/2023
2243;1;9999999;55,99;492,16;ENEL ENERGIA SPA;9118031536;SALDO Fatt.n. 004336509093  del 08/06/2023 MAGGIO 2023 - CONSUMI PARCHEGGIO SMS;03/07/2023;3544;0;459;1;Spese correnti;3;Acquisto di beni e servizi;2;Acquisto di servizi;15;Contratti di servizio pubblico;15;Contratti di servizio per l'illuminazione pubblica;05/07/2023
2243;2;9999999;81,79;492,16;ENEL ENERGIA SPA;9118031536;SALDO Fatt.n. 004336509082  del 08/06/2023 MAGGIO 2023 - CONSUMI FONTANA VETERNIGO;03/07/2023;3544;0;459;1;Spese correnti;3;Acquisto di beni e servizi;2;Acquisto di servizi;15;Contratti di servizio pubblico;15;Contratti di servizio per l'illuminazione pubblica;05/07/2023
2243;3;9999999;92,98;492,16;ENEL ENERGIA SPA;9118031536;SALDO Fatt.n. 004336509074  del 08/06/2023 MAGGIO 2023 - CONSUMI MERCATO CALTANA;03/07/2023;3544;0;459;1;Spese correnti;3;Acquisto di beni e servizi;2;Acquisto di servizi;15;Contratti di servizio pubblico;15;Contratti di servizio per l'illuminazione pubblica;05/07/2023
2243;4;9999999;104,7;492,16;ENEL ENERGIA SPA;9118031536;SALDO Fatt.n. 004336509094  del 08/06/2023 MAGGIO 2023 - CONSUMI PARCHEGGIO OVALE SMS;03/07/2023;3544;0;459;1;Spese correnti;3;Acquisto di beni e servizi;2;Acquisto di servizi;15;Contratti di servizio pubblico;15;Contratti di servizio per l'illuminazione pubblica;05/07/2023
2243;5;9999999;156,7;492,16;ENEL ENERGIA SPA;9118031536;SALDO Fatt.n. 004336509086  del 08/06/2023 MAGGIO 2023 - CONSUMI P.ZZA S.D.A. CALTANA;03/07/2023;3544;0;459;1;Spese correnti;3;Acquisto di beni e servizi;2;Acquisto di servizi;15;Contratti di servizio pubblico;15;Contratti di servizio per l'illuminazione pubblica;05/07/2023
2244;1;9999999;18,21;421,33;ENEL ENERGIA SPA;9118031536;SALDO Fatt.n. 004336509113  del 08/06/2023 MAGGIO 2023 - CONSUMI IMMOBILE COMUNALE VIA OLIMPIA;03/07/2023;3544;0;459;1;Spese correnti;3;Acquisto di beni e servizi;2;Acquisto di servizi;15;Contratti di servizio pubblico;15;Contratti di servizio per l'illuminazione pubblica;05/07/2023
2244;2;9999999;47,52;421,33;ENEL ENERGIA SPA;9118031536;SALDO Fatt.n. 004336509108  del 08/06/2023 MAGGIO 2023 - CONSUMI ALLOGGIO VIA DON GALLERANI CALTANA;03/07/2023;3544;0;459;1;Spese correnti;3;Acquisto di beni e servizi;2;Acquisto di servizi;15;Contratti di servizio pubblico;15;Contratti di servizio per l'illuminazione pubblica;05/07/2023
2244;3;9999999;98,22;421,33;ENEL ENERGIA SPA;9118031536;SALDO Fatt.n. 004336509106  del 08/06/2023 MAGGIO 2023 - CONSUMI PARCHEGGIO C.C. PRISMA CASELLE;03/07/2023;3544;0;459;1;Spese correnti;3;Acquisto di beni e servizi;2;Acquisto di servizi;15;Contratti di servizio pubblico;15;Contratti di servizio per l'illuminazione pubblica;05/07/2023
2244;4;9999999;113,87;421,33;ENEL ENERGIA SPA;9118031536;SALDO Fatt.n. 004336509109  del 08/06/2023 MAGGIO 2023 - CONSUMI MERCATO SMS;03/07/2023;3544;0;459;1;Spese correnti;3;Acquisto di beni e servizi;2;Acquisto di servizi;15;Contratti di servizio pubblico;15;Contratti di servizio per l'illuminazione pubblica;05/07/2023
2244;5;9999999;143,51;421,33;ENEL ENERGIA SPA;9118031536;SALDO Fatt.n. 004336509101  del 08/06/2023 MAGGIO 2023 - CONSUMI MERCATO CASELLE;03/07/2023;3544;0;459;1;Spese correnti;3;Acquisto di beni e servizi;2;Acquisto di servizi;15;Contratti di servizio pubblico;15;Contratti di servizio per l'illuminazione pubblica;05/07/2023
2245;1;9999999;1.321,33;1.321,33;ENEL ENERGIA SPA;9118031536;SALDO Fatt.n. 004336509078  del 08/06/2023 MAGGIO 2023 - CONSUMI SEDE MUNICIPALE;03/07/2023;3544;0;459;1;Spese correnti;3;Acquisto di beni e servizi;2;Acquisto di servizi;15;Contratti di servizio pubblico;15;Contratti di servizio per l'illuminazione pubblica;05/07/2023
2246;1;9999999;520,99;1.362,45;ENEL ENERGIA SPA;9118031536;SALDO Fatt.n. 004336509076  del 08/06/2023 MAGGIO 2023 - CONSUMI VILLA FARSETTI;03/07/2023;3544;0;459;1;Spese correnti;3;Acquisto di beni e servizi;2;Acquisto di servizi;15;Contratti di servizio pubblico;15;Contratti di servizio per l'illuminazione pubblica;05/07/2023
2246;2;9999999;841,46;1.362,45;ENEL ENERGIA SPA;9118031536;SALDO Fatt.n. 004336509110  del 08/06/2023 MAGGIO 2023 - CONSUMI VILLA FARSETTI;03/07/2023;3544;0;459;1;Spese correnti;3;Acquisto di beni e servizi;2;Acquisto di servizi;15;Contratti di servizio pubblico;15;Contratti di servizio per l'illuminazione pubblica;05/07/2023
2247;1;9999999;459,53;2.802,21;ENEL ENERGIA SPA;9118031536;SALDO Fatt.n. 004336509085  del 08/06/2023 MAGGIO 2023 - CONSUMI SC. ELEM. CALTANA;03/07/2023;3544;0;459;1;Spese correnti;3;Acquisto di beni e servizi;2;Acquisto di servizi;15;Contratti di servizio pubblico;15;Contratti di servizio per l'illuminazione pubblica;05/07/2023
2247;2;9999999;530,57;2.802,21;ENEL ENERGIA SPA;9118031536;SALDO Fatt.n. 004336509104  del 08/06/2023 MAGGIO 2023 - CONSUMI SC. ELEM. CASELLE;03/07/2023;3544;0;459;1;Spese correnti;3;Acquisto di beni e servizi;2;Acquisto di servizi;15;Contratti di servizio pubblico;15;Contratti di servizio per l'illuminazione pubblica;05/07/2023
2247;3;9999999;1.812,11;2.802,21;ENEL ENERGIA SPA;9118031536;SALDO Fatt.n. 004336509077  del 08/06/2023 MAGGIO 2023 - CONSUMI SC. ELEM - SC. MEDIA SMS;03/07/2023;3544;0;459;1;Spese correnti;3;Acquisto di beni e servizi;2;Acquisto di servizi;15;Contratti di servizio pubblico;15;Contratti di servizio per l'illuminazione pubblica;05/07/2023
2248;1;9999999;70,38;70,38;ENEL ENERGIA SPA;9118031536;SALDO Fatt.n. 004336509099  del 08/06/2023 MAGGIO 2023 - CONSUMI ECOCENTRO COMUNALE;03/07/2023;3544;0;459;1;Spese correnti;3;Acquisto di beni e servizi;2;Acquisto di servizi;15;Contratti di servizio pubblico;15;Contratti di servizio per l'illuminazione pubblica;05/07/2023
2249;1;9999999;7,85;7,85;ENEL ENERGIA SPA;9118031536;ACCONTO Fatt.n. 004336509089  del 08/06/2023 MAGGIO 2023 - CONSUMI CIMITERO SMS - LAMPADE VOTIVE;03/07/2023;3544;0;459;1;Spese correnti;3;Acquisto di beni e servizi;2;Acquisto di servizi;15;Contratti di servizio pubblico;15;Contratti di servizio per l'illuminazione pubblica;05/07/2023
2250;1;9999999;3,53;3,53;ENEL ENERGIA SPA;9118031536;ACCONTO Fatt.n. 004336509100  del 08/06/2023 MAGGIO 2023 - CONSUMI CIMITERO CASELLE - LAMPADE VOTIVE;03/07/2023;3544;0;459;1;Spese correnti;3;Acquisto di beni e servizi;2;Acquisto di servizi;15;Contratti di servizio pubblico;15;Contratti di servizio per l'illuminazione pubblica;05/07/2023
2251;1;9999999;6;6;ENEL ENERGIA SPA;9118031536;ACCONTO Fatt.n. 004336509092  del 08/06/2023 MAGGIO 2023 - CONSUMI CIMITERO S.ANGELO - LAMPADE VOTIVE;03/07/2023;3544;0;459;1;Spese correnti;3;Acquisto di beni e servizi;2;Acquisto di servizi;15;Contratti di servizio pubblico;15;Contratti di servizio per l'illuminazione pubblica;05/07/2023
2252;1;9999999;8,91;8,91;ENEL ENERGIA SPA;9118031536;ACCONTO Fatt.n. 004336509091  del 08/06/2023 MAGGIO 2023 - CONSUMI CIMITERO VETERNIGO - LAMPADE VOTIVE;03/07/2023;3544;0;459;1;Spese correnti;3;Acquisto di beni e servizi;2;Acquisto di servizi;15;Contratti di servizio pubblico;15;Contratti di servizio per l'illuminazione pubblica;05/07/2023
2253;1;9999999;8,84;8,84;ENEL ENERGIA SPA;9118031536;ACCONTO Fatt.n. 004336509103  del 08/06/2023 MAGGIO 2023 - CONSUMI CIMITERO CALTANA - LAMPADE VOTIVE;03/07/2023;3544;0;459;1;Spese correnti;3;Acquisto di beni e servizi;2;Acquisto di servizi;15;Contratti di servizio pubblico;15;Contratti di servizio per l'illuminazione pubblica;05/07/2023
2254;1;9999999;983,19;983,19;ENEL ENERGIA SPA;9118031536;ACCONTO Fatt.n. 004336509098  del 08/06/2023 MAGGIO 2023 - CONSUMI SC. ELEM - PALESTRA - ASILO S.ANGELO;03/07/2023;3544;0;459;1;Spese correnti;3;Acquisto di beni e servizi;2;Acquisto di servizi;15;Contratti di servizio pubblico;15;Contratti di servizio per l'illuminazione pubblica;05/07/2023
2255;1;9999999;600,36;600,36;ENEL ENERGIA SPA;9118031536;ACCONTO Fatt.n. 004336509081  del 08/06/2023 MAGGIO 2023 - CONSUMI PALESTRA CALTANA;03/07/2023;3544;0;459;1;Spese correnti;3;Acquisto di beni e servizi;2;Acquisto di servizi;15;Contratti di servizio pubblico;15;Contratti di servizio per l'illuminazione pubblica;05/07/2023
2256;1;9999999;212;212;ENEL ENERGIA SPA;9118031536;ACCONTO Fatt.n. 004336509083  del 08/06/2023 MAGGIO 2023 - CONSUMI SC. ELEM - PALESTRA STIGLIANO;03/07/2023;3544;0;459;1;Spese correnti;3;Acquisto di beni e servizi;2;Acquisto di servizi;15;Contratti di servizio pubblico;15;Contratti di servizio per l'illuminazione pubblica;05/07/2023
2257;1;9999999;228,56;228,56;ENEL ENERGIA SPA;9118031536;SALDO Fatt.n. 004336509083  del 08/06/2023 MAGGIO 2023 - CONSUMI SC. ELEM - PALESTRA STIGLIANO;03/07/2023;3544;0;459;1;Spese correnti;3;Acquisto di beni e servizi;2;Acquisto di servizi;15;Contratti di servizio pubblico;15;Contratti di servizio per l'illuminazione pubblica;05/07/2023
2258;1;9999999;481,59;481,59;ENEL ENERGIA SPA;9118031536;SALDO Fatt.n. 004336509111  del 08/06/2023 MAGGIO 2023 - CONSUMI SC. ELEM - PALESTRA VETERNIGO;03/07/2023;3544;0;459;1;Spese correnti;3;Acquisto di beni e servizi;2;Acquisto di servizi;15;Contratti di servizio pubblico;15;Contratti di servizio per l'illuminazione pubblica;05/07/2023
2259;1;9999999;327;327;ENEL ENERGIA SPA;9118031536;SALDO Fatt.n. 004336509098  del 08/06/2023 MAGGIO 2023 - CONSUMI SC. ELEM - PALESTRA - ASILO S.ANGELO;03/07/2023;4234;0;457;1;Spese correnti;3;Acquisto di beni e servizi;2;Acquisto di servizi;5;Utenze e canoni;4;Energia elettrica;05/07/2023
2260;1;9999999;49,8;49,8;ENEL ENERGIA SPA;9118031536;SALDO Fatt.n. 004336509080  del 08/06/2023 MAGGIO 2023 - CONSUMI CIMITERO STIGLIANO - LAMPADE VOTIVE;03/07/2023;4434;0;458;1;Spese correnti;3;Acquisto di beni e servizi;2;Acquisto di servizi;5;Utenze e canoni;4;Energia elettrica;05/07/2023
2261;1;9999999;52;52;ENEL ENERGIA SPA;9118031536;SALDO Fatt.n. 004336509089  del 08/06/2023 MAGGIO 2023 - CONSUMI CIMITERO SMS - LAMPADE VOTIVE;03/07/2023;4434;0;458;1;Spese correnti;3;Acquisto di beni e servizi;2;Acquisto di servizi;5;Utenze e canoni;4;Energia elettrica;05/07/2023
2262;1;9999999;71;71;ENEL ENERGIA SPA;9118031536;SALDO Fatt.n. 004336509100  del 08/06/2023 MAGGIO 2023 - CONSUMI CIMITERO CASELLE - LAMPADE VOTIVE;03/07/2023;4434;0;458;1;Spese correnti;3;Acquisto di beni e servizi;2;Acquisto di servizi;5;Utenze e canoni;4;Energia elettrica;05/07/2023
2263;1;9999999;49;49;ENEL ENERGIA SPA;9118031536;SALDO Fatt.n. 004336509092  del 08/06/2023 MAGGIO 2023 - CONSUMI CIMITERO S.ANGELO - LAMPADE VOTIVE;03/07/2023;4434;0;458;1;Spese correnti;3;Acquisto di beni e servizi;2;Acquisto di servizi;5;Utenze e canoni;4;Energia elettrica;05/07/2023
2264;1;9999999;48;48;ENEL ENERGIA SPA;9118031536;SALDO Fatt.n. 004336509091  del 08/06/2023 MAGGIO 2023 - CONSUMI CIMITERO VETERNIGO - LAMPADE VOTIVE;03/07/2023;4434;0;458;1;Spese correnti;3;Acquisto di beni e servizi;2;Acquisto di servizi;5;Utenze e canoni;4;Energia elettrica;05/07/2023
2265;1;9999999;101;101;ENEL ENERGIA SPA;9118031536;SALDO Fatt.n. 004336509103  del 08/06/2023 MAGGIO 2023 - CONSUMI CIMITERO CALTANA - LAMPADE VOTIVE;03/07/2023;4434;0;458;1;Spese correnti;3;Acquisto di beni e servizi;2;Acquisto di servizi;5;Utenze e canoni;4;Energia elettrica;05/07/2023
2266;1;9999999;600,36;600,36;ENEL ENERGIA SPA;9118031536;SALDO Fatt.n. 004336509081  del 08/06/2023 MAGGIO 2023 - CONSUMI PALESTRA CALTANA;03/07/2023;4434;0;458;1;Spese correnti;3;Acquisto di beni e servizi;2;Acquisto di servizi;5;Utenze e canoni;4;Energia elettrica;05/07/2023
2267;1;9999999;140,3;140,3;VEDETTA 2 MONDIALPOL SPA;ZD032B120B;SALDO Fatt.n. V9-1763  del 08/06/2023 MAGGIO 2023 SERVIZIO DI VIGILANZA MAGAZZINO -PROTEZIONE CIVILE V.LE FERRARIS - VILLA FARSETTI;03/07/2023;548;0;688;1;Spese correnti;3;Acquisto di beni e servizi;2;Acquisto di servizi;9;Manutenzione ordinaria e riparazioni;8;Manutenzione ordinaria e riparazioni di beni immobili;05/07/2023
2268;1;9999999;1.382,72;1.382,72;SARV ANTINCENDI SRL;Z4F378F562;SALDO Fatt.n. PA0000006  del 31/05/2023 CONTROLLO SEMESTRALE ESTINTORI PORTATILI - IDRANTE A COLONNA - DEFIBRILLATORI;03/07/2023;548;0;798;1;Spese correnti;3;Acquisto di beni e servizi;2;Acquisto di servizi;9;Manutenzione ordinaria e riparazioni;11;Manutenzione ordinaria e riparazioni di altri beni materiali;05/07/2023
2269;1;9999999;222;222;FEDERAZIONE DEI COMUNI DEL CAMPOSAMPIERESE;ZB03AAFDE6;SALDO Fatt.n. 33/3/1  del 19/06/2023 CORSO ATTIVITA ACCERTATIVA DEGLI ENTI LOCALI - FATTISPECIE PARTICOLARI - DIPP. C.D. E R.R.;03/07/2023;833;0;369;1;Spese correnti;3;Acquisto di beni e servizi;2;Acquisto di servizi;4;Acquisto di servizi per formazione e addestramento del personale dell'ente;4;Acquisto di servizi per formazione obbligatoria;05/07/2023
2270;1;9999999;14,03;14,03;CRISTOFORETTI SERVIZI ENERGIA S.P.A.;Z4039F954A;ACCONTO Fatt.n. 0023002930  del 31/05/2023 AFFIDAMENTO SERVIZIO PERIODO 01.02.2023-31.05.2023 SERVIZIO DI CONDUZIONE E MANUTENZIONE ORDINARIA DEGLI IMPIANTI TERMICI PALESTRE COMUNALI USO SPORT (INTEGRAZIONE IVA REVERSE CHARGE);03/07/2023;1334;30;148;1;Spese correnti;3;Acquisto di beni e servizi;2;Acquisto di servizi;5;Utenze e canoni;6;Gas;05/07/2023
2271;1;9999999;3.118,38;25.835,98;DUSSMANN SERVICE SRL;90957312AC;SALDO Fatt.n. 32324965  del 31/05/2023 MAGGIO 2023 - PASTI SCUOLA MATERNA S. ANGELO BAMBINI E INSEGNANTI;03/07/2023;1344;0;149;1;Spese correnti;3;Acquisto di beni e servizi;2;Acquisto di servizi;15;Contratti di servizio pubblico;6;Contratti di servizio per le mense scolastiche;05/07/2023
2271;2;9999999;22.717,60;25.835,98;DUSSMANN SERVICE SRL;90957312AC;SALDO Fatt.n. 32324966  del 31/05/2023 MAGGIO 2023 - PASTI SCUOLE ELEMENTARI BAMBINI E INSEGNANTI;03/07/2023;1344;0;149;1;Spese correnti;3;Acquisto di beni e servizi;2;Acquisto di servizi;15;Contratti di servizio pubblico;6;Contratti di servizio per le mense scolastiche;05/07/2023
2272;1;9999999;19.201,73;19.201,73;BONAVENTURA EXPRESS SRL;8704892021;SALDO Fatt.n. 311PA  del 31/05/2023 TRASPORTO SCOLASTICO MAGGIO 2023;03/07/2023;1344;0;388;1;Spese correnti;3;Acquisto di beni e servizi;2;Acquisto di servizi;15;Contratti di servizio pubblico;2;Contratti di servizio di trasporto scolastico;05/07/2023
2273;1;9999999;2.791,97;2.791,97;CRISTOFORETTI SERVIZI ENERGIA S.P.A.;Z4039F954A;SALDO Fatt.n. 0023002930  del 31/05/2023 AFFIDAMENTO SERVIZIO PERIODO 01.02.2023-31.05.2023 SERVIZIO DI CONDUZIONE E MANUTENZIONE ORDINARIA DEGLI IMPIANTI TERMICI PALESTRE COMUNALI USO SPORT (INTEGRAZIONE IVA REVERSE CHARGE);03/07/2023;1934;0;150;1;Spese correnti;3;Acquisto di beni e servizi;2;Acquisto di servizi;5;Utenze e canoni;6;Gas;05/07/2023
2274;1;9999999;15.042,15;15.042,15;SCANTAMBURLO PIETRO;913650419E;SALDO Fatt.n. 55  del 08/06/2023 PULIZIA MARCIAPIEDI;03/07/2023;2549;0;337;1;Spese correnti;3;Acquisto di beni e servizi;2;Acquisto di servizi;99;Altri servizi;9;Acquisto di sevizi per verde e arredo urbano;05/07/2023
2275;1;9999999;1.403,01;1.403,01;EPIU' SRL - COSTRUIRE INSIEME;Z7939B3159;SALDO Fatt.n. 13426  del 31/05/2023 FORNITURA MATERIALE EDILE PER MANUTENZIONI;03/07/2023;3538;0;80;1;Spese correnti;3;Acquisto di beni e servizi;2;Acquisto di servizi;9;Manutenzione ordinaria e riparazioni;8;Manutenzione ordinaria e riparazioni di beni immobili;05/07/2023
2278;1;9999999;150;150;OMESSO NOMINATIVO NEL RISPETTO DELLA NORMATIVA SULLA PROTEZIONE DATI PERSONALI; ;LUGLIO 2023 AFFIDAMENTO FAMILIARE -;03/07/2023;3757;50;619;1;Spese correnti;4;Trasferimenti correnti;2;Trasferimenti correnti a Famiglie;2;Interventi assistenziali;999;Altri assegni e sussidi assistenziali;05/07/2023
2280;1;9999999;1.117,25;1.117,25;CRISTOFORETTI SERVIZI ENERGIA S.P.A.;Z4039F954A;ACCONTO Fatt.n. 0023002932  del 31/05/2023 SERVIZIO DI CONDUZIONE E MANUTENZIONE ORDINARIA IMPIANTI TERMICI PERIODO DAL 01-02 AL 31-05-2023;04/07/2023;134;30;146;1;Spese correnti;3;Acquisto di beni e servizi;2;Acquisto di servizi;5;Utenze e canoni;6;Gas;06/07/2023
2281;1;9999999;242,75;242,75;CRISTOFORETTI SERVIZI ENERGIA S.P.A.;Z4039F954A;ACCONTO Fatt.n. 0023002931  del 31/05/2023 SERVIZIO DI CONDUZIONE E MANUTENZIONE ORDINARIA IMPIANTI TERMICI PERIODO DAL 01-02 AL 31-05-2023;04/07/2023;134;30;146;1;Spese correnti;3;Acquisto di beni e servizi;2;Acquisto di servizi;5;Utenze e canoni;6;Gas;06/07/2023
2282;1;9999999;3.021,75;3.021,75;CRISTOFORETTI SERVIZI ENERGIA S.P.A.;Z4039F954A;ACCONTO Fatt.n. 0023002932  del 31/05/2023 SERVIZIO DI CONDUZIONE E MANUTENZIONE ORDINARIA IMPIANTI TERMICI PERIODO DAL 01-02 AL 31-05-2023;04/07/2023;134;31;147;1;Spese correnti;3;Acquisto di beni e servizi;2;Acquisto di servizi;5;Utenze e canoni;6;Gas;06/07/2023
2283;1;9999999;3.399,29;3.399,29;COOP.SOCIALE LIBERTA' ONLUS;Z673AAF407;SALDO Fatt.n. 444  del 31/05/2023 SERVIZIO DI PULIZIA E SANIFICAZIONE UFFICI COMUNALI;04/07/2023;142;0;384;1;Spese correnti;3;Acquisto di beni e servizi;2;Acquisto di servizi;13;Servizi ausiliari per il funzionamento dell'ente;2;Servizi di pulizia e lavanderia;06/07/2023
2284;1;9999999;2.500,00;2.500,00;BANCA MPS SPA;Z122EED501;SALDO Fatt.n. 3020021327  del 08/06/2023 COMP.SERV.DI TESORERIA 1 SEM. 2023;04/07/2023;146;0;68;1;Spese correnti;3;Acquisto di beni e servizi;2;Acquisto di servizi;17;Servizi finanziari;2;Oneri per servizio di tesoreria;05/07/2023
2285;1;9999999;3.985,97;3.985,97;CRISTOFORETTI SERVIZI ENERGIA S.P.A.;Z4039F954A;ACCONTO Fatt.n. 0023002931  del 31/05/2023 SERVIZIO DI CONDUZIONE E MANUTENZIONE ORDINARIA IMPIANTI TERMICI PERIODO DAL 01-02 AL 31-05-2023;04/07/2023;1334;30;148;1;Spese correnti;3;Acquisto di beni e servizi;2;Acquisto di servizi;5;Utenze e canoni;6;Gas;06/07/2023
2286;1;9999999;244;244;GRAFICHE QUATTRO SRL;Z783B5470D;SALDO Fatt.n. 000003-0CPAPA  del 31/05/2023 STAMPA E FORNITURA DI BIGLIETTI INVITO A EVENTO PROMOZIONALE -  IL TUTTO NON E LA SOMMA DELLE SINGOLE PARTI -;04/07/2023;1831;0;487;1;Spese correnti;3;Acquisto di beni e servizi;2;Acquisto di servizi;2;Organizzazione eventi, pubblicita` e servizi per trasferta;999;Altre spese per relazioni pubbliche, convegni e mostre, pubblicita` n.a.c;06/07/2023
2287;1;9999999;1.800,00;1.800,00;CRISTOFORETTI SERVIZI ENERGIA S.P.A.;Z4039F954A;ACCONTO Fatt.n. 0023002931  del 31/05/2023 SERVIZIO DI CONDUZIONE E MANUTENZIONE ORDINARIA IMPIANTI TERMICI PERIODO DAL 01-02 AL 31-05-2023;04/07/2023;1834;0;149;1;Spese correnti;3;Acquisto di beni e servizi;2;Acquisto di servizi;5;Utenze e canoni;6;Gas;06/07/2023
2288;1;9999999;1.140,00;1.140,00;CRISTOFORETTI SERVIZI ENERGIA S.P.A.;Z4039F954A;SALDO Fatt.n. 0023002931  del 31/05/2023 SERVIZIO DI CONDUZIONE E MANUTENZIONE ORDINARIA IMPIANTI TERMICI PERIODO DAL 01-02 AL 31-05-2023;04/07/2023;3534;0;151;1;Spese correnti;3;Acquisto di beni e servizi;2;Acquisto di servizi;5;Utenze e canoni;6;Gas;06/07/2023
2289;1;9999999;1.900,00;1.900,00;CRISTOFORETTI SERVIZI ENERGIA S.P.A.;Z4039F954A;SALDO Fatt.n. 0023002932  del 31/05/2023 SERVIZIO DI CONDUZIONE E MANUTENZIONE ORDINARIA IMPIANTI TERMICI PERIODO DAL 01-02 AL 31-05-2023;04/07/2023;4234;0;152;1;Spese correnti;3;Acquisto di beni e servizi;2;Acquisto di servizi;5;Utenze e canoni;6;Gas;06/07/2023
2290;1;9999999;1.793,25;1.793,25;DISMA SAS DI ANGELO RIGO & C.;ZBB3AB6AC1;SALDO Fatt.n. 050/2023  del 31/05/2023 SERVIZIO DI SUPPORTO ALLE ATTIVITA DELLA BIBLIOTECA -  MESE DI MAGGIO 2023;04/07/2023;2049;0;383;1;Spese correnti;3;Acquisto di beni e servizi;2;Acquisto di servizi;99;Altri servizi;999;Altri servizi diversi n.a.c.;06/07/2023
2291;1;9999999;80,29;80,29;ENI SUSTAINABLE MOBILITY SPA;Z063967AC5;ACCONTO Fatt.n. 29562342  del 31/05/2023;04/07/2023;521;0;42;1;Spese correnti;3;Acquisto di beni e servizi;1;Acquisto di beni;2;Altri beni di consumo;999;Altri beni e materiali di consumo n.a.c.;05/07/2023
2292;1;9999999;17,66;17,66;ENI SUSTAINABLE MOBILITY SPA;Z063967AC5;SALDO Fatt.n. 29562342  del 31/05/2023;04/07/2023;521;0;42;1;Spese correnti;3;Acquisto di beni e servizi;1;Acquisto di beni;2;Altri beni di consumo;999;Altri beni e materiali di consumo n.a.c.;06/07/2023
2293;1;9999999;340;340;OMESSO NOMINATIVO NEL RISPETTO DELLA NORMATIVA SULLA PROTEZIONE DATI PERSONALI; ;MAGGIO GIUGNO 2023 RETTA;04/07/2023;3757;0;288;1;Spese correnti;4;Trasferimenti correnti;2;Trasferimenti correnti a Famiglie;5;Altri trasferimenti a famiglie;999;Altri trasferimenti a famiglie n.a.c.;06/07/2023
2294;1;9999999;340;340;OMESSO NOMINATIVO NEL RISPETTO DELLA NORMATIVA SULLA PROTEZIONE DATI PERSONALI; ;MAGGIO GIUGNO 2023 RETTA;04/07/2023;3757;0;111;1;Spese correnti;4;Trasferimenti correnti;2;Trasferimenti correnti a Famiglie;5;Altri trasferimenti a famiglie;999;Altri trasferimenti a famiglie n.a.c.;06/07/2023
2295;1;9999999;340;340;OMESSO NOMINATIVO NEL RISPETTO DELLA NORMATIVA SULLA PROTEZIONE DATI PERSONALI; ;MAGGIO GIUGNO 2023 RETTA;04/07/2023;3757;0;381;1;Spese correnti;4;Trasferimenti correnti;2;Trasferimenti correnti a Famiglie;5;Altri trasferimenti a famiglie;999;Altri trasferimenti a famiglie n.a.c.;06/07/2023
2296;1;9999999;340;340;OMESSO NOMINATIVO NEL RISPETTO DELLA NORMATIVA SULLA PROTEZIONE DATI PERSONALI; ;MAGGIO GIUGNO 2023 RETTA;04/07/2023;3757;0;287;1;Spese correnti;4;Trasferimenti correnti;2;Trasferimenti correnti a Famiglie;5;Altri trasferimenti a famiglie;999;Altri trasferimenti a famiglie n.a.c.;06/07/2023
2297;1;9999999;340;340;OMESSO NOMINATIVO NEL RISPETTO DELLA NORMATIVA SULLA PROTEZIONE DATI PERSONALI; ;MAGGIO GIUGNO 2023 RETTA;04/07/2023;3757;0;112;1;Spese correnti;4;Trasferimenti correnti;2;Trasferimenti correnti a Famiglie;5;Altri trasferimenti a famiglie;999;Altri trasferimenti a famiglie n.a.c.;06/07/2023
2298;1;9999999;340;340;OMESSO NOMINATIVO NEL RISPETTO DELLA NORMATIVA SULLA PROTEZIONE DATI PERSONALI; ;MAGGIO GIUGNO 2023 RETTA;04/07/2023;3757;0;110;1;Spese correnti;4;Trasferimenti correnti;2;Trasferimenti correnti a Famiglie;5;Altri trasferimenti a famiglie;999;Altri trasferimenti a famiglie n.a.c.;06/07/2023
2299;1;9999999;200;200;OMESSO NOMINATIVO NEL RISPETTO DELLA NORMATIVA SULLA PROTEZIONE DATI PERSONALI; ;MAGGIO GIUGNO 2023 RETTA;04/07/2023;3757;0;285;1;Spese correnti;4;Trasferimenti correnti;2;Trasferimenti correnti a Famiglie;5;Altri trasferimenti a famiglie;999;Altri trasferimenti a famiglie n.a.c.;06/07/2023
2300;1;9999999;200;200;OMESSO NOMINATIVO NEL RISPETTO DELLA NORMATIVA SULLA PROTEZIONE DATI PERSONALI; ;MAGGIO GIUGNO 2023 RETTA;04/07/2023;3757;0;286;1;Spese correnti;4;Trasferimenti correnti;2;Trasferimenti correnti a Famiglie;5;Altri trasferimenti a famiglie;999;Altri trasferimenti a famiglie n.a.c.;06/07/2023
2301;1;9999999;300;300;OMESSO NOMINATIVO NEL RISPETTO DELLA NORMATIVA SULLA PROTEZIONE DATI PERSONALI; ;MAGGIO GIUGNO 2023 RETTA;04/07/2023;3757;0;498;1;Spese correnti;4;Trasferimenti correnti;2;Trasferimenti correnti a Famiglie;5;Altri trasferimenti a famiglie;999;Altri trasferimenti a famiglie n.a.c.;06/07/2023
2302;1;9999999;200;200;OMESSO NOMINATIVO NEL RISPETTO DELLA NORMATIVA SULLA PROTEZIONE DATI PERSONALI; ;MAGGIO GIUGNO 2023 RETTA;04/07/2023;3757;0;108;1;Spese correnti;4;Trasferimenti correnti;2;Trasferimenti correnti a Famiglie;5;Altri trasferimenti a famiglie;999;Altri trasferimenti a famiglie n.a.c.;06/07/2023
2303;1;9999999;340;340;OMESSO NOMINATIVO NEL RISPETTO DELLA NORMATIVA SULLA PROTEZIONE DATI PERSONALI; ;MAGGIO GIUGNO 2023 RETTA;04/07/2023;3757;0;109;1;Spese correnti;4;Trasferimenti correnti;2;Trasferimenti correnti a Famiglie;5;Altri trasferimenti a famiglie;999;Altri trasferimenti a famiglie n.a.c.;06/07/2023
2304;1;9999999;340;340;OMESSO NOMINATIVO NEL RISPETTO DELLA NORMATIVA SULLA PROTEZIONE DATI PERSONALI; ;MAGGIO GIUGNO 2023 RETTA;04/07/2023;3757;0;418;1;Spese correnti;4;Trasferimenti correnti;2;Trasferimenti correnti a Famiglie;5;Altri trasferimenti a famiglie;999;Altri trasferimenti a famiglie n.a.c.;06/07/2023
2305;1;9999999;433,5;433,5;OMESSO NOMINATIVO NEL RISPETTO DELLA NORMATIVA SULLA PROTEZIONE DATI PERSONALI; ;BUONI MENSA DOPO SCUOLA GENNAIO GIUGNO 2023 E CENTRI ESTIVI 2023;04/07/2023;3757;0;291;1;Spese correnti;4;Trasferimenti correnti;2;Trasferimenti correnti a Famiglie;5;Altri trasferimenti a famiglie;999;Altri trasferimenti a famiglie n.a.c.;06/07/2023
2306;1;9999999;487,5;487,5;OMESSO NOMINATIVO NEL RISPETTO DELLA NORMATIVA SULLA PROTEZIONE DATI PERSONALI; ;BUONI MENSA DOPO SCUOLA GENNAIO GIUGNO 2023 E CENTRI ESTIVI 2023;04/07/2023;3757;0;289;1;Spese correnti;4;Trasferimenti correnti;2;Trasferimenti correnti a Famiglie;5;Altri trasferimenti a famiglie;999;Altri trasferimenti a famiglie n.a.c.;06/07/2023
2307;1;9999999;215;215;OMESSO NOMINATIVO NEL RISPETTO DELLA NORMATIVA SULLA PROTEZIONE DATI PERSONALI; ;RETTE DOPOSCUOLA MAGGIO 2023;04/07/2023;3757;0;290;1;Spese correnti;4;Trasferimenti correnti;2;Trasferimenti correnti a Famiglie;5;Altri trasferimenti a famiglie;999;Altri trasferimenti a famiglie n.a.c.;06/07/2023
2308;1;9999999;100;100;OMESSO NOMINATIVO NEL RISPETTO DELLA NORMATIVA SULLA PROTEZIONE DATI PERSONALI; ;RETTE DOPOSCUOLA MAGGIO 2023;04/07/2023;3757;0;113;1;Spese correnti;4;Trasferimenti correnti;2;Trasferimenti correnti a Famiglie;5;Altri trasferimenti a famiglie;999;Altri trasferimenti a famiglie n.a.c.;06/07/2023
2309;1;9999999;100;100;OMESSO NOMINATIVO NEL RISPETTO DELLA NORMATIVA SULLA PROTEZIONE DATI PERSONALI; ;RETTE DOPOSCUOLA MAGGIO 2023;04/07/2023;3757;0;113;1;Spese correnti;4;Trasferimenti correnti;2;Trasferimenti correnti a Famiglie;5;Altri trasferimenti a famiglie;999;Altri trasferimenti a famiglie n.a.c.;06/07/2023
2310;1;9999999;500;500;OMESSO NOMINATIVO NEL RISPETTO DELLA NORMATIVA SULLA PROTEZIONE DATI PERSONALI; ;BUONI MENSA DOPOSCUOLA GENNAIO GIUGNO 2023 E CENTRI ESTIVI 2023;04/07/2023;3757;0;500;1;Spese correnti;4;Trasferimenti correnti;2;Trasferimenti correnti a Famiglie;5;Altri trasferimenti a famiglie;999;Altri trasferimenti a famiglie n.a.c.;06/07/2023
2311;1;9999999;40;40;OMESSO NOMINATIVO NEL RISPETTO DELLA NORMATIVA SULLA PROTEZIONE DATI PERSONALI; ;Rimborso bollette;05/07/2023;31;0;101;1;Spese correnti;3;Acquisto di beni e servizi;2;Acquisto di servizi;2;Organizzazione eventi, pubblicita` e servizi per trasferta;999;Altre spese per relazioni pubbliche, convegni e mostre, pubblicita` n.a.c;10/07/2023
2312;1;9999999;76,32;76,32;OMESSO NOMINATIVO NEL RISPETTO DELLA NORMATIVA SULLA PROTEZIONE DATI PERSONALI; ;Rimborso bollette;05/07/2023;121;6;99;1;Spese correnti;3;Acquisto di beni e servizi;1;Acquisto di beni;2;Altri beni di consumo;1;Carta, cancelleria e stampati;10/07/2023
2313;1;9999999;200;200;BARBATO BARBARA ECONOMO COMUNALE; ;Rimborso bollette;05/07/2023;146;0;405;1;Spese correnti;3;Acquisto di beni e servizi;2;Acquisto di servizi;17;Servizi finanziari;999;Spese per servizi finanziari n.a.c.;10/07/2023
2315;1;9999999;3.738,60;3.738,60;MUNGO SPA; ;LIQUIDAZIONE A DITTA MUNGO SPA RIMBORSO ASSENZE RETRIBUITE VICE SINDACO ARPI ALESSANDRO USUFRUITE NEI MESI DI APRILE, MAGGIO E GIUGNO 2023.;05/07/2023;30;99;143;1;Spese correnti;3;Acquisto di beni e servizi;2;Acquisto di servizi;1;Organi e incarichi istituzionali dell'amministrazione;1;Organi istituzionali dell'amministrazione - Indennità;10/07/2023
2316;1;9999999;400,16;400,16;UFFICIO OVEST S.R.L.;Z0E3B6897D;SALDO Fatt.n. 28/5  del 23/06/2023 FORNITURA N. 200 CARTELLE SOSPESE SILVER INTERASSE 39 CM AVANA PER ARCHIVIO UTENTI DELLUFFICIO SERVIZI SOCIALI;05/07/2023;121;6;503;1;Spese correnti;3;Acquisto di beni e servizi;1;Acquisto di beni;2;Altri beni di consumo;1;Carta, cancelleria e stampati;10/07/2023
2317;1;9999999;60;60;HALLEY INFORMATICA SRL;ZEF3B84870;SALDO Fatt.n. 1612/16/11  del 23/06/2023 GUIDA ILLUSTRATA ALLA NUOVA PASSWEB - II EDIZIONE PER UFFICIO PERSONALE;05/07/2023;121;6;546;1;Spese correnti;3;Acquisto di beni e servizi;1;Acquisto di beni;2;Altri beni di consumo;14;Stampati specialistici;10/07/2023
2318;1;9999999;2.080,00;2.080,00;CEL NETWORK SRL;Z1F31A460B;SALDO Fatt.n. 1373  del 13/06/2023 ABBONAMENTO TRIENNALE 2021-2023 PORTALE PAWEB FULL - ANNO 2023;05/07/2023;134;0;430;1;Spese correnti;3;Acquisto di beni e servizi;2;Acquisto di servizi;5;Utenze e canoni;3;Accesso a banche dati e a pubblicazioni on line;10/07/2023
2319;1;9999999;292,8;292,8;EUREKA SRL UNIPERSONALE;Z4A3B63E7A;SALDO Fatt.n. 128  del 16/06/2023 MANUTENZIONE ANNUALE EROGATORI ACQUA FREDDA/AMBIENTE SEDE MUNICIPIO E BIBLIOTECA COMUNALE;05/07/2023;548;0;535;1;Spese correnti;3;Acquisto di beni e servizi;2;Acquisto di servizi;9;Manutenzione ordinaria e riparazioni;4;Manutenzione ordinaria e riparazioni di impianti e macchinari;10/07/2023
2320;1;9999999;625,5;625,5;MAGGIOLI SPA;Z033764D0B;SALDO Fatt.n. 0001133752  del 19/06/2023 FORMAZIONE ANTICORRUZIONE ONLINE -SERVIZIO ENTIONLINE ANNO 2023;05/07/2023;833;0;650;1;Spese correnti;3;Acquisto di beni e servizi;2;Acquisto di servizi;4;Acquisto di servizi per formazione e addestramento del personale dell'ente;4;Acquisto di servizi per formazione obbligatoria;10/07/2023
2321;1;9999999;65,64;65,64;E.S.A. ELECOMP SERVIZI ASCENSORI SRL;Z25350B12E;ACCONTO Fatt.n. FC0032132-0  del 14/06/2023 MANUTENZIONE VS. IMPIANTI PERIODO 01.01.2023 - 30.06.2023;05/07/2023;1338;0;270;1;Spese correnti;3;Acquisto di beni e servizi;2;Acquisto di servizi;9;Manutenzione ordinaria e riparazioni;11;Manutenzione ordinaria e riparazioni di altri beni materiali;10/07/2023
2322;1;9999999;220;1.540,00;BONAVENTURA EXPRESS SRL;8704892021;SALDO Fatt.n. 336PA  del 06/06/2023 USCITA DIDATTICA IL 21/04/2023 DA CASELLE A VILLA FARSETTI SMS;05/07/2023;1344;0;388;1;Spese correnti;3;Acquisto di beni e servizi;2;Acquisto di servizi;15;Contratti di servizio pubblico;2;Contratti di servizio di trasporto scolastico;10/07/2023
2322;2;9999999;660;1.540,00;BONAVENTURA EXPRESS SRL;8704892021;SALDO Fatt.n. 334PA  del 06/06/2023 USCITE DIDATTICHE PER VISITE GUIDATE IN MANEGGIO  - PERIODO APR 2023;05/07/2023;1344;0;388;1;Spese correnti;3;Acquisto di beni e servizi;2;Acquisto di servizi;15;Contratti di servizio pubblico;2;Contratti di servizio di trasporto scolastico;10/07/2023
2322;3;9999999;660;1.540,00;BONAVENTURA EXPRESS SRL;8704892021;SALDO Fatt.n. 335PA  del 06/06/2023 USCITE DIDATTICHE PER EDUCAZIONE STRADALE - PERIODO APR-MAG 2023;05/07/2023;1344;0;388;1;Spese correnti;3;Acquisto di beni e servizi;2;Acquisto di servizi;15;Contratti di servizio pubblico;2;Contratti di servizio di trasporto scolastico;10/07/2023
2323;1;9999999;895,58;895,58;CENTRO BIBLIOTECHE LOVAT SRL;Z61399458C;SALDO Fatt.n. 441-23  del 20/06/2023 VOLUMI PER BIBLIOTECA COMUNALE;05/07/2023;1820;0;56;1;Spese correnti;3;Acquisto di beni e servizi;1;Acquisto di beni;1;Giornali, riviste e pubblicazioni;2;Pubblicazioni;10/07/2023
2324;1;9999999;468,72;468,72;E.S.A. ELECOMP SERVIZI ASCENSORI SRL;Z25350B12E;SALDO Fatt.n. FC0032132-0  del 14/06/2023 MANUTENZIONE VS. IMPIANTI PERIODO 01.01.2023 - 30.06.2023;05/07/2023;1938;0;134;1;Spese correnti;3;Acquisto di beni e servizi;2;Acquisto di servizi;9;Manutenzione ordinaria e riparazioni;11;Manutenzione ordinaria e riparazioni di altri beni materiali;10/07/2023
2325;1;9999999;549;549;VENICE AMBITEC SCARL;ZAE3B63A0E;SALDO Fatt.n. 33/001  del 13/06/2023 VERIFICA STATICA VISIVA SU QUERCE GIARDINO SC. ELEM CALTANA;05/07/2023;2549;0;534;1;Spese correnti;3;Acquisto di beni e servizi;2;Acquisto di servizi;99;Altri servizi;9;Acquisto di sevizi per verde e arredo urbano;10/07/2023
2326;1;9999999;2,62;2,62;A2A ENERGIA SPA;Z453A8F9C4;SALDO Fatt.n. 823000170609  del 26/06/2023 MAGGIO 2023  -  CONSUMI  ILLUMINAZIONE PUBBLICA;05/07/2023;3544;0;341;1;Spese correnti;3;Acquisto di beni e servizi;2;Acquisto di servizi;15;Contratti di servizio pubblico;15;Contratti di servizio per l'illuminazione pubblica;10/07/2023
2327;1;9999999;8.233,87;8.233,87;L'ISOLA SOC. COOPERATIVA SOCIALE;9135335CEA;SALDO Fatt.n. 9/PA  del 14/06/2023;05/07/2023;2549;0;338;1;Spese correnti;3;Acquisto di beni e servizi;2;Acquisto di servizi;99;Altri servizi;9;Acquisto di sevizi per verde e arredo urbano;10/07/2023
2328;1;9999999;136,64;1.234,62;TIM SPA - TELECOM ITALIA SPA;ZE027DF92B;SALDO Fatt.n. 4220423800037324  del 10/06/2023 PERIODO 4 APR-MAG 2023 CONNETTIVITA E BACKUP SEDE MUNICIPALE;05/07/2023;134;0;179;1;Spese correnti;3;Acquisto di beni e servizi;2;Acquisto di servizi;5;Utenze e canoni;999;Utenze e canoni per altri servizi n.a.c.;10/07/2023
2328;2;9999999;1.097,98;1.234,62;TIM SPA - TELECOM ITALIA SPA;ZE027DF92B;SALDO Fatt.n. 4220423800037278  del 10/06/2023 PERIODO 4 APR-MAG 2023 CONNETTIVITA FIBRA GBE;05/07/2023;134;0;179;1;Spese correnti;3;Acquisto di beni e servizi;2;Acquisto di servizi;5;Utenze e canoni;999;Utenze e canoni per altri servizi n.a.c.;10/07/2023
2329;1;9999999;73,2;1.200,09;TIM SPA - TELECOM ITALIA SPA;Z502F0ADA2;SALDO Fatt.n. 8E00522936  del 10/06/2023 PERIODO 4 APR-MAG 2023 FAX SEDE MUNICIPALE;05/07/2023;134;0;944;1;Spese correnti;3;Acquisto di beni e servizi;2;Acquisto di servizi;5;Utenze e canoni;1;Telefonia fissa;10/07/2023
2329;2;9999999;73,2;1.200,09;TIM SPA - TELECOM ITALIA SPA;Z502F0ADA2;SALDO Fatt.n. 8E00525575  del 10/06/2023 PERIODO 4 APR-MAG 2023 FAX BIBLIOTECA;05/07/2023;134;0;944;1;Spese correnti;3;Acquisto di beni e servizi;2;Acquisto di servizi;5;Utenze e canoni;1;Telefonia fissa;10/07/2023
2329;3;9999999;73,2;1.200,09;TIM SPA - TELECOM ITALIA SPA;Z502F0ADA2;SALDO Fatt.n. 8E00527142  del 10/06/2023 PERIODO 4 APR-MAG 2023 UTENZA CENTRO PRELIEVI;05/07/2023;134;0;944;1;Spese correnti;3;Acquisto di beni e servizi;2;Acquisto di servizi;5;Utenze e canoni;1;Telefonia fissa;10/07/2023
2329;4;9999999;97,6;1.200,09;TIM SPA - TELECOM ITALIA SPA;Z502F0ADA2;SALDO Fatt.n. 8E00520726  del 10/06/2023 PERIODO 4 APR-MAG 2023 FAX POLIZIA LOCALE;05/07/2023;134;0;944;1;Spese correnti;3;Acquisto di beni e servizi;2;Acquisto di servizi;5;Utenze e canoni;1;Telefonia fissa;10/07/2023
2329;5;9999999;109,8;1.200,09;TIM SPA - TELECOM ITALIA SPA;Z502F0ADA2;SALDO Fatt.n. 8E00521175  del 10/06/2023 PERIODO 4 APR-MAG 2023 UTENZA SERVIZI SOCIALI;05/07/2023;134;0;944;1;Spese correnti;3;Acquisto di beni e servizi;2;Acquisto di servizi;5;Utenze e canoni;1;Telefonia fissa;10/07/2023
2329;6;9999999;122;1.200,09;TIM SPA - TELECOM ITALIA SPA;Z502F0ADA2;SALDO Fatt.n. 8E00522889  del 10/06/2023 PERIODO 4 APR-MAG 2023 UTENZA BIBLIOTECA COMUNALE;05/07/2023;134;0;944;1;Spese correnti;3;Acquisto di beni e servizi;2;Acquisto di servizi;5;Utenze e canoni;1;Telefonia fissa;10/07/2023
2329;7;9999999;122;1.200,09;TIM SPA - TELECOM ITALIA SPA;Z502F0ADA2;SALDO Fatt.n. 8E00523913  del 10/06/2023 PERIODO 4 APR-MAG 2023 UTENZA POLIZIA LOCALE;05/07/2023;134;0;944;1;Spese correnti;3;Acquisto di beni e servizi;2;Acquisto di servizi;5;Utenze e canoni;1;Telefonia fissa;10/07/2023
2329;8;9999999;122;1.200,09;TIM SPA - TELECOM ITALIA SPA;Z502F0ADA2;SALDO Fatt.n. 8E00526656  del 10/06/2023 PERIODO 4 APR-MAG 2023 UTENZA SEDE MUNICIPALE;05/07/2023;134;0;944;1;Spese correnti;3;Acquisto di beni e servizi;2;Acquisto di servizi;5;Utenze e canoni;1;Telefonia fissa;10/07/2023
2329;9;9999999;127,94;1.200,09;TIM SPA - TELECOM ITALIA SPA;Z502F0ADA2;SALDO Fatt.n. 8E00524069  del 10/06/2023 PERIODO 4 APR-MAG 2023 UTENZA SEDE MUNICIPALE;05/07/2023;134;0;944;1;Spese correnti;3;Acquisto di beni e servizi;2;Acquisto di servizi;5;Utenze e canoni;1;Telefonia fissa;10/07/2023
2329;10;9999999;134,2;1.200,09;TIM SPA - TELECOM ITALIA SPA;Z502F0ADA2;SALDO Fatt.n. 8E00525609  del 10/06/2023 PERIODO 4 APR-MAG 2023 FAX CENTRO PRELIEVI;05/07/2023;134;0;944;1;Spese correnti;3;Acquisto di beni e servizi;2;Acquisto di servizi;5;Utenze e canoni;1;Telefonia fissa;10/07/2023
2329;11;9999999;144,95;1.200,09;TIM SPA - TELECOM ITALIA SPA;Z502F0ADA2;SALDO Fatt.n. 8E00527212  del 10/06/2023 PERIODO 4 APR-MAG 2023 UTENZA SEDE MUNICIPALE;05/07/2023;134;0;944;1;Spese correnti;3;Acquisto di beni e servizi;2;Acquisto di servizi;5;Utenze e canoni;1;Telefonia fissa;10/07/2023
2330;1;9999999;321,3;321,3;TIM SPA - TELECOM ITALIA SPA;ZC0320B772;SALDO Fatt.n. 7X02789815  del 10/06/2023 PERIODO 4 APR-MAG 2023 CONVENZIONE CONSIP TELEFONIA MOBILE 8;05/07/2023;134;32;178;1;Spese correnti;3;Acquisto di beni e servizi;2;Acquisto di servizi;5;Utenze e canoni;2;Telefonia mobile;10/07/2023
2331;1;9999999;5.471,70;5.471,70;STUDIO LEGALE ASSOCIATO GARBISI - RAMPINELLI;ZE33BAB8B4;SALDO Fatt.n. 62  del 29/06/2023 ASSISTENZA E CONSULENZA AL COMUNE DI SMS NEL PROCEDIMENTO PENALE  n. 9819/2019 R.G.N.R. - 4320/2020 R.G. G.I.P. AVANTI IL GIUDICE PER LE INDAGINI PRELIMINARI  PRESSO IL TRIBUNALE DI VENEZIA;06/07/2023;40;0;568;1;Spese correnti;3;Acquisto di beni e servizi;2;Acquisto di servizi;11;Prestazioni professionali e specialistiche;6;Patrocinio legale;10/07/2023
2332;1;9999999;44,98;44,98;DOLOMITI ENERGIA SPA;9127403B39;ACCONTO Fatt.n. 42303086002  del 23/06/2023 MAGGIO 2023 CONSUMI MAGAZZINO COMUNALE;06/07/2023;134;30;536;1;Spese correnti;3;Acquisto di beni e servizi;2;Acquisto di servizi;5;Utenze e canoni;6;Gas;10/07/2023
2333;1;9999999;2,92;2,92;DOLOMITI ENERGIA SPA;9127403B39;SALDO Fatt.n. 42303054957  del 23/06/2023 MAGGIO 2023 CONSUMI IMMOBILE COMUNALE VIA OLIMPIA SMS;06/07/2023;134;30;536;1;Spese correnti;3;Acquisto di beni e servizi;2;Acquisto di servizi;5;Utenze e canoni;6;Gas;10/07/2023
2334;1;9999999;26,62;26,62;DOLOMITI ENERGIA SPA;9127403B39;ACCONTO Fatt.n. 42303085999  del 23/06/2023 MAGGIO 2023 CONSUMI ALLOGGIO VIA DON GALLERANI CALTANA;06/07/2023;134;30;536;1;Spese correnti;3;Acquisto di beni e servizi;2;Acquisto di servizi;5;Utenze e canoni;6;Gas;10/07/2023
2335;1;9999999;201,6;201,6;DOLOMITI ENERGIA SPA;9127403B39;ACCONTO Fatt.n. 42303054950  del 23/06/2023 MAGGIO 2023 CONSUMI SC. ELEM - PALESTRA STIGLIANO;06/07/2023;134;31;537;1;Spese correnti;3;Acquisto di beni e servizi;2;Acquisto di servizi;5;Utenze e canoni;6;Gas;10/07/2023
2336;1;9999999;216,18;216,18;DOLOMITI ENERGIA SPA;9127403B39;ACCONTO Fatt.n. 42303054950  del 23/06/2023 MAGGIO 2023 CONSUMI SC. ELEM - PALESTRA STIGLIANO;06/07/2023;134;31;537;1;Spese correnti;3;Acquisto di beni e servizi;2;Acquisto di servizi;5;Utenze e canoni;6;Gas;10/07/2023
2337;1;9999999;219;219;DOLOMITI ENERGIA SPA;9127403B39;ACCONTO Fatt.n. 42303054956  del 23/06/2023 MAGGIO 2023 CONSUMI SC. ELEM - PALESTRA - ASILO S.ANGELO;06/07/2023;134;31;537;1;Spese correnti;3;Acquisto di beni e servizi;2;Acquisto di servizi;5;Utenze e canoni;6;Gas;10/07/2023
2338;1;9999999;655,73;655,73;DOLOMITI ENERGIA SPA;9127403B39;ACCONTO Fatt.n. 42303054956  del 23/06/2023 MAGGIO 2023 CONSUMI SC. ELEM - PALESTRA - ASILO S.ANGELO;06/07/2023;134;31;537;1;Spese correnti;3;Acquisto di beni e servizi;2;Acquisto di servizi;5;Utenze e canoni;6;Gas;10/07/2023
2339;1;9999999;183;183;DOLOMITI ENERGIA SPA;9127403B39;ACCONTO Fatt.n. 42303054954  del 23/06/2023 MAGGIO 2023 CONSUMI SC. ELEM - PALESTRA CASELLE;06/07/2023;134;31;537;1;Spese correnti;3;Acquisto di beni e servizi;2;Acquisto di servizi;5;Utenze e canoni;6;Gas;10/07/2023
2340;1;9999999;266,23;266,23;DOLOMITI ENERGIA SPA;9127403B39;ACCONTO Fatt.n. 42303054954  del 23/06/2023 MAGGIO 2023 CONSUMI SC. ELEM - PALESTRA CASELLE;06/07/2023;134;31;537;1;Spese correnti;3;Acquisto di beni e servizi;2;Acquisto di servizi;5;Utenze e canoni;6;Gas;10/07/2023
2341;1;9999999;403,57;403,57;DOLOMITI ENERGIA SPA;9127403B39;ACCONTO Fatt.n. 42303054952  del 23/06/2023 MAGGIO 2023 CONSUMI VILLA FARSETTI;06/07/2023;134;31;232;1;Spese correnti;3;Acquisto di beni e servizi;2;Acquisto di servizi;5;Utenze e canoni;6;Gas;10/07/2023
2342;1;9999999;121,58;121,58;DOLOMITI ENERGIA SPA;9127403B39;ACCONTO Fatt.n. 42303086001  del 23/06/2023 MAGGIO 2023 CONSUMI PALESTRA SMS;06/07/2023;134;31;232;1;Spese correnti;3;Acquisto di beni e servizi;2;Acquisto di servizi;5;Utenze e canoni;6;Gas;10/07/2023
2343;1;9999999;121,57;121,57;DOLOMITI ENERGIA SPA;9127403B39;SALDO Fatt.n. 42303086001  del 23/06/2023 MAGGIO 2023 CONSUMI PALESTRA SMS;06/07/2023;134;31;232;1;Spese correnti;3;Acquisto di beni e servizi;2;Acquisto di servizi;5;Utenze e canoni;6;Gas;10/07/2023
2344;1;9999999;302,4;302,4;DOLOMITI ENERGIA SPA;9127403B39;SALDO Fatt.n. 42303054950  del 23/06/2023 MAGGIO 2023 CONSUMI SC. ELEM - PALESTRA STIGLIANO;06/07/2023;1334;30;538;1;Spese correnti;3;Acquisto di beni e servizi;2;Acquisto di servizi;5;Utenze e canoni;6;Gas;10/07/2023
2345;1;9999999;219;219;DOLOMITI ENERGIA SPA;9127403B39;SALDO Fatt.n. 42303054956  del 23/06/2023 MAGGIO 2023 CONSUMI SC. ELEM - PALESTRA - ASILO S.ANGELO;06/07/2023;1334;30;538;1;Spese correnti;3;Acquisto di beni e servizi;2;Acquisto di servizi;5;Utenze e canoni;6;Gas;10/07/2023
2346;1;9999999;183;183;DOLOMITI ENERGIA SPA;9127403B39;ACCONTO Fatt.n. 42303054954  del 23/06/2023 MAGGIO 2023 CONSUMI SC. ELEM - PALESTRA CASELLE;06/07/2023;1334;30;538;1;Spese correnti;3;Acquisto di beni e servizi;2;Acquisto di servizi;5;Utenze e canoni;6;Gas;10/07/2023
2347;1;9999999;62,46;62,46;DOLOMITI ENERGIA SPA;9127403B39;SALDO Fatt.n. 42303085999  del 23/06/2023 MAGGIO 2023 CONSUMI ALLOGGIO VIA DON GALLERANI CALTANA;06/07/2023;1334;30;538;1;Spese correnti;3;Acquisto di beni e servizi;2;Acquisto di servizi;5;Utenze e canoni;6;Gas;10/07/2023
2348;1;9999999;34,44;34,44;DOLOMITI ENERGIA SPA;9127403B39;SALDO Fatt.n. 42303054955  del 23/06/2023 MAGGIO 2023 CONSUMI SEDE MUNICIPALE;06/07/2023;1334;30;538;1;Spese correnti;3;Acquisto di beni e servizi;2;Acquisto di servizi;5;Utenze e canoni;6;Gas;10/07/2023
2349;1;9999999;34,44;34,44;DOLOMITI ENERGIA SPA;9127403B39;SALDO Fatt.n. 42303054953  del 23/06/2023 MAGGIO 2023 CONSUMI SC. ELEM. CALTANA;06/07/2023;1334;30;538;1;Spese correnti;3;Acquisto di beni e servizi;2;Acquisto di servizi;5;Utenze e canoni;6;Gas;10/07/2023
2350;1;9999999;74,52;74,52;DOLOMITI ENERGIA SPA;9127403B39;SALDO Fatt.n. 42303086000  del 23/06/2023 MAGGIO 2023 CONSUMI SC. ELEM. SMS;06/07/2023;1334;30;538;1;Spese correnti;3;Acquisto di beni e servizi;2;Acquisto di servizi;5;Utenze e canoni;6;Gas;10/07/2023
2351;1;9999999;26,6;26,6;DOLOMITI ENERGIA SPA;9127403B39;ACCONTO Fatt.n. 42303054952  del 23/06/2023 MAGGIO 2023 CONSUMI VILLA FARSETTI;06/07/2023;1334;30;538;1;Spese correnti;3;Acquisto di beni e servizi;2;Acquisto di servizi;5;Utenze e canoni;6;Gas;10/07/2023
2352;1;9999999;274,03;274,03;DOLOMITI ENERGIA SPA;9127403B39;SALDO Fatt.n. 42303086004  del 23/06/2023 MAGGIO 2023 CONSUMI IMP. SPORT. CASELLE;06/07/2023;1934;0;540;1;Spese correnti;3;Acquisto di beni e servizi;2;Acquisto di servizi;5;Utenze e canoni;6;Gas;10/07/2023
2353;1;9999999;153,11;153,11;DOLOMITI ENERGIA SPA;9127403B39;ACCONTO Fatt.n. 42303054951  del 23/06/2023 MAGGIO 2023 CONSUMI SC. ELEM. - PALESTRA VETERNIGO;06/07/2023;1934;0;540;1;Spese correnti;3;Acquisto di beni e servizi;2;Acquisto di servizi;5;Utenze e canoni;6;Gas;10/07/2023
2354;1;9999999;116,99;116,99;DOLOMITI ENERGIA SPA;9127403B39;SALDO Fatt.n. 42303086002  del 23/06/2023 MAGGIO 2023 CONSUMI MAGAZZINO COMUNALE;06/07/2023;3534;0;541;1;Spese correnti;3;Acquisto di beni e servizi;2;Acquisto di servizi;5;Utenze e canoni;6;Gas;10/07/2023
2355;1;9999999;153,11;153,11;DOLOMITI ENERGIA SPA;9127403B39;ACCONTO Fatt.n. 42303054951  del 23/06/2023 MAGGIO 2023 CONSUMI SC. ELEM. - PALESTRA VETERNIGO;06/07/2023;4234;0;543;1;Spese correnti;3;Acquisto di beni e servizi;2;Acquisto di servizi;5;Utenze e canoni;6;Gas;10/07/2023
2356;1;9999999;294,7;294,7;DOLOMITI ENERGIA SPA;9127403B39;SALDO Fatt.n. 42303054951  del 23/06/2023 MAGGIO 2023 CONSUMI SC. ELEM. - PALESTRA VETERNIGO;06/07/2023;4234;0;543;1;Spese correnti;3;Acquisto di beni e servizi;2;Acquisto di servizi;5;Utenze e canoni;6;Gas;10/07/2023
2357;1;9999999;280,87;280,87;DOLOMITI ENERGIA SPA;9127403B39;SALDO Fatt.n. 42303054954  del 23/06/2023 MAGGIO 2023 CONSUMI SC. ELEM - PALESTRA CASELLE;06/07/2023;4234;0;543;1;Spese correnti;3;Acquisto di beni e servizi;2;Acquisto di servizi;5;Utenze e canoni;6;Gas;10/07/2023
2358;1;9999999;225,11;225,11;DOLOMITI ENERGIA SPA;9127403B39;SALDO Fatt.n. 42303054952  del 23/06/2023 MAGGIO 2023 CONSUMI VILLA FARSETTI;06/07/2023;4234;0;543;1;Spese correnti;3;Acquisto di beni e servizi;2;Acquisto di servizi;5;Utenze e canoni;6;Gas;10/07/2023
2359;1;9999999;343,44;343,44;DOLOMITI ENERGIA SPA;9127403B39;ACCONTO Fatt.n. 42303086003  del 23/06/2023 MAGGIO 2023 CONSUMI PALESTRA CALTANA;06/07/2023;4234;0;543;1;Spese correnti;3;Acquisto di beni e servizi;2;Acquisto di servizi;5;Utenze e canoni;6;Gas;10/07/2023
2360;1;9999999;343,43;343,43;DOLOMITI ENERGIA SPA;9127403B39;SALDO Fatt.n. 42303086003  del 23/06/2023 MAGGIO 2023 CONSUMI PALESTRA CALTANA;06/07/2023;4234;0;543;1;Spese correnti;3;Acquisto di beni e servizi;2;Acquisto di servizi;5;Utenze e canoni;6;Gas;10/07/2023
2362;1;9999999;26,21;26,21;C/C/P 15453301 SERVIZIO DI TESORERIA COM; ;SPESE GESTIONE CONTO CORRENTE POSTALE GIUGNO  2023;07/07/2023;146;0;52;1;Spese correnti;3;Acquisto di beni e servizi;2;Acquisto di servizi;17;Servizi finanziari;999;Spese per servizi finanziari n.a.c.;11/07/2023
2363;1;9999999;200,21;200,21;ABACO S.P.A.;766214493F;SALDO Fatt.n. 2023140002289  del 09/06/2023 AGGIO SU RISCOSSO COMUNE DI S. MARIA DI SALA - CDS LOTTO 2 - Ante L.160-19 RENDICONTO DELLA GESTIONE DAL 01/05/2023 AL 31/05/2023 CIG. 766214493F;07/07/2023;1132;0;30;1;Spese correnti;3;Acquisto di beni e servizi;2;Acquisto di servizi;3;Aggi di riscossione;999;Altri aggi di riscossione n.a.c.;11/07/2023
2364;1;9999999;289,98;289,98;EL BOTTEGON SNC;ZAE3B2B5FC;SALDO Fatt.n. 19  del 22/06/2023 ACQUISTO VESTIARIO ESTIVO PER IL PERSONALE OPERAIO DEL SETTORE TECNICO;07/07/2023;521;0;439;1;Spese correnti;3;Acquisto di beni e servizi;1;Acquisto di beni;2;Altri beni di consumo;4;Vestiario;11/07/2023
2365;1;9999999;106,13;106,13;C.E.I.F. DI BESSEGA DANIELE;Z2A39B329B;SALDO Fatt.n. 1-8  del 30/06/2023 MATERIALE VARIO PER MANUTENZIONI;07/07/2023;522;0;81;1;Spese correnti;3;Acquisto di beni e servizi;1;Acquisto di beni;2;Altri beni di consumo;999;Altri beni e materiali di consumo n.a.c.;11/07/2023
2366;1;9999999;784,9;784,9;KYOCERA DOCUMENT SOLUTIONS ITALIA SPA;ZB93086395;SALDO Fatt.n. 1010841626  del 21/06/2023 FOTOCOPIATRICI 32 - LOTTO 5 - 60 MESI - CANONE PERIODO DAL 13.03.2023 AL 12.06.2023;07/07/2023;748;0;106;1;Spese correnti;3;Acquisto di beni e servizi;2;Acquisto di servizi;19;Servizi informatici e di telecomunicazioni;7;Servizi di gestione documentale;11/07/2023
2367;1;9999999;270,41;270,41;KYOCERA DOCUMENT SOLUTIONS ITALIA SPA;Z202CF11D4;SALDO Fatt.n. 1010841625  del 21/06/2023 FOTOCOPIATRICI 31 - LOTTO 3 - 60 MESI CANONE DAL 18/03/2023 AL 17/06/2023;07/07/2023;748;0;450;1;Spese correnti;3;Acquisto di beni e servizi;2;Acquisto di servizi;19;Servizi informatici e di telecomunicazioni;9;Servizi per le postazioni di lavoro e relativa manutenzione;11/07/2023
2368;1;9999999;108;108;PUBLIKA SRL;Z833B73345;SALDO Fatt.n. 2551/PA  del 20/06/2023 CORSO WEBINAR IN TEMA DI  LA PREVIDENZA COMPLEMENTARE IL FONDO PERSEO SIRIO -;07/07/2023;833;0;532;1;Spese correnti;3;Acquisto di beni e servizi;2;Acquisto di servizi;4;Acquisto di servizi per formazione e addestramento del personale dell'ente;4;Acquisto di servizi per formazione obbligatoria;11/07/2023
2369;1;9999999;59,62;2.386,56;VODAFONE ITALIA SPA;Z6C2BED875;SALDO Fatt.n. AP11301716  del 29/06/2023 PERIODO  DAL 28 APRILE AL  26 GIUGNO 2023 - TELEFONIA;07/07/2023;1334;0;24;1;Spese correnti;3;Acquisto di beni e servizi;2;Acquisto di servizi;5;Utenze e canoni;1;Telefonia fissa;11/07/2023
2369;2;9999999;225,57;2.386,56;VODAFONE ITALIA SPA;Z6C2BED875;SALDO Fatt.n. AP11301717  del 29/06/2023 PERIODO  DAL 28 APRILE AL  26 GIUGNO 2023 - TELEFONIA;07/07/2023;1334;0;24;1;Spese correnti;3;Acquisto di beni e servizi;2;Acquisto di servizi;5;Utenze e canoni;1;Telefonia fissa;11/07/2023
2369;3;9999999;933,59;2.386,56;VODAFONE ITALIA SPA;Z6C2BED875;SALDO Fatt.n. AP11301067  del 29/06/2023 PERIODO  DAL 28 APRILE AL  26 GIUGNO 2023 - TELEFONIA;07/07/2023;1334;0;24;1;Spese correnti;3;Acquisto di beni e servizi;2;Acquisto di servizi;5;Utenze e canoni;1;Telefonia fissa;11/07/2023
2369;4;9999999;1.167,78;2.386,56;VODAFONE ITALIA SPA;Z6C2BED875;SALDO Fatt.n. AP11301279  del 29/06/2023 PERIODO  DAL 28 APRILE AL  26 GIUGNO 2023 - TELEFONIA;07/07/2023;1334;0;24;1;Spese correnti;3;Acquisto di beni e servizi;2;Acquisto di servizi;5;Utenze e canoni;1;Telefonia fissa;11/07/2023
2370;1;9999999;276,18;276,18;SAVIO ALESSIA; ;CONTRIBUTO ECONOMICO DESTINATO ALLE FAMIGLIE PER LA FREQUENZA DEI CENTRI ESTIVI  ALLO SCOPO DI FAVORIRE LA SOCIALIZIZZAZIONE DEI MINORI E/O LA CONCILIAZIONE DEI TEMPI DI VITA LAVORO DEI GENITORI.;07/07/2023;4157;53;567;1;Spese correnti;4;Trasferimenti correnti;2;Trasferimenti correnti a Famiglie;2;Interventi assistenziali;999;Altri assegni e sussidi assistenziali;11/07/2023
2371;1;9999999;2.745,00;2.745,00;ABACO S.P.A.;ZC436FF08A;SALDO Fatt.n. 2023140002473  del 27/06/2023 SERVIZIO RISCOSSIONE CORRISPETTIVI TRASPORTO SCOLASTICO  E  REFEZIONE SCOLASTICA PER LE SCUOLE COMUNALI  PERIODO DAL 01-01-2023 AL 30-06-2023;10/07/2023;1348;0;603;1;Spese correnti;3;Acquisto di beni e servizi;2;Acquisto di servizi;19;Servizi informatici e di telecomunicazioni;1;Gestione e manutenzione applicazioni;12/07/2023
2372;1;9999999;15.780,70;15.780,70;TREVISAN FEDERICO;9124726A18;SALDO Fatt.n. 3/B00  del 21/06/2023 LAVORI DI SFALCIO ERBA BANCHINE STRADALI  -  SECONDO INTERVENTO;10/07/2023;2549;0;335;1;Spese correnti;3;Acquisto di beni e servizi;2;Acquisto di servizi;99;Altri servizi;9;Acquisto di sevizi per verde e arredo urbano;12/07/2023
2373;1;9999999;2.925,16;2.925,16;ARTEA  SNC DI LION & SALVIATO;90182921FD;SALDO Fatt.n. 15-2023/PA  del 15/06/2023 OPERAZIONI EFFETTUATE NEI CIMITERI DEL COMUNE DI SANTA MARIA DI SALA NEL MESE DI MAGGIO 2023;10/07/2023;4438;0;1152;1;Spese correnti;3;Acquisto di beni e servizi;2;Acquisto di servizi;9;Manutenzione ordinaria e riparazioni;8;Manutenzione ordinaria e riparazioni di beni immobili;12/07/2023
2374;1;9999999;10.000,00;10.000,00;EUROTECNICA SALMASO SRL;ZA53B10B04;ACCONTO Fatt.n. 265  del 22/06/2023 SOSTITUZIONE VIDEOPROIETTORE E INSTALLAZIONE SISTEMA STREEMING PER LA SALA CONSILIARE;10/07/2023;7420;5;424;2;Spese in conto capitale;2;Investimenti fissi lordi e acquisto di terreni;1;Beni materiali;99;Altri beni materiali;999;Altri beni materiali diversi;12/07/2023
2375;1;9999999;977,56;977,56;EUROTECNICA SALMASO SRL;ZA53B10B04;SALDO Fatt.n. 265  del 22/06/2023 SOSTITUZIONE VIDEOPROIETTORE E INSTALLAZIONE SISTEMA STREEMING PER LA SALA CONSILIARE;10/07/2023;7440;0;425;2;Spese in conto capitale;2;Investimenti fissi lordi e acquisto di terreni;1;Beni materiali;7;Hardware;999;Hardware n.a.c.;12/07/2023
2376;1;9999999;13.889,70;13.889,70;BADO S.R.L.;Z163B79655;SALDO Fatt.n. 1/44  del 27/06/2023 FORNITURA SEDIE DA ESTERNO PER MANIFESTAZIONI;10/07/2023;7450;5;533;2;Spese in conto capitale;2;Investimenti fissi lordi e acquisto di terreni;1;Beni materiali;99;Altri beni materiali;999;Altri beni materiali diversi;12/07/2023
2377;1;9999999;280,6;280,6;PSR PRODUCT SERVICE ROAD S.R.L.;Z7F3B711D6;SALDO Fatt.n. 103/VPA  del 29/06/2023 RIPRISTINO SEGNALETICA INCIDENTATATA INCROCIO TRA VIA NOALESE E VIA COGNARO;10/07/2023;8565;0;508;2;Spese in conto capitale;2;Investimenti fissi lordi e acquisto di terreni;1;Beni materiali;9;Beni immobili;12;Infrastrutture stradali;12/07/2023
2378;1;9999999;24,51;24,51;C/C/P 1039683022 -RISCOSSIONE COATTIVA EX ICP DPA; ;SPESE GESTIONE CONTI CORRENTI POSTALI RISCOSSIONE COATTIVA GIUGNO 2023;10/07/2023;146;0;52;1;Spese correnti;3;Acquisto di beni e servizi;2;Acquisto di servizi;17;Servizi finanziari;999;Spese per servizi finanziari n.a.c.;12/07/2023
2379;1;9999999;9,62;21,74;BANCA MPS SPA; ;16520 COMUNE DI SANTA MARIA DI SALA CC 16520-COMMISSIONI DEL 05/06/23 (P. 12 -R. del 06/06/2023);10/07/2023;146;0;100;1;Spese correnti;3;Acquisto di beni e servizi;2;Acquisto di servizi;17;Servizi finanziari;999;Spese per servizi finanziari n.a.c.;11/07/2023
2379;2;9999999;12,12;21,74;BANCA MPS SPA; ;16520 COMUNE DI SANTA MARIA DI SALA CC 16520-COMMISSIONI DEL 05/07/23 (P. 14 -R. del 06/07/2023);10/07/2023;146;0;100;1;Spese correnti;3;Acquisto di beni e servizi;2;Acquisto di servizi;17;Servizi finanziari;999;Spese per servizi finanziari n.a.c.;11/07/2023
2380;1;9999999;1.459,12;1.459,12;OMESSO NOMINATIVO NEL RISPETTO DELLA NORMATIVA SULLA PROTEZIONE DATI PERSONALI;Z5F3B70259;SALDO Fatt.n. 2023/VE1/19  del 05/07/2023 INCARICO ASSISTENZA AMMINISTRATIVA PROC. PENALE N. 9819-2019;11/07/2023;40;0;553;1;Spese correnti;3;Acquisto di beni e servizi;2;Acquisto di servizi;11;Prestazioni professionali e specialistiche;6;Patrocinio legale;14/07/2023
2381;1;9999999;5.236,84;5.236,84;BONAVENTURA EXPRESS SRL;8704892021;SALDO Fatt.n. 346PA  del 15/06/2023 TRASPORTO SCOLASTICO GIUGNO 2023;11/07/2023;1344;0;388;1;Spese correnti;3;Acquisto di beni e servizi;2;Acquisto di servizi;15;Contratti di servizio pubblico;2;Contratti di servizio di trasporto scolastico;14/07/2023
2382;1;9999999;299,88;299,88;CERERIA S.ANTONIO DI MIAZZO VINCENZO;ZD23BB7546;SALDO Fatt.n. PA4  del 28/06/2023 ACCESSORI PER FIACCOLATA DEL 30 GIUGNO 2023 UNA LUCE CONTRO LA VIOLENZA;11/07/2023;1821;0;576;1;Spese correnti;3;Acquisto di beni e servizi;1;Acquisto di beni;2;Altri beni di consumo;999;Altri beni e materiali di consumo n.a.c.;14/07/2023
2384;1;9999999;2.120,81;2.120,81;AGENZIA DELLE ENTRATE - IVA; ;LIQUIDAZIONE IVA COMMERCIALE MESE DI GIUGNO 2023;11/07/2023;291;0;595;1;Spese correnti;10;Altre spese correnti;3;Versamenti IVA a debito;1;Versamenti IVA a debito per le gestioni commerciali;1;Versamenti IVA a debito per le gestioni commerciali;14/07/2023
2385;1;9999999;600;600;OMESSO NOMINATIVO NEL RISPETTO DELLA NORMATIVA SULLA PROTEZIONE DATI PERSONALI; ;CONTRIBUTO REGIONALE IMPEGNATIVA DI CURA DOMICILIARE ICD M e Mgs - 1 TRIMESTRE 2023.;12/07/2023;3957;50;526;1;Spese correnti;4;Trasferimenti correnti;2;Trasferimenti correnti a Famiglie;2;Interventi assistenziali;999;Altri assegni e sussidi assistenziali;18/07/2023
2386;1;9999999;250;250;OMESSO NOMINATIVO NEL RISPETTO DELLA NORMATIVA SULLA PROTEZIONE DATI PERSONALI; ;GIUGNO 2023 - PROGETTO RIA;12/07/2023;3957;54;124;1;Spese correnti;4;Trasferimenti correnti;2;Trasferimenti correnti a Famiglie;5;Altri trasferimenti a famiglie;999;Altri trasferimenti a famiglie n.a.c.;18/07/2023
2387;1;9999999;250;250;OMESSO NOMINATIVO NEL RISPETTO DELLA NORMATIVA SULLA PROTEZIONE DATI PERSONALI; ;GIUGNO 2023 - PROGETTO RIA;12/07/2023;3957;54;124;1;Spese correnti;4;Trasferimenti correnti;2;Trasferimenti correnti a Famiglie;5;Altri trasferimenti a famiglie;999;Altri trasferimenti a famiglie n.a.c.;17/07/2023
2388;1;9999999;250;250;OMESSO NOMINATIVO NEL RISPETTO DELLA NORMATIVA SULLA PROTEZIONE DATI PERSONALI; ;GIUGNO 2023 - PROGETTO RIA;12/07/2023;3957;54;124;1;Spese correnti;4;Trasferimenti correnti;2;Trasferimenti correnti a Famiglie;5;Altri trasferimenti a famiglie;999;Altri trasferimenti a famiglie n.a.c.;24/07/2023
2389;1;9999999;250;250;OMESSO NOMINATIVO NEL RISPETTO DELLA NORMATIVA SULLA PROTEZIONE DATI PERSONALI; ;GIUGNO 2023 - PROGETTO RIA;12/07/2023;3957;54;124;1;Spese correnti;4;Trasferimenti correnti;2;Trasferimenti correnti a Famiglie;5;Altri trasferimenti a famiglie;999;Altri trasferimenti a famiglie n.a.c.;17/07/2023
2390;1;9999999;250;250;OMESSO NOMINATIVO NEL RISPETTO DELLA NORMATIVA SULLA PROTEZIONE DATI PERSONALI; ;GIUGNO 2023 - PROGETTO RIA;12/07/2023;3957;54;124;1;Spese correnti;4;Trasferimenti correnti;2;Trasferimenti correnti a Famiglie;5;Altri trasferimenti a famiglie;999;Altri trasferimenti a famiglie n.a.c.;17/07/2023
2391;1;9999999;250;250;OMESSO NOMINATIVO NEL RISPETTO DELLA NORMATIVA SULLA PROTEZIONE DATI PERSONALI; ;GIUGNO 2023 - PROGETTO RIA;12/07/2023;3957;54;124;1;Spese correnti;4;Trasferimenti correnti;2;Trasferimenti correnti a Famiglie;5;Altri trasferimenti a famiglie;999;Altri trasferimenti a famiglie n.a.c.;17/07/2023
2392;1;9999999;23,52;23,52;COMUNE DI MIRANO; ;RIMBORSO SPESE DI NOTIFICA VS. PROT.40586/2023 (ns.prot.15619/2023);12/07/2023;146;0;48;1;Spese correnti;3;Acquisto di beni e servizi;2;Acquisto di servizi;17;Servizi finanziari;999;Spese per servizi finanziari n.a.c.;17/07/2023
2393;1;9999999;600;600;OMESSO NOMINATIVO NEL RISPETTO DELLA NORMATIVA SULLA PROTEZIONE DATI PERSONALI; ;CONTRIBUtO REGIONALE IMPEGNATIVA DI CURA DOMICILIARE ICD M e Mgs - 1 TRIMESTRE 2023.;13/07/2023;3957;50;526;1;Spese correnti;4;Trasferimenti correnti;2;Trasferimenti correnti a Famiglie;2;Interventi assistenziali;999;Altri assegni e sussidi assistenziali;18/07/2023
2394;1;9999999;10.566,78;10.566,78;DIVERSI-AMMINISTRATORI COM.LI; ;STIPENDI MESE DI LUGLIO 23;13/07/2023;30;99;0;1;Spese correnti;3;Acquisto di beni e servizi;2;Acquisto di servizi;1;Organi e incarichi istituzionali dell'amministrazione;1;Organi istituzionali dell'amministrazione - Indennità;26/07/2023
2469;1;9999999;150;150;OMESSO NOMINATIVO NEL RISPETTO DELLA NORMATIVA SULLA PROTEZIONE DATI PERSONALI; ;LUGLIO 2023 MINIMO VITALE;14/07/2023;4157;0;584;1;Spese correnti;4;Trasferimenti correnti;2;Trasferimenti correnti a Famiglie;2;Interventi assistenziali;999;Altri assegni e sussidi assistenziali;25/07/2023
2470;1;9999999;1.000,00;1.000,00;OMESSO NOMINATIVO NEL RISPETTO DELLA NORMATIVA SULLA PROTEZIONE DATI PERSONALI; ;LUGLIO 2023 MINIMO VITALE;14/07/2023;4157;0;586;1;Spese correnti;4;Trasferimenti correnti;2;Trasferimenti correnti a Famiglie;2;Interventi assistenziali;999;Altri assegni e sussidi assistenziali;18/07/2023
2471;1;9999999;150;150;OMESSO NOMINATIVO NEL RISPETTO DELLA NORMATIVA SULLA PROTEZIONE DATI PERSONALI; ;LUGLIO 2023 MINIMO VITALE;14/07/2023;4157;0;494;1;Spese correnti;4;Trasferimenti correnti;2;Trasferimenti correnti a Famiglie;2;Interventi assistenziali;999;Altri assegni e sussidi assistenziali;25/07/2023
2472;1;9999999;150;150;OMESSO NOMINATIVO NEL RISPETTO DELLA NORMATIVA SULLA PROTEZIONE DATI PERSONALI; ;LUGLIO 2023 MINIMO VITALE;14/07/2023;4157;0;104;1;Spese correnti;4;Trasferimenti correnti;2;Trasferimenti correnti a Famiglie;2;Interventi assistenziali;999;Altri assegni e sussidi assistenziali;10/08/2023
2473;1;9999999;150;150;OMESSO NOMINATIVO NEL RISPETTO DELLA NORMATIVA SULLA PROTEZIONE DATI PERSONALI; ;LUGLIO 2023 MINIMO VITALE;14/07/2023;4157;0;497;1;Spese correnti;4;Trasferimenti correnti;2;Trasferimenti correnti a Famiglie;2;Interventi assistenziali;999;Altri assegni e sussidi assistenziali;18/07/2023
2474;1;9999999;100;100;OMESSO NOMINATIVO NEL RISPETTO DELLA NORMATIVA SULLA PROTEZIONE DATI PERSONALI; ;LUGLIO 2023 MINIMO VITALE;14/07/2023;4157;0;493;1;Spese correnti;4;Trasferimenti correnti;2;Trasferimenti correnti a Famiglie;2;Interventi assistenziali;999;Altri assegni e sussidi assistenziali;18/07/2023
2475;1;9999999;600;600;OMESSO NOMINATIVO NEL RISPETTO DELLA NORMATIVA SULLA PROTEZIONE DATI PERSONALI; ;LUGLIO 2023 MINIMO VITALE;14/07/2023;4157;0;581;1;Spese correnti;4;Trasferimenti correnti;2;Trasferimenti correnti a Famiglie;2;Interventi assistenziali;999;Altri assegni e sussidi assistenziali;18/07/2023
2476;1;9999999;150;150;OMESSO NOMINATIVO NEL RISPETTO DELLA NORMATIVA SULLA PROTEZIONE DATI PERSONALI; ;LUGLIO 2023 MINIMO VITALE;14/07/2023;4157;0;280;1;Spese correnti;4;Trasferimenti correnti;2;Trasferimenti correnti a Famiglie;2;Interventi assistenziali;999;Altri assegni e sussidi assistenziali;25/07/2023
2477;1;9999999;380;380;OMESSO NOMINATIVO NEL RISPETTO DELLA NORMATIVA SULLA PROTEZIONE DATI PERSONALI; ;LUGLIO 2023 MINIMO VITALE;14/07/2023;4157;0;582;1;Spese correnti;4;Trasferimenti correnti;2;Trasferimenti correnti a Famiglie;2;Interventi assistenziali;999;Altri assegni e sussidi assistenziali;18/07/2023
2478;1;9999999;700;700;OMESSO NOMINATIVO NEL RISPETTO DELLA NORMATIVA SULLA PROTEZIONE DATI PERSONALI; ;LUGLIO 2023 MINIMO VITALE;14/07/2023;4157;0;65;1;Spese correnti;4;Trasferimenti correnti;2;Trasferimenti correnti a Famiglie;2;Interventi assistenziali;999;Altri assegni e sussidi assistenziali;18/07/2023
2479;1;9999999;150;150;OMESSO NOMINATIVO NEL RISPETTO DELLA NORMATIVA SULLA PROTEZIONE DATI PERSONALI; ;LUGLIO 2023 MINIMO VITALE;14/07/2023;4157;0;415;1;Spese correnti;4;Trasferimenti correnti;2;Trasferimenti correnti a Famiglie;2;Interventi assistenziali;999;Altri assegni e sussidi assistenziali;27/07/2023
2480;1;9999999;150;150;OMESSO NOMINATIVO NEL RISPETTO DELLA NORMATIVA SULLA PROTEZIONE DATI PERSONALI; ;LUGLIO 2023 MINIMO VITALE;14/07/2023;4157;0;583;1;Spese correnti;4;Trasferimenti correnti;2;Trasferimenti correnti a Famiglie;2;Interventi assistenziali;999;Altri assegni e sussidi assistenziali;29/09/2023
2481;1;9999999;150;150;OMESSO NOMINATIVO NEL RISPETTO DELLA NORMATIVA SULLA PROTEZIONE DATI PERSONALI; ;LUGLIO 2023 MINIMO VITALE;14/07/2023;4157;0;284;1;Spese correnti;4;Trasferimenti correnti;2;Trasferimenti correnti a Famiglie;2;Interventi assistenziali;999;Altri assegni e sussidi assistenziali;18/07/2023
2482;1;9999999;23,67;145,76;ENEL ENERGIA SPA;9118031536;SALDO Fatt.n. 004345397330  del 27/06/2023 GIUGNO 2022 - CONSUMI ILLUMINAZIONE PUBBLICA;17/07/2023;3544;0;459;1;Spese correnti;3;Acquisto di beni e servizi;2;Acquisto di servizi;15;Contratti di servizio pubblico;15;Contratti di servizio per l'illuminazione pubblica;20/07/2023
2482;2;9999999;24,08;145,76;ENEL ENERGIA SPA;9118031536;SALDO Fatt.n. 004345397337  del 27/06/2023 SETTEMBRE 2022 - CONSUMI ILLUMINAZIONE PUBBLICA;17/07/2023;3544;0;459;1;Spese correnti;3;Acquisto di beni e servizi;2;Acquisto di servizi;15;Contratti di servizio pubblico;15;Contratti di servizio per l'illuminazione pubblica;20/07/2023
2482;3;9999999;24,19;145,76;ENEL ENERGIA SPA;9118031536;SALDO Fatt.n. 004345397340  del 27/06/2023 NOVEMBRE 2022 - CONSUMI ILLUMINAZIONE PUBBLICA;17/07/2023;3544;0;459;1;Spese correnti;3;Acquisto di beni e servizi;2;Acquisto di servizi;15;Contratti di servizio pubblico;15;Contratti di servizio per l'illuminazione pubblica;20/07/2023
2482;4;9999999;24,4;145,76;ENEL ENERGIA SPA;9118031536;SALDO Fatt.n. 004345397332  del 27/06/2023  LUGLIO 2022 - CONSUMI ILLUMINAZIONE PUBBLICA;17/07/2023;3544;0;459;1;Spese correnti;3;Acquisto di beni e servizi;2;Acquisto di servizi;15;Contratti di servizio pubblico;15;Contratti di servizio per l'illuminazione pubblica;20/07/2023
2482;5;9999999;24,67;145,76;ENEL ENERGIA SPA;9118031536;SALDO Fatt.n. 004345397333  del 27/06/2023 AGOSTO 2022 - CONSUMI ILLUMINAZIONE PUBBLICA;17/07/2023;3544;0;459;1;Spese correnti;3;Acquisto di beni e servizi;2;Acquisto di servizi;15;Contratti di servizio pubblico;15;Contratti di servizio per l'illuminazione pubblica;20/07/2023
2482;6;9999999;24,75;145,76;ENEL ENERGIA SPA;9118031536;SALDO Fatt.n. 004345397338  del 27/06/2023 OTTOBRE 2022 - CONSUMI ILLUMINAZIONE PUBBLICA;17/07/2023;3544;0;459;1;Spese correnti;3;Acquisto di beni e servizi;2;Acquisto di servizi;15;Contratti di servizio pubblico;15;Contratti di servizio per l'illuminazione pubblica;20/07/2023
2483;1;9999999;23,73;164,59;ENEL ENERGIA SPA;9118031536;SALDO Fatt.n. 004345397348  del 27/06/2023 FEBBRAIO 2023 - CONSUMI ILLUMINAZIONE PUBBLICA;17/07/2023;3544;0;459;1;Spese correnti;3;Acquisto di beni e servizi;2;Acquisto di servizi;15;Contratti di servizio pubblico;15;Contratti di servizio per l'illuminazione pubblica;20/07/2023
2483;2;9999999;24,89;164,59;ENEL ENERGIA SPA;9118031536;SALDO Fatt.n. 004345397350  del 27/06/2023 MARZO 2023 - CONSUMI ILLUMINAZIONE PUBBLICA;17/07/2023;3544;0;459;1;Spese correnti;3;Acquisto di beni e servizi;2;Acquisto di servizi;15;Contratti di servizio pubblico;15;Contratti di servizio per l'illuminazione pubblica;20/07/2023
2483;3;9999999;25,29;164,59;ENEL ENERGIA SPA;9118031536;SALDO Fatt.n. 004345397343  del 27/06/2023 DICEMBRE 2022 - CONSUMI ILLUMINAZIONE PUBBLICA;17/07/2023;3544;0;459;1;Spese correnti;3;Acquisto di beni e servizi;2;Acquisto di servizi;15;Contratti di servizio pubblico;15;Contratti di servizio per l'illuminazione pubblica;20/07/2023
2483;4;9999999;25,45;164,59;ENEL ENERGIA SPA;9118031536;SALDO Fatt.n. 004345397345  del 27/06/2023 GENNAIO 2023 - CONSUMI ILLUMINAZIONE PUBBLICA;17/07/2023;3544;0;459;1;Spese correnti;3;Acquisto di beni e servizi;2;Acquisto di servizi;15;Contratti di servizio pubblico;15;Contratti di servizio per l'illuminazione pubblica;20/07/2023
2483;5;9999999;32,16;164,59;ENEL ENERGIA SPA;9118031536;SALDO Fatt.n. 004345397352  del 27/06/2023 MAGGIO 2023 - CONSUMI ILLUMINAZIONE PUBBLICA;17/07/2023;3544;0;459;1;Spese correnti;3;Acquisto di beni e servizi;2;Acquisto di servizi;15;Contratti di servizio pubblico;15;Contratti di servizio per l'illuminazione pubblica;20/07/2023
2483;6;9999999;33,07;164,59;ENEL ENERGIA SPA;9118031536;SALDO Fatt.n. 004345397351  del 27/06/2023 APRILE 2023 - CONSUMI ILLUMINAZIONE PUBBLICA;17/07/2023;3544;0;459;1;Spese correnti;3;Acquisto di beni e servizi;2;Acquisto di servizi;15;Contratti di servizio pubblico;15;Contratti di servizio per l'illuminazione pubblica;20/07/2023
2484;1;9999999;140,3;140,3;VEDETTA 2 MONDIALPOL SPA;ZD032B120B;SALDO Fatt.n. V9-2196  del 07/07/2023 GIUGNO 2023 SERVIZIO DI VIGILANZA MAGAZZINO - PROTEZIONE CIVILE V.LE FERRARIS - VILLA FARSETTI;17/07/2023;548;0;688;1;Spese correnti;3;Acquisto di beni e servizi;2;Acquisto di servizi;9;Manutenzione ordinaria e riparazioni;8;Manutenzione ordinaria e riparazioni di beni immobili;20/07/2023
2485;1;9999999;1.207,80;1.207,80;REGGIANI CONSULTING SRL;Z013BA6151;SALDO Fatt.n. 20230245  del 30/06/2023;17/07/2023;748;0;558;1;Spese correnti;3;Acquisto di beni e servizi;2;Acquisto di servizi;19;Servizi informatici e di telecomunicazioni;1;Gestione e manutenzione applicazioni;20/07/2023
2486;1;9999999;2.175,26;2.175,26;F.A.P. SNC;ZEA3B466DB;SALDO Fatt.n. 131/FE  del 30/06/2023 FORNITURA ABBIGLIAMENTO ESTIVO ED ACCESSORI PER LA POLIZIA LOCALE STAGIONE 2023;17/07/2023;1121;6;474;1;Spese correnti;3;Acquisto di beni e servizi;1;Acquisto di beni;2;Altri beni di consumo;4;Vestiario;20/07/2023
2487;1;9999999;1.464,00;1.464,00;PDTEK SRL;Z563B54B9D;SALDO Fatt.n. 44  del 27/06/2023 NOLEGGIO LEDWALL VAN;17/07/2023;1831;0;547;1;Spese correnti;3;Acquisto di beni e servizi;2;Acquisto di servizi;2;Organizzazione eventi, pubblicita` e servizi per trasferta;4;Pubblicita`;20/07/2023
2488;1;9999999;7.405,06;7.405,06;L'ISOLA SOC. COOPERATIVA SOCIALE;9135335CEA;SALDO Fatt.n. 11/PA  del 29/06/2023 INTERVENTI DI MANUTENZIONE VERDE - 3 SFALCIO;17/07/2023;2549;0;338;1;Spese correnti;3;Acquisto di beni e servizi;2;Acquisto di servizi;99;Altri servizi;9;Acquisto di sevizi per verde e arredo urbano;20/07/2023
2489;1;9999999;253,61;253,61;EPIU' SRL - COSTRUIRE INSIEME;Z7939B3159;SALDO Fatt.n. 16669  del 30/06/2023 MATERIALE EDILE PER MANUTENZIONI;17/07/2023;3538;0;80;1;Spese correnti;3;Acquisto di beni e servizi;2;Acquisto di servizi;9;Manutenzione ordinaria e riparazioni;8;Manutenzione ordinaria e riparazioni di beni immobili;20/07/2023
2490;1;9999999;994,06;994,06;ASPEX SRL;ZBF3B277E5;SALDO Fatt.n. 172/FPA  del 30/06/2023 FORNITURA ASFALTO A FREDDO PER MANUTENZIONE STRADE COMUNALI;17/07/2023;3538;0;438;1;Spese correnti;3;Acquisto di beni e servizi;2;Acquisto di servizi;9;Manutenzione ordinaria e riparazioni;8;Manutenzione ordinaria e riparazioni di beni immobili;20/07/2023
2491;1;9999999;650;650;IL PORTICO ASSOCIAZIONE DI PROMOZIONE SOCIALE; ;COMPARTECIPAZIONE SPESE PROGETTAZIONE PER BANDO ORDINARIO SERVIZIO CIVILE UNIVERSALE - ANNO 2023;17/07/2023;3749;0;588;1;Spese correnti;3;Acquisto di beni e servizi;2;Acquisto di servizi;99;Altri servizi;999;Altri servizi diversi n.a.c.;20/07/2023
2492;1;9999999;500;500;COMUNE DI SCORZE`; ;QUOTA DI COMPARTECIPAZIONE ALLE SPESE CONCORSUALI UTILIZZO DI GRADUATORIA  SIG. V.A.;18/07/2023;849;0;370;1;Spese correnti;3;Acquisto di beni e servizi;2;Acquisto di servizi;99;Altri servizi;999;Altri servizi diversi n.a.c.;20/07/2023
2493;1;9999999;3.399,27;3.399,27;COOP.SOCIALE LIBERTA' ONLUS;Z673AAF407;SALDO Fatt.n. 581  del 30/06/2023 SERVIZIO DI PULIZIA E SANIFICAZIONE UFFICI COMUNALI GIUGNO 2023;18/07/2023;142;0;384;1;Spese correnti;3;Acquisto di beni e servizi;2;Acquisto di servizi;13;Servizi ausiliari per il funzionamento dell'ente;2;Servizi di pulizia e lavanderia;20/07/2023
2494;1;9999999;569,88;569,88;KUWAIT PETROLEUM ITALIA SPA;Z543524413;SALDO Fatt.n. PJ07011214  del 30/06/2023 GIUGNO 2023 - FORNITURA CARBURANTE;18/07/2023;521;0;186;1;Spese correnti;3;Acquisto di beni e servizi;1;Acquisto di beni;2;Altri beni di consumo;999;Altri beni e materiali di consumo n.a.c.;20/07/2023
2495;1;9999999;550;550;EREDI SABBADIN SNC;Z973B54790;SALDO Fatt.n. 6/00  del 30/06/2023 SERVIZIO CATERING DEL 16 GIUGNO - PRESENTAZIOE DOCU - FILM -  IL TUTTO NON E LA SOMMA DELLE SINGOLE PARTI -;18/07/2023;1831;0;506;1;Spese correnti;3;Acquisto di beni e servizi;2;Acquisto di servizi;2;Organizzazione eventi, pubblicita` e servizi per trasferta;4;Pubblicita`;20/07/2023
2496;1;9999999;1.000,00;1.000,00;A.N.U.T.E.L.-ASS.NAZ.UFF.TRIBUTI ENTI L.;Z9A3A0FED4;QUOTA ANNO 2023 ADESIONE AD ANUTEL - ASSOCIAZIONE NAZIONALE UFFICI TRIBUTI ENTI LOCALI -;21/07/2023;349;0;135;1;Spese correnti;3;Acquisto di beni e servizi;2;Acquisto di servizi;99;Altri servizi;999;Altri servizi diversi n.a.c.;25/07/2023
2498;1;9999999;2,25;2,25;FAVARO PAOLO; ;SPESE PER COLLAUDO IMPLEMENTAZIONE SERVIZI PAGOPA PROGETTO INFORMATIZZAZIONE PNRR-PAGOPA VERSATI DA FAVARO PAOLO;24/07/2023;146;0;0;1;Spese correnti;3;Acquisto di beni e servizi;2;Acquisto di servizi;17;Servizi finanziari;999;Spese per servizi finanziari n.a.c.;27/07/2023
2499;1;9999999;562;562;DELFINO & PARTNERS SPA;Z4C3B95837;SALDO Fatt.n. 1682/PA  del 13/07/2023 ABBONAMENTO PER ACCESSO BANCHE DATI OMNIA + 5 WEBINAR;24/07/2023;134;0;569;1;Spese correnti;3;Acquisto di beni e servizi;2;Acquisto di servizi;5;Utenze e canoni;3;Accesso a banche dati e a pubblicazioni on line;27/07/2023
2500;1;9999999;1.974,62;1.974,62;FASTWEB SPA;5133642F61;SALDO Fatt.n. PAE0026328  del 30/06/2023 CANONE CONNETIVITA CITTA METROPOLITANA PERIODO DAL 1 MAGGIO AL 30 GIUGNO 2023;24/07/2023;134;32;33;1;Spese correnti;3;Acquisto di beni e servizi;2;Acquisto di servizi;5;Utenze e canoni;999;Utenze e canoni per altri servizi n.a.c.;27/07/2023
2501;1;9999999;1.751,92;1.751,92;GOTTARDO DINO & C.SNC;Z573BAB73F;SALDO Fatt.n. 37  del 06/07/2023 INTERVENTI DI MANUTENZIONEORDINARIA PER OPERE DA FABBRO NEI FABBRICATI COMUNALI;24/07/2023;548;0;572;1;Spese correnti;3;Acquisto di beni e servizi;2;Acquisto di servizi;9;Manutenzione ordinaria e riparazioni;8;Manutenzione ordinaria e riparazioni di beni immobili;27/07/2023
2502;1;9999999;1.573,80;1.573,80;FORNITECNICA S.R.L.;ZA934CBAAD;SALDO Fatt.n. 000176PA23  del 03/07/2023 COSTO COPIA PERIODO LUGLIO - SETTEMBRE 2023;24/07/2023;748;0;62;1;Spese correnti;3;Acquisto di beni e servizi;2;Acquisto di servizi;19;Servizi informatici e di telecomunicazioni;9;Servizi per le postazioni di lavoro e relativa manutenzione;27/07/2023
2503;1;9999999;381,47;381,47;CANON ITALIA S.P.A.;Z03356BDFB;SALDO Fatt.n. 2307900059183  del 05/07/2023 ADESIONE CONVENZIONE CONSIP MULTIFUNZIONE A NOLEGGIO - PERIODO DAL 1 APRILE AL 30 GIUGNO 2023;24/07/2023;748;0;227;1;Spese correnti;3;Acquisto di beni e servizi;2;Acquisto di servizi;19;Servizi informatici e di telecomunicazioni;9;Servizi per le postazioni di lavoro e relativa manutenzione;27/07/2023
2504;1;9999999;1.937,31;1.937,31;COM.TEL SPA;Z1B3229786;SALDO Fatt.n. 23FPA40058  del 30/06/2023 MANUTENZIONE CENTRALINO TELEFONICO ANNO 2023;24/07/2023;748;0;595;1;Spese correnti;3;Acquisto di beni e servizi;2;Acquisto di servizi;19;Servizi informatici e di telecomunicazioni;4;Servizi di rete per trasmissione dati e VoIP e relativa manutenzione;27/07/2023
2505;1;9999999;1.756,80;1.756,80;OSANET SRL;ZA93B9C49F;SALDO Fatt.n. FATTPA 4423  del 10/07/2023 ABBONAMENTO PORTALE EFFICIENTOMETRO DAL  25-06-2023 AL 24-06-2024;24/07/2023;748;0;556;1;Spese correnti;3;Acquisto di beni e servizi;2;Acquisto di servizi;19;Servizi informatici e di telecomunicazioni;8;Servizi di monitoraggio della qualità dei servizi;27/07/2023
2506;1;9999999;1.499,11;1.499,11;FASTWEB SPA;5133642F61;SALDO Fatt.n. PAE0026327  del 30/06/2023 CANONE CONNETIVITA SCUOLE PERIODO DAL 1 MAGGIO AL 30 GIUGNO 2023;24/07/2023;1334;0;46;1;Spese correnti;3;Acquisto di beni e servizi;2;Acquisto di servizi;5;Utenze e canoni;1;Telefonia fissa;27/07/2023
2507;1;9999999;478,18;478,18;MEB SRL;ZC839D1F3A;SALDO Fatt.n. 034200  del 30/06/2023 MATERIALE ELETTRICO PER MANUTENZIONI;24/07/2023;1338;0;97;1;Spese correnti;3;Acquisto di beni e servizi;2;Acquisto di servizi;9;Manutenzione ordinaria e riparazioni;4;Manutenzione ordinaria e riparazioni di impianti e macchinari;27/07/2023
2508;1;9999999;541,26;541,26;AUTOROMBO S.A.S. DI SARTORE RENZO & C.;Z573BC5406;SALDO Fatt.n. 1/PA  del 07/07/2023 LAVORO ESEGUITO SU AUTOVETTURA DACIA DUSTER PRESTIGE YA831AL;24/07/2023;3538;0;579;1;Spese correnti;3;Acquisto di beni e servizi;2;Acquisto di servizi;9;Manutenzione ordinaria e riparazioni;1;Manutenzione ordinaria e riparazioni di mezzi di trasporto ad uso civile, di sicurezza e ordine pubblico;27/07/2023
2509;1;9999999;4.758,00;4.758,00;PULIAUTOMATIC SRL;ZF43BACCF9;SALDO Fatt.n. 69/V12  del 13/07/2023 ACQUISTO LAVASCIUGA MOD. R. 55/T MATR.23000292 PALESTRA  CALTANA - USO SCOLASTICO;24/07/2023;7581;0;571;2;Spese in conto capitale;2;Investimenti fissi lordi e acquisto di terreni;1;Beni materiali;5;Attrezzature;999;Attrezzature n.a.c.;27/07/2023
2510;1;9999999;1.000,00;1.000,00;ITAS MUTUA;Z7B3BE4FCE;RIMBORSO FRANCHIGIA N.220105934 SINISTRO N.220105934 DEL 05/06/2022 POLIZZA N.M13018410;24/07/2023;992;0;597;1;Spese correnti;10;Altre spese correnti;4;Premi di assicurazione;1;Premi di assicurazione contro i danni;999;Altri premi di assicurazione contro i danni;27/07/2023
2512;1;9999999;719;719;OMESSO NOMINATIVO NEL RISPETTO DELLA NORMATIVA SULLA PROTEZIONE DATI PERSONALI; ;LUGLIO 2023 INT.RETTA CASA DI RIPOSO;25/07/2023;3844;0;298;1;Spese correnti;3;Acquisto di beni e servizi;2;Acquisto di servizi;15;Contratti di servizio pubblico;8;Contratti di servizio di assistenza sociale residenziale e semiresidenziale;27/07/2023
2513;1;9999999;700;700;OMESSO NOMINATIVO NEL RISPETTO DELLA NORMATIVA SULLA PROTEZIONE DATI PERSONALI; ;LUGLIO 2023 INT.RETTA CASA DI RIPOSO;25/07/2023;3844;0;363;1;Spese correnti;3;Acquisto di beni e servizi;2;Acquisto di servizi;15;Contratti di servizio pubblico;8;Contratti di servizio di assistenza sociale residenziale e semiresidenziale;27/07/2023
2514;1;9999999;916,5;916,5;OMESSO NOMINATIVO NEL RISPETTO DELLA NORMATIVA SULLA PROTEZIONE DATI PERSONALI; ;LUGLIO 2023 INT.RETTA CASA DI RIPOSO;25/07/2023;3844;0;364;1;Spese correnti;3;Acquisto di beni e servizi;2;Acquisto di servizi;15;Contratti di servizio pubblico;8;Contratti di servizio di assistenza sociale residenziale e semiresidenziale;27/07/2023
2515;1;9999999;526;526;OMESSO NOMINATIVO NEL RISPETTO DELLA NORMATIVA SULLA PROTEZIONE DATI PERSONALI; ;LUGLIO 2023 INT.RETTA CASA DI RIPOSO;25/07/2023;3844;0;365;1;Spese correnti;3;Acquisto di beni e servizi;2;Acquisto di servizi;15;Contratti di servizio pubblico;8;Contratti di servizio di assistenza sociale residenziale e semiresidenziale;27/07/2023
2516;1;9999999;500;500;OMESSO NOMINATIVO NEL RISPETTO DELLA NORMATIVA SULLA PROTEZIONE DATI PERSONALI; ;LUGLIO 2023 INT.RETTA CASA DI RIPOSO;25/07/2023;3844;0;126;1;Spese correnti;3;Acquisto di beni e servizi;2;Acquisto di servizi;15;Contratti di servizio pubblico;8;Contratti di servizio di assistenza sociale residenziale e semiresidenziale;27/07/2023
2517;1;9999999;550,5;550,5;OMESSO NOMINATIVO NEL RISPETTO DELLA NORMATIVA SULLA PROTEZIONE DATI PERSONALI; ;LUGLIO 2023 INT.RETTA CASA DI RIPOSO;25/07/2023;3844;0;294;1;Spese correnti;3;Acquisto di beni e servizi;2;Acquisto di servizi;15;Contratti di servizio pubblico;8;Contratti di servizio di assistenza sociale residenziale e semiresidenziale;27/07/2023
2518;1;9999999;770;770;OMESSO NOMINATIVO NEL RISPETTO DELLA NORMATIVA SULLA PROTEZIONE DATI PERSONALI; ;LUGLIO 2023 INT.RETTA CASA DI RIPOSO;25/07/2023;3844;0;296;1;Spese correnti;3;Acquisto di beni e servizi;2;Acquisto di servizi;15;Contratti di servizio pubblico;8;Contratti di servizio di assistenza sociale residenziale e semiresidenziale;27/07/2023
2519;1;9999999;1.100,00;1.100,00;OMESSO NOMINATIVO NEL RISPETTO DELLA NORMATIVA SULLA PROTEZIONE DATI PERSONALI; ;LUGLIO 2023 INT.RETTA CASA DI RIPOSO;25/07/2023;3844;0;295;1;Spese correnti;3;Acquisto di beni e servizi;2;Acquisto di servizi;15;Contratti di servizio pubblico;8;Contratti di servizio di assistenza sociale residenziale e semiresidenziale;27/07/2023
2520;1;9999999;490;490;OMESSO NOMINATIVO NEL RISPETTO DELLA NORMATIVA SULLA PROTEZIONE DATI PERSONALI; ;LUGLIO 2023 INT RETTA CASA DI RIPOSO;25/07/2023;3844;0;125;1;Spese correnti;3;Acquisto di beni e servizi;2;Acquisto di servizi;15;Contratti di servizio pubblico;8;Contratti di servizio di assistenza sociale residenziale e semiresidenziale;27/07/2023
2521;1;9999999;592;592;OMESSO NOMINATIVO NEL RISPETTO DELLA NORMATIVA SULLA PROTEZIONE DATI PERSONALI; ;MINIMO VITALE LUGLIO 2023;25/07/2023;4157;0;600;1;Spese correnti;4;Trasferimenti correnti;2;Trasferimenti correnti a Famiglie;2;Interventi assistenziali;999;Altri assegni e sussidi assistenziali;27/07/2023
2522;1;9999999;600;600;OMESSO NOMINATIVO NEL RISPETTO DELLA NORMATIVA SULLA PROTEZIONE DATI PERSONALI; ;MINIMO VITALE LUGLIO 2023;25/07/2023;4157;0;602;1;Spese correnti;4;Trasferimenti correnti;2;Trasferimenti correnti a Famiglie;2;Interventi assistenziali;999;Altri assegni e sussidi assistenziali;01/08/2023
2523;1;9999999;200;200;OMESSO NOMINATIVO NEL RISPETTO DELLA NORMATIVA SULLA PROTEZIONE DATI PERSONALI; ;MINIMO VITALE LUGLIO 2023;25/07/2023;4157;0;603;1;Spese correnti;4;Trasferimenti correnti;2;Trasferimenti correnti a Famiglie;2;Interventi assistenziali;999;Altri assegni e sussidi assistenziali;11/08/2023
2524;1;9999999;880,2;880,2;OMESSO NOMINATIVO NEL RISPETTO DELLA NORMATIVA SULLA PROTEZIONE DATI PERSONALI; ;PRO FORMA 46 /2023 SALDO PROC.TO NOMINA ADS AVANTI IL TRIBUNALE DI VICENZA (MINIMO VITALE LUGLIO 2023);25/07/2023;4157;0;601;1;Spese correnti;4;Trasferimenti correnti;2;Trasferimenti correnti a Famiglie;2;Interventi assistenziali;999;Altri assegni e sussidi assistenziali;27/07/2023
2525;1;9999999;500;500;OMESSO NOMINATIVO NEL RISPETTO DELLA NORMATIVA SULLA PROTEZIONE DATI PERSONALI; ;MINIMO VITALE LUGLIO 2023;25/07/2023;4157;0;604;1;Spese correnti;4;Trasferimenti correnti;2;Trasferimenti correnti a Famiglie;2;Interventi assistenziali;999;Altri assegni e sussidi assistenziali;01/08/2023
2526;1;9999999;150;150;OMESSO NOMINATIVO NEL RISPETTO DELLA NORMATIVA SULLA PROTEZIONE DATI PERSONALI; ;MINIMO VITALE LUGLIO 2023;25/07/2023;4157;0;605;1;Spese correnti;4;Trasferimenti correnti;2;Trasferimenti correnti a Famiglie;2;Interventi assistenziali;999;Altri assegni e sussidi assistenziali;08/08/2023
2527;1;9999999;130;260;OMESSO NOMINATIVO NEL RISPETTO DELLA NORMATIVA SULLA PROTEZIONE DATI PERSONALI; ;MINIMO VITALE GIUGNO 2023;25/07/2023;4157;0;606;1;Spese correnti;4;Trasferimenti correnti;2;Trasferimenti correnti a Famiglie;2;Interventi assistenziali;999;Altri assegni e sussidi assistenziali;27/07/2023
2527;2;9999999;130;260;OMESSO NOMINATIVO NEL RISPETTO DELLA NORMATIVA SULLA PROTEZIONE DATI PERSONALI; ;MINIMO VITALE LUGLIO 2023;25/07/2023;4157;0;606;1;Spese correnti;4;Trasferimenti correnti;2;Trasferimenti correnti a Famiglie;2;Interventi assistenziali;999;Altri assegni e sussidi assistenziali;03/08/2023
2528;1;9999999;18,21;371,28;ENEL ENERGIA SPA;97224145D7;SALDO Fatt.n. 004346504688  del 08/07/2023 GIUGNO 2023 - CONSUMI IMMOBILE COMUNALE VIA OLIMPIA SMS;26/07/2023;134;30;312;1;Spese correnti;3;Acquisto di beni e servizi;2;Acquisto di servizi;5;Utenze e canoni;4;Energia elettrica;28/07/2023
2528;2;9999999;39,61;371,28;ENEL ENERGIA SPA;97224145D7;SALDO Fatt.n. 004346504685  del 08/07/2023 GIUGNO 2023 - CONSUMI ALLOGGIO VIA DON GALLERANI CALTANA;26/07/2023;134;30;312;1;Spese correnti;3;Acquisto di beni e servizi;2;Acquisto di servizi;5;Utenze e canoni;4;Energia elettrica;28/07/2023
2528;3;9999999;81,79;371,28;ENEL ENERGIA SPA;97224145D7;SALDO Fatt.n. 004346504683  del 08/07/2023 GIUGNO 2023 - CONSUMI FONTANA VETERNIGO;26/07/2023;134;30;312;1;Spese correnti;3;Acquisto di beni e servizi;2;Acquisto di servizi;5;Utenze e canoni;4;Energia elettrica;28/07/2023
2528;4;9999999;98,1;371,28;ENEL ENERGIA SPA;97224145D7;SALDO Fatt.n. 004347642168  del 09/07/2023 GIUGNO 2023 - CONSUMI P.ZZA S.D.A. CALTANA;26/07/2023;134;30;312;1;Spese correnti;3;Acquisto di beni e servizi;2;Acquisto di servizi;5;Utenze e canoni;4;Energia elettrica;28/07/2023
2528;5;9999999;133,57;371,28;ENEL ENERGIA SPA;97224145D7;SALDO Fatt.n. 004346504684  del 08/07/2023 GIUGNO 2023 - CONSUMI MERCATO CASELLE;26/07/2023;134;30;312;1;Spese correnti;3;Acquisto di beni e servizi;2;Acquisto di servizi;5;Utenze e canoni;4;Energia elettrica;28/07/2023
2529;1;9999999;55,99;426,44;ENEL ENERGIA SPA;97224145D7;SALDO Fatt.n. 004347642169  del 09/07/2023 GIUGNO 2023 - CONSUMI PARCHEGGIO SMS;26/07/2023;134;30;312;1;Spese correnti;3;Acquisto di beni e servizi;2;Acquisto di servizi;5;Utenze e canoni;4;Energia elettrica;28/07/2023
2529;2;9999999;82,29;426,44;ENEL ENERGIA SPA;97224145D7;SALDO Fatt.n. 004350788201  del 11/07/2023 GIUGNO 2023 - CONSUMI MERCATO CALTANA;26/07/2023;134;30;312;1;Spese correnti;3;Acquisto di beni e servizi;2;Acquisto di servizi;5;Utenze e canoni;4;Energia elettrica;28/07/2023
2529;3;9999999;89,65;426,44;ENEL ENERGIA SPA;97224145D7;SALDO Fatt.n. 004352661566  del 12/07/2023 GIUGNO 2023 - CONSUMI PARCHEGGIO OVALE SMS;26/07/2023;134;30;312;1;Spese correnti;3;Acquisto di beni e servizi;2;Acquisto di servizi;5;Utenze e canoni;4;Energia elettrica;28/07/2023
2529;4;9999999;98,47;426,44;ENEL ENERGIA SPA;97224145D7;SALDO Fatt.n. 004353724344  del 13/07/2023 GIUGNO 2023 - CONSUMI PARCHEGGIO C.C. PRISMA CASELLE;26/07/2023;134;30;312;1;Spese correnti;3;Acquisto di beni e servizi;2;Acquisto di servizi;5;Utenze e canoni;4;Energia elettrica;28/07/2023
2529;5;9999999;100,04;426,44;ENEL ENERGIA SPA;97224145D7;SALDO Fatt.n. 004348685354  del 10/07/2023 GIUGNO 2023 - CONSUMI MERCATO SMS;26/07/2023;134;30;312;1;Spese correnti;3;Acquisto di beni e servizi;2;Acquisto di servizi;5;Utenze e canoni;4;Energia elettrica;28/07/2023
2530;1;9999999;3,46;3,46;ENEL ENERGIA SPA;97224145D7;ACCONTO Fatt.n. 004352661564  del 12/07/2023 GIUGNO 2023 - CONSUMI CIMITERO SMS - LAMPADE VOTIVE;26/07/2023;134;30;312;1;Spese correnti;3;Acquisto di beni e servizi;2;Acquisto di servizi;5;Utenze e canoni;4;Energia elettrica;28/07/2023
2531;1;9999999;4,79;4,79;ENEL ENERGIA SPA;97224145D7;ACCONTO Fatt.n. 004353724343  del 13/07/2023 GIUGNO 2023 - CONSUMI CIMITERO VETERNIGO - LAMPADE VOTIVE;26/07/2023;134;30;312;1;Spese correnti;3;Acquisto di beni e servizi;2;Acquisto di servizi;5;Utenze e canoni;4;Energia elettrica;28/07/2023
2532;1;9999999;6,29;6,29;ENEL ENERGIA SPA;97224145D7;ACCONTO Fatt.n. 004352661563  del 12/07/2023 GIUGNO 2023 - CONSUMI CIMITERO CALTANA - LAMPADE VOTIVE;26/07/2023;134;30;312;1;Spese correnti;3;Acquisto di beni e servizi;2;Acquisto di servizi;5;Utenze e canoni;4;Energia elettrica;28/07/2023
2533;1;9999999;6,35;6,35;ENEL ENERGIA SPA;97224145D7;ACCONTO Fatt.n. 004346504686  del 08/07/2023 GIUGNO 2023 - CONSUMI CIMITERO CASELLE - LAMPADE VOTIVE;26/07/2023;134;30;312;1;Spese correnti;3;Acquisto di beni e servizi;2;Acquisto di servizi;5;Utenze e canoni;4;Energia elettrica;28/07/2023
2534;1;9999999;6,76;6,76;ENEL ENERGIA SPA;97224145D7;ACCONTO Fatt.n. 004347642171  del 09/07/2023 GIUGNO 2023 - CONSUMI CIMITERO S.ANGELO - LAMPADE VOTIVE;26/07/2023;134;30;312;1;Spese correnti;3;Acquisto di beni e servizi;2;Acquisto di servizi;5;Utenze e canoni;4;Energia elettrica;28/07/2023
2535;1;9999999;1.413,71;1.413,71;ENEL ENERGIA SPA;97224145D7;SALDO Fatt.n. 004347642170  del 09/07/2023 GIUGNO 2023 - CONSUMI SEDE MUNICIPALE;26/07/2023;134;31;313;1;Spese correnti;3;Acquisto di beni e servizi;2;Acquisto di servizi;5;Utenze e canoni;4;Energia elettrica;28/07/2023
2536;1;9999999;207,86;1.362,25;ENEL ENERGIA SPA;97224145D7;SALDO Fatt.n. 004348685353  del 10/07/2023 GIUGNO 2023 - CONSUMI SC. ELEM. CALTANA;26/07/2023;1334;30;314;1;Spese correnti;3;Acquisto di beni e servizi;2;Acquisto di servizi;5;Utenze e canoni;4;Energia elettrica;28/07/2023
2536;2;9999999;273,71;1.362,25;ENEL ENERGIA SPA;97224145D7;SALDO Fatt.n. 004348685352  del 10/07/2023 GIUGNO 2023 - CONSUMI SC. ELEM. CASELLE;26/07/2023;1334;30;314;1;Spese correnti;3;Acquisto di beni e servizi;2;Acquisto di servizi;5;Utenze e canoni;4;Energia elettrica;28/07/2023
2536;3;9999999;880,68;1.362,25;ENEL ENERGIA SPA;97224145D7;SALDO Fatt.n. 004345622035  del 07/07/2023 GIUGNO 2023 - CONSUMI SC,ELEM - MEDIA SMS;26/07/2023;1334;30;314;1;Spese correnti;3;Acquisto di beni e servizi;2;Acquisto di servizi;5;Utenze e canoni;4;Energia elettrica;28/07/2023
2537;1;9999999;107;107;ENEL ENERGIA SPA;97224145D7;ACCONTO Fatt.n. 004348685355  del 10/07/2023 GIUGNO 2023 - CONSUMI SC. ELEM - PALESTRA VETERNIGO;26/07/2023;1334;30;314;1;Spese correnti;3;Acquisto di beni e servizi;2;Acquisto di servizi;5;Utenze e canoni;4;Energia elettrica;28/07/2023
2538;1;9999999;176,2;176,2;ENEL ENERGIA SPA;97224145D7;ACCONTO Fatt.n. 004348685355  del 10/07/2023 GIUGNO 2023 - CONSUMI SC. ELEM - PALESTRA VETERNIGO;26/07/2023;1334;30;314;1;Spese correnti;3;Acquisto di beni e servizi;2;Acquisto di servizi;5;Utenze e canoni;4;Energia elettrica;28/07/2023
2539;1;9999999;92;92;ENEL ENERGIA SPA;97224145D7;ACCONTO Fatt.n. 004346504687  del 08/07/2023 GIUGNO 2023 - CONSUMI SC. ELEM - PALESTRA STIGLIANO;26/07/2023;1334;30;314;1;Spese correnti;3;Acquisto di beni e servizi;2;Acquisto di servizi;5;Utenze e canoni;4;Energia elettrica;28/07/2023
2540;1;9999999;99,18;99,18;ENEL ENERGIA SPA;97224145D7;ACCONTO Fatt.n. 004346504687  del 08/07/2023 GIUGNO 2023 - CONSUMI SC. ELEM - PALESTRA STIGLIANO;26/07/2023;1334;30;314;1;Spese correnti;3;Acquisto di beni e servizi;2;Acquisto di servizi;5;Utenze e canoni;4;Energia elettrica;28/07/2023
2541;1;9999999;190;190;ENEL ENERGIA SPA;97224145D7;ACCONTO Fatt.n. 004345622036  del 07/07/2023 GIUGNO 2023 - CONSUMI SC. ELEM - PALESTRA - ASILO S.ANGELO;26/07/2023;1334;30;314;1;Spese correnti;3;Acquisto di beni e servizi;2;Acquisto di servizi;5;Utenze e canoni;4;Energia elettrica;28/07/2023
2542;1;9999999;577,31;577,31;ENEL ENERGIA SPA;97224145D7;ACCONTO Fatt.n. 004345622036  del 07/07/2023 GIUGNO 2023 - CONSUMI SC. ELEM - PALESTRA - ASILO S.ANGELO;26/07/2023;1334;30;314;1;Spese correnti;3;Acquisto di beni e servizi;2;Acquisto di servizi;5;Utenze e canoni;4;Energia elettrica;28/07/2023
2543;1;9999999;128,63;128,63;ENEL ENERGIA SPA;97224145D7;ACCONTO Fatt.n. 004352661567  del 12/07/2023 GIUGNO 2023 - CONSUMI PALESTRA SMS;26/07/2023;1334;30;314;1;Spese correnti;3;Acquisto di beni e servizi;2;Acquisto di servizi;5;Utenze e canoni;4;Energia elettrica;28/07/2023
2544;1;9999999;71,15;71,15;ENEL ENERGIA SPA;97224145D7;ACCONTO Fatt.n. 004352661565  del 12/07/2023 GIUGNO 2023 - CONSUMI PALESTRA CASELLE;26/07/2023;1334;30;314;1;Spese correnti;3;Acquisto di beni e servizi;2;Acquisto di servizi;5;Utenze e canoni;4;Energia elettrica;28/07/2023
2545;1;9999999;206,45;206,45;ENEL ENERGIA SPA;97224145D7;ACCONTO Fatt.n. 004353724342  del 13/07/2023 GIUGNO 2023 - CONSUMI PALESTRA CALTANA;26/07/2023;1334;30;314;1;Spese correnti;3;Acquisto di beni e servizi;2;Acquisto di servizi;5;Utenze e canoni;4;Energia elettrica;28/07/2023
2546;1;9999999;413,37;968,23;ENEL ENERGIA SPA;97224145D7;SALDO Fatt.n. 004348685351  del 10/07/2023 GIUGNO 2023 - CONSUMI VILLA FARSETTI;26/07/2023;1834;0;315;1;Spese correnti;3;Acquisto di beni e servizi;2;Acquisto di servizi;5;Utenze e canoni;4;Energia elettrica;28/07/2023
2546;2;9999999;554,86;968,23;ENEL ENERGIA SPA;97224145D7;SALDO Fatt.n. 004347642167  del 09/07/2023 GIUGNO 2023 - CONSUMI VILLA FARSETTI;26/07/2023;1834;0;315;1;Spese correnti;3;Acquisto di beni e servizi;2;Acquisto di servizi;5;Utenze e canoni;4;Energia elettrica;28/07/2023
2547;1;9999999;335,71;335,71;ENEL ENERGIA SPA;97224145D7;SALDO Fatt.n. 004350788203  del 11/07/2023 GIUGNO 2023 - CONSUMI  IMP. SPORT. SMS;26/07/2023;1934;0;316;1;Spese correnti;3;Acquisto di beni e servizi;2;Acquisto di servizi;5;Utenze e canoni;4;Energia elettrica;28/07/2023
2548;1;9999999;43,91;43,91;ENEL ENERGIA SPA;97224145D7;SALDO Fatt.n. 004353724341  del 13/07/2023 GIUGNO 2023 - CONSUMI IMP. SPORTIVO CASELLE;26/07/2023;1934;0;316;1;Spese correnti;3;Acquisto di beni e servizi;2;Acquisto di servizi;5;Utenze e canoni;4;Energia elettrica;28/07/2023
2549;1;9999999;88,11;88,11;ENEL ENERGIA SPA;97224145D7;SALDO Fatt.n. 004350788202  del 11/07/2023 GIUGNO 2023 - CONSUMI CAMPO DA CALCIO SMS;26/07/2023;1934;0;316;1;Spese correnti;3;Acquisto di beni e servizi;2;Acquisto di servizi;5;Utenze e canoni;4;Energia elettrica;28/07/2023
2550;1;9999999;123,46;123,46;ENEL ENERGIA SPA;97224145D7;SALDO Fatt.n. 004350788200  del 11/07/2023 GIUGNO 2023 - CONSUMI IMP. SPORT. PARROCCHIA CASELLE;26/07/2023;1934;0;316;1;Spese correnti;3;Acquisto di beni e servizi;2;Acquisto di servizi;5;Utenze e canoni;4;Energia elettrica;28/07/2023
2551;1;9999999;142,18;142,18;ENEL ENERGIA SPA;97224145D7;SALDO Fatt.n. 004345622038  del 07/07/2023 GIUGNO 2023 - CONSUMI IMP. SPORT. CALTANA;26/07/2023;1934;0;316;1;Spese correnti;3;Acquisto di beni e servizi;2;Acquisto di servizi;5;Utenze e canoni;4;Energia elettrica;28/07/2023
2552;1;9999999;390,13;390,13;ENEL ENERGIA SPA;97224145D7;SALDO Fatt.n. 004345622037  del 07/07/2023 GIUGNO 2023 - CONSUMI IMP. SPORT. VETERNIGO;26/07/2023;1934;0;316;1;Spese correnti;3;Acquisto di beni e servizi;2;Acquisto di servizi;5;Utenze e canoni;4;Energia elettrica;28/07/2023
2553;1;9999999;107;107;ENEL ENERGIA SPA;97224145D7;SALDO Fatt.n. 004348685355  del 10/07/2023 GIUGNO 2023 - CONSUMI SC. ELEM - PALESTRA VETERNIGO;26/07/2023;1934;0;316;1;Spese correnti;3;Acquisto di beni e servizi;2;Acquisto di servizi;5;Utenze e canoni;4;Energia elettrica;28/07/2023
2554;1;9999999;138;138;ENEL ENERGIA SPA;97224145D7;SALDO Fatt.n. 004346504687  del 08/07/2023 GIUGNO 2023 - CONSUMI SC. ELEM - PALESTRA STIGLIANO;26/07/2023;1934;0;316;1;Spese correnti;3;Acquisto di beni e servizi;2;Acquisto di servizi;5;Utenze e canoni;4;Energia elettrica;28/07/2023
2555;1;9999999;190;190;ENEL ENERGIA SPA;97224145D7;SALDO Fatt.n. 004345622036  del 07/07/2023 GIUGNO 2023 - CONSUMI SC. ELEM - PALESTRA - ASILO S.ANGELO;26/07/2023;1934;0;316;1;Spese correnti;3;Acquisto di beni e servizi;2;Acquisto di servizi;5;Utenze e canoni;4;Energia elettrica;28/07/2023
2556;1;9999999;128,62;128,62;ENEL ENERGIA SPA;97224145D7;SALDO Fatt.n. 004352661567  del 12/07/2023 GIUGNO 2023 - CONSUMI PALESTRA SMS;26/07/2023;1934;0;316;1;Spese correnti;3;Acquisto di beni e servizi;2;Acquisto di servizi;5;Utenze e canoni;4;Energia elettrica;28/07/2023
2557;1;9999999;71,16;71,16;ENEL ENERGIA SPA;97224145D7;SALDO Fatt.n. 004352661565  del 12/07/2023 GIUGNO 2023 - CONSUMI PALESTRA CASELLE;26/07/2023;1934;0;316;1;Spese correnti;3;Acquisto di beni e servizi;2;Acquisto di servizi;5;Utenze e canoni;4;Energia elettrica;28/07/2023
2558;1;9999999;206,45;206,45;ENEL ENERGIA SPA;97224145D7;SALDO Fatt.n. 004353724342  del 13/07/2023 GIUGNO 2023 - CONSUMI PALESTRA CALTANA;26/07/2023;1934;0;316;1;Spese correnti;3;Acquisto di beni e servizi;2;Acquisto di servizi;5;Utenze e canoni;4;Energia elettrica;28/07/2023
2559;1;9999999;-241,56;75,8;ENEL ENERGIA SPA;97224145D7;SALDO Fatt.n. 004345622034  del 07/07/2023 NOTA DI ACCREDITO PER CONGUGLIO CONSUMI MAGAZZINO COMUNALE;26/07/2023;3534;0;318;1;Spese correnti;3;Acquisto di beni e servizi;2;Acquisto di servizi;5;Utenze e canoni;4;Energia elettrica;28/07/2023
2559;2;9999999;317,36;75,8;ENEL ENERGIA SPA;97224145D7;SALDO Fatt.n. 004350788199  del 11/07/2023 GIUGNO 2023 - CONSUMI MAGAZZINO COMUNALE;26/07/2023;3534;0;318;1;Spese correnti;3;Acquisto di beni e servizi;2;Acquisto di servizi;5;Utenze e canoni;4;Energia elettrica;28/07/2023
2560;1;9999999;64,61;64,61;ENEL ENERGIA SPA;97224145D7;SALDO Fatt.n. 004347642166  del 09/07/2023 GIUGNO 2023 - CONSUMI ECOCENTRO COMUNALE;26/07/2023;3534;0;318;1;Spese correnti;3;Acquisto di beni e servizi;2;Acquisto di servizi;5;Utenze e canoni;4;Energia elettrica;28/07/2023
2561;1;9999999;361,83;361,83;ENEL ENERGIA SPA;97224145D7;SALDO Fatt.n. 004354494061  del 14/07/2023 GIUGNO 2023 - CONSUMI ILLUMINAZIONE PUBBLICA;26/07/2023;3544;0;321;1;Spese correnti;3;Acquisto di beni e servizi;2;Acquisto di servizi;15;Contratti di servizio pubblico;15;Contratti di servizio per l'illuminazione pubblica;28/07/2023
2562;1;9999999;2.390,98;11.809,06;ENEL ENERGIA SPA;97224145D7;SALDO Fatt.n. 004354494062  del 14/07/2023 GIUGNO 2023 - CONSUMI ILLUMINAZIONE PUBBLICA;26/07/2023;3544;0;321;1;Spese correnti;3;Acquisto di beni e servizi;2;Acquisto di servizi;15;Contratti di servizio pubblico;15;Contratti di servizio per l'illuminazione pubblica;28/07/2023
2562;2;9999999;9.418,08;11.809,06;ENEL ENERGIA SPA;97224145D7;SALDO Fatt.n. 004354494060  del 14/07/2023 GIUGNO 2023 - CONSUMI ILLUMINAZIONE PUBBLICA;26/07/2023;3544;0;321;1;Spese correnti;3;Acquisto di beni e servizi;2;Acquisto di servizi;15;Contratti di servizio pubblico;15;Contratti di servizio per l'illuminazione pubblica;28/07/2023
2563;1;9999999;42,58;42,58;ENEL ENERGIA SPA;97224145D7;SALDO Fatt.n. 004352661562  del 12/07/2023 GIUGNO 2023 - CONSUMI CIMITERO STIGLIANO - LAMPADE VOTIVE;26/07/2023;4434;0;320;1;Spese correnti;3;Acquisto di beni e servizi;2;Acquisto di servizi;5;Utenze e canoni;4;Energia elettrica;28/07/2023
2564;1;9999999;40;40;ENEL ENERGIA SPA;97224145D7;SALDO Fatt.n. 004352661564  del 12/07/2023 GIUGNO 2023 - CONSUMI CIMITERO SMS - LAMPADE VOTIVE;26/07/2023;4434;0;320;1;Spese correnti;3;Acquisto di beni e servizi;2;Acquisto di servizi;5;Utenze e canoni;4;Energia elettrica;28/07/2023
2565;1;9999999;38;38;ENEL ENERGIA SPA;97224145D7;SALDO Fatt.n. 004353724343  del 13/07/2023 GIUGNO 2023 - CONSUMI CIMITERO VETERNIGO - LAMPADE VOTIVE;26/07/2023;4434;0;320;1;Spese correnti;3;Acquisto di beni e servizi;2;Acquisto di servizi;5;Utenze e canoni;4;Energia elettrica;28/07/2023
2566;1;9999999;71;71;ENEL ENERGIA SPA;97224145D7;SALDO Fatt.n. 004352661563  del 12/07/2023 GIUGNO 2023 - CONSUMI CIMITERO CALTANA - LAMPADE VOTIVE;26/07/2023;4434;0;320;1;Spese correnti;3;Acquisto di beni e servizi;2;Acquisto di servizi;5;Utenze e canoni;4;Energia elettrica;28/07/2023
2567;1;9999999;44;44;ENEL ENERGIA SPA;97224145D7;SALDO Fatt.n. 004346504686  del 08/07/2023 GIUGNO 2023 - CONSUMI CIMITERO CASELLE - LAMPADE VOTIVE;26/07/2023;4434;0;320;1;Spese correnti;3;Acquisto di beni e servizi;2;Acquisto di servizi;5;Utenze e canoni;4;Energia elettrica;28/07/2023
2568;1;9999999;34;34;ENEL ENERGIA SPA;97224145D7;SALDO Fatt.n. 004347642171  del 09/07/2023 GIUGNO 2023 - CONSUMI CIMITERO S.ANGELO - LAMPADE VOTIVE;26/07/2023;4434;0;320;1;Spese correnti;3;Acquisto di beni e servizi;2;Acquisto di servizi;5;Utenze e canoni;4;Energia elettrica;28/07/2023
2569;1;9999999;1.793,25;1.793,25;DISMA SAS DI ANGELO RIGO & C.;ZBB3AB6AC1;SALDO Fatt.n. 061/2023  del 30/06/2023 SERVIZIO DI SUPPORTO ALLE DELLA BIBLIOTECA COMUNALE - GIUGNO 2023;26/07/2023;2049;0;383;1;Spese correnti;3;Acquisto di beni e servizi;2;Acquisto di servizi;99;Altri servizi;999;Altri servizi diversi n.a.c.;28/07/2023
2570;1;9999999;1.722,24;1.722,24;ARTEA  SNC DI LION & SALVIATO;90182921FD;SALDO Fatt.n. 16-2023/PA  del 15/07/2023 OPERAZIONI EFFETTUATE NEI CIMITERI DEL COMUNE DI SANTA MARIA DI SALA NEL MESE DI GIUGNO 2023;26/07/2023;4438;0;1152;1;Spese correnti;3;Acquisto di beni e servizi;2;Acquisto di servizi;9;Manutenzione ordinaria e riparazioni;8;Manutenzione ordinaria e riparazioni di beni immobili;28/07/2023
2571;1;9999999;819,5;819,5;ABITARE INSIEME DI MICHELE SOMMA; ;QUOTA  CONTRIBUTO CONDOMINIALE PER IL CONDOMINIO BERTOLDO - ESERCIZIO ORDINARIO 2023.;27/07/2023;549;0;608;1;Spese correnti;3;Acquisto di beni e servizi;2;Acquisto di servizi;99;Altri servizi;999;Altri servizi diversi n.a.c.;01/08/2023
2573;1;9999999;244;244;EUROSCAVI S.R.L.;Z5B384C862;SALDO Fatt.n. 172  del 25/07/2023 SIST. SCARPATA INCROCIO VIA COGNARO CON LA  S.S. 515 NOALESE A SEGUITO SINISTRO;28/07/2023;3538;0;938;1;Spese correnti;3;Acquisto di beni e servizi;2;Acquisto di servizi;9;Manutenzione ordinaria e riparazioni;11;Manutenzione ordinaria e riparazioni di altri beni materiali;01/08/2023
2574;1;9999999;2.805,54;2.805,54;ABACO S.P.A.;766214493F;SALDO Fatt.n. 2023120003454  del 10/07/2023 AGGIO SU RISCOSSIONI ESPOSIZIONI PUBBLICITARIE CUP RENDICONTO DELLA GESTIONE DAL 01/06/2023 A 30/06/2023;28/07/2023;332;0;1228;1;Spese correnti;3;Acquisto di beni e servizi;2;Acquisto di servizi;3;Aggi di riscossione;999;Altri aggi di riscossione n.a.c.;01/08/2023
2575;1;9999999;299,13;299,13;ABACO S.P.A.;5325258DE8;SALDO Fatt.n. 2023140002850  del 11/07/2023 AGGIO SU RISCOSSIONI - ICI IMU T ASI LOTTO 2 RENDICONTO GIUGNO 2023;28/07/2023;332;0;121;1;Spese correnti;3;Acquisto di beni e servizi;2;Acquisto di servizi;3;Aggi di riscossione;999;Altri aggi di riscossione n.a.c.;01/08/2023
2576;1;9999999;558,71;558,71;ABACO S.P.A.;766214493F;SALDO Fatt.n. 2023140002851  del 11/07/2023 AGGIO SU RISCOSSIONI - ICI IMU T ASI LOTTO 10-11-12-13-14-15-16-17-18DET . 788-19 RENDICONTO GIUGNO 2023;28/07/2023;332;0;122;1;Spese correnti;3;Acquisto di beni e servizi;2;Acquisto di servizi;3;Aggi di riscossione;999;Altri aggi di riscossione n.a.c.;01/08/2023
2577;1;9999999;2.000,00;2.000,00;ARTEVEN;Z8E3B44732;SALDO Fatt.n. 000212PA  del 25/07/2023 PROGRAMMA RASSEGNA ESTATE 2023 SMS;28/07/2023;1859;0;489;1;Spese correnti;4;Trasferimenti correnti;4;Trasferimenti correnti a Istituzioni Sociali Private;1;Trasferimenti correnti a Istituzioni Sociali Private;1;Trasferimenti correnti a Istituzioni Sociali Private;01/08/2023
2578;1;9999999;13.722,85;13.722,85;SCUOLA MATERNA S.GIUSEPPE; ;PRIMO ACCONTO (40%)  ANNO 2023 CONTRIBUTO ECONOMICO;01/08/2023;1259;0;596;1;Spese correnti;4;Trasferimenti correnti;4;Trasferimenti correnti a Istituzioni Sociali Private;1;Trasferimenti correnti a Istituzioni Sociali Private;1;Trasferimenti correnti a Istituzioni Sociali Private;04/08/2023
2579;1;9999999;15.004,90;15.004,90;ASILO INFANTILE F.T.CROVATO; ;PRIMO ACCONTO (40%)  ANNO 2023 CONTRIBUTO ECONOMICO;01/08/2023;1259;0;596;1;Spese correnti;4;Trasferimenti correnti;4;Trasferimenti correnti a Istituzioni Sociali Private;1;Trasferimenti correnti a Istituzioni Sociali Private;1;Trasferimenti correnti a Istituzioni Sociali Private;04/08/2023
2580;1;9999999;12.298,32;12.298,32;SC.MAT.MADONNA DEL ROSARIO-ASILO NIDO; ;PRIMO ACCONTO (40%)  ANNO 2023 CONTRIBUTO ECONOMICO;01/08/2023;1259;0;596;1;Spese correnti;4;Trasferimenti correnti;4;Trasferimenti correnti a Istituzioni Sociali Private;1;Trasferimenti correnti a Istituzioni Sociali Private;1;Trasferimenti correnti a Istituzioni Sociali Private;04/08/2023
2581;1;9999999;19.420,90;19.420,90;SCUOLA MATERNA MARIA BAMBINA; ;PRIMO ACCONTO (40%)  ANNO 2023 CONTRIBUTO ECONOMICO;01/08/2023;1259;0;596;1;Spese correnti;4;Trasferimenti correnti;4;Trasferimenti correnti a Istituzioni Sociali Private;1;Trasferimenti correnti a Istituzioni Sociali Private;1;Trasferimenti correnti a Istituzioni Sociali Private;04/08/2023
2582;1;9999999;13.153,03;13.153,03;SCUOLA DELL INFANZIA SACRO CUORE; ;PRIMO ACCONTO (40%)  ANNO 2023 CONTRIBUTO ECONOMICO;01/08/2023;1259;0;596;1;Spese correnti;4;Trasferimenti correnti;4;Trasferimenti correnti a Istituzioni Sociali Private;1;Trasferimenti correnti a Istituzioni Sociali Private;1;Trasferimenti correnti a Istituzioni Sociali Private;04/08/2023
2584;1;9999999;13.863,00;13.863,00;LABS LABORATORIO SOLIDALE - ODV; ;SFALCIO ERBA VILLA FARSETTI E CIMITERI MARZO-GIUGNO 2023 - LIQUIDAZIONE PROGETTO;01/08/2023;4059;10;580;1;Spese correnti;4;Trasferimenti correnti;4;Trasferimenti correnti a Istituzioni Sociali Private;1;Trasferimenti correnti a Istituzioni Sociali Private;1;Trasferimenti correnti a Istituzioni Sociali Private;04/08/2023
2585;1;9999999;450;450;LABS LABORATORIO SOLIDALE - ODV; ;PULIZIA LOCALI E SERVIZI IGENICI COM.LI MARZO-GIUGNO 2023 -LIQUIDAZIONE PROGETTO;01/08/2023;4059;10;580;1;Spese correnti;4;Trasferimenti correnti;4;Trasferimenti correnti a Istituzioni Sociali Private;1;Trasferimenti correnti a Istituzioni Sociali Private;1;Trasferimenti correnti a Istituzioni Sociali Private;04/08/2023
2586;1;9999999;500;500;LABS LABORATORIO SOLIDALE - ODV; ;PULIZIA SPAZI COMUNALI MARZO-GIUGNO 2023 - LIQUIDAZIONE PROGETTO;01/08/2023;4059;10;580;1;Spese correnti;4;Trasferimenti correnti;4;Trasferimenti correnti a Istituzioni Sociali Private;1;Trasferimenti correnti a Istituzioni Sociali Private;1;Trasferimenti correnti a Istituzioni Sociali Private;04/08/2023
2588;1;9999999;150;150;OMESSO NOMINATIVO NEL RISPETTO DELLA NORMATIVA SULLA PROTEZIONE DATI PERSONALI; ;AGOSTO 2023 AFFIDO FAMILIARE;01/08/2023;3757;50;619;1;Spese correnti;4;Trasferimenti correnti;2;Trasferimenti correnti a Famiglie;2;Interventi assistenziali;999;Altri assegni e sussidi assistenziali;04/08/2023
2589;1;9999999;5.358,86;5.358,86;ABACO S.P.A.;766214493F;SALDO Fatt.n. 2023120003455  del 10/07/2023 AGGIO SU RISCOSSIONI OCCUPAZIONE SUOLO PUBBLICO CUP RENDICONTO DELLA GESTIONE DAL 01/06/2023 AL 30/06/2023;01/08/2023;332;0;1228;1;Spese correnti;3;Acquisto di beni e servizi;2;Acquisto di servizi;3;Aggi di riscossione;999;Altri aggi di riscossione n.a.c.;04/08/2023
2590;1;9999999;249,93;249,93;ENI SUSTAINABLE MOBILITY SPA;Z063967AC5;ACCONTO Fatt.n. 29690905  del 30/06/2023 GIUGNO 2023 - FORNITURA METANO;01/08/2023;521;0;42;1;Spese correnti;3;Acquisto di beni e servizi;1;Acquisto di beni;2;Altri beni di consumo;999;Altri beni e materiali di consumo n.a.c.;03/08/2023
2591;1;9999999;51,68;51,68;ENI SUSTAINABLE MOBILITY SPA;Z063967AC5;SALDO Fatt.n. 29690905  del 30/06/2023 GIUGNO 2023 - FORNITURA METANO;01/08/2023;521;0;42;1;Spese correnti;3;Acquisto di beni e servizi;1;Acquisto di beni;2;Altri beni di consumo;999;Altri beni e materiali di consumo n.a.c.;04/08/2023
2592;1;9999999;2.005,39;2.005,39;DPS INFORMATICA SNC;ZF43BA1F6E;SALDO Fatt.n. 1472/FE  del 10/07/2023 SOSTITUZIONE TERMINALI TELEFONICI;01/08/2023;7440;0;557;2;Spese in conto capitale;2;Investimenti fissi lordi e acquisto di terreni;1;Beni materiali;7;Hardware;4;Apparati di telecomunicazione;04/08/2023
2593;1;9999999;50;50;MARTIGNON MASSIMILIANO; ;ACCONTO Fatt.n. FPA 2/23  del 06/07/2023 COMPENSO INDENNITA DI PRESENZA PER COMMISSIONE PAESAGGIO PERIODO GENNAIO - GIUGNO 2023;01/08/2023;2430;0;7;1;Spese correnti;3;Acquisto di beni e servizi;2;Acquisto di servizi;1;Organi e incarichi istituzionali dell'amministrazione;1;Organi istituzionali dell'amministrazione - Indennità;04/08/2023
2594;1;9999999;0,73;0,73;MARTIGNON MASSIMILIANO; ;SALDO Fatt.n. FPA 2/23  del 06/07/2023 COMPENSO INDENNITA DI PRESENZA PER COMMISSIONE PAESAGGIO PERIODO GENNAIO - GIUGNO 2023;01/08/2023;2430;0;6;1;Spese correnti;3;Acquisto di beni e servizi;2;Acquisto di servizi;1;Organi e incarichi istituzionali dell'amministrazione;1;Organi istituzionali dell'amministrazione - Indennità;04/08/2023
2595;1;9999999;1.337,90;1.337,90;V.E.R.I.T.A.S. SPA; ;SALDO Fatt.n. 9500000779  del 14/07/2023 DERATIZZAZIONE - DISINFESTAZIONE PRIMO TRIMESTRE 2023;01/08/2023;2549;0;300;1;Spese correnti;3;Acquisto di beni e servizi;2;Acquisto di servizi;99;Altri servizi;9;Acquisto di sevizi per verde e arredo urbano;04/08/2023
2596;1;9999999;2.000,00;2.000,00;MANO AMICA - GRUPPO SALESE DI IMPEGNO SOCIALE O.D.V.; ;RATA GIUGNO 2023 SERVIZI AUSILIARI COLLEGATI ALLA SCUOLA;01/08/2023;1257;0;858;1;Spese correnti;4;Trasferimenti correnti;4;Trasferimenti correnti a Istituzioni Sociali Private;1;Trasferimenti correnti a Istituzioni Sociali Private;1;Trasferimenti correnti a Istituzioni Sociali Private;04/08/2023
2597;1;9999999;2.905,00;2.905,00;LABS LABORATORIO SOLIDALE - ODV; ;MAGGIO GIUGNO 2023 SERVIZI COLLEGATI ALLA SCUOLA;01/08/2023;1257;0;857;1;Spese correnti;4;Trasferimenti correnti;4;Trasferimenti correnti a Istituzioni Sociali Private;1;Trasferimenti correnti a Istituzioni Sociali Private;1;Trasferimenti correnti a Istituzioni Sociali Private;04/08/2023
2601;1;9999999;300;300;A.S.D.C.P.S. I VAIRONI; ;ONTRIBUTO ECONOMICO PER LE ATTIVIT DI PROMOZIONE DELLO SPORT SVOLTE NEL CORSO DEL 2023;01/08/2023;1959;0;614;1;Spese correnti;4;Trasferimenti correnti;4;Trasferimenti correnti a Istituzioni Sociali Private;1;Trasferimenti correnti a Istituzioni Sociali Private;1;Trasferimenti correnti a Istituzioni Sociali Private;04/08/2023
2602;1;9999999;500;500;A.S.D.JOLLY BASKET; ;CONTRIBUTO ECONOMICO PER LE ATTIVITA DI PROMOZIONE DELLO SPORT SVOLTE NEL CORSO DEL 2023;01/08/2023;1959;0;615;1;Spese correnti;4;Trasferimenti correnti;4;Trasferimenti correnti a Istituzioni Sociali Private;1;Trasferimenti correnti a Istituzioni Sociali Private;1;Trasferimenti correnti a Istituzioni Sociali Private;04/08/2023
2603;1;9999999;7.000,00;7.000,00;UNIONE SPORTIVA SAN MARCO STIGLIANO A.S.D.; ;CONTRIBUTO ECONOMICO PER LE ATTIVITA DI PROMOZIONE DELLO SPORT SVOLTE NEL CORSO DEL 2023;01/08/2023;1959;0;616;1;Spese correnti;4;Trasferimenti correnti;4;Trasferimenti correnti a Istituzioni Sociali Private;1;Trasferimenti correnti a Istituzioni Sociali Private;1;Trasferimenti correnti a Istituzioni Sociali Private;04/08/2023
2604;1;9999999;2.709,57;9.440,72;DUSSMANN SERVICE SRL;90957312AC;SALDO Fatt.n. 32331022  del 30/06/2023 GIUGNO 2023 - PASTI SCUOLA MATERNA S. ANGELO BAMBINI E INSEGNANTI;02/08/2023;1344;0;149;1;Spese correnti;3;Acquisto di beni e servizi;2;Acquisto di servizi;15;Contratti di servizio pubblico;6;Contratti di servizio per le mense scolastiche;07/08/2023
2604;2;9999999;6.731,15;9.440,72;DUSSMANN SERVICE SRL;90957312AC;SALDO Fatt.n. 32331023  del 30/06/2023 GIUGNO 2023 - PASTI SCUOLE ELEMENTARI BAMBINI E INSEGNANTI;02/08/2023;1344;0;149;1;Spese correnti;3;Acquisto di beni e servizi;2;Acquisto di servizi;15;Contratti di servizio pubblico;6;Contratti di servizio per le mense scolastiche;07/08/2023
2605;1;9999999;324,28;324,28;QUADIENT RENTAL ITALY SRL;Z933965838;SALDO Fatt.n. 2023.2597  del 25/07/2023 NOLEGGIO AFFRANCATRICE E BILANCIA UFFICIO PROTOCOLLO - PERIODO 01.01.2023 - 31.12.2023;02/08/2023;145;0;40;1;Spese correnti;3;Acquisto di beni e servizi;2;Acquisto di servizi;16;Servizi amministrativi;2;Spese postali;07/08/2023
2606;1;9999999;841,8;841,8;LA SEMAFORICA SRL;ZF93BBDBF3;SALDO Fatt.n. 2300294/8  del 25/07/2023 INTERVENTO DI MANUTENZIONE RIPRISTINO ANOMALIA SEMAFORO PEDONALE A STIGLIANO;02/08/2023;3538;0;578;1;Spese correnti;3;Acquisto di beni e servizi;2;Acquisto di servizi;9;Manutenzione ordinaria e riparazioni;1;Manutenzione ordinaria e riparazioni di mezzi di trasporto ad uso civile, di sicurezza e ordine pubblico;07/08/2023
2607;1;9999999;13.799,92;43.192,46;SOC. SOCIOCULTURALE COOP. SOCIALE;9091941B0E;SALDO Fatt.n. 2583 PAS  del 07/07/2023 MESE DI GENNAIO 2023 - ASSISTENZA DOMICILIARE E TRASPORTO;02/08/2023;3944;0;141;1;Spese correnti;3;Acquisto di beni e servizi;2;Acquisto di servizi;15;Contratti di servizio pubblico;9;Contratti di servizio di assistenza sociale domiciliare;07/08/2023
2607;2;9999999;13.845,33;43.192,46;SOC. SOCIOCULTURALE COOP. SOCIALE;9091941B0E;SALDO Fatt.n. 2584 PAS  del 07/07/2023 MESE DI FEBBRAIO 2023 - ASSISTENZA DOMICILIARE E TRASPORTO;02/08/2023;3944;0;141;1;Spese correnti;3;Acquisto di beni e servizi;2;Acquisto di servizi;15;Contratti di servizio pubblico;9;Contratti di servizio di assistenza sociale domiciliare;07/08/2023
2607;3;9999999;15.547,21;43.192,46;SOC. SOCIOCULTURALE COOP. SOCIALE;9091941B0E;SALDO Fatt.n. 2585 PAS  del 07/07/2023 MESE DI MARZO 2023 - ASSISTENZA DOMICILIARE E TRASPORTO;02/08/2023;3944;0;141;1;Spese correnti;3;Acquisto di beni e servizi;2;Acquisto di servizi;15;Contratti di servizio pubblico;9;Contratti di servizio di assistenza sociale domiciliare;07/08/2023
2608;1;9999999;29,33;29,33;C/C/P 15453301 SERVIZIO DI TESORERIA COM; ;SPESE GESTIONE CONTO CORRENTE  POSTALE 15453301 LUGLIO 2023;03/08/2023;146;0;52;1;Spese correnti;3;Acquisto di beni e servizi;2;Acquisto di servizi;17;Servizi finanziari;999;Spese per servizi finanziari n.a.c.;07/08/2023
2609;1;9999999;16,51;257,93;V.E.R.I.T.A.S. SPA; ;SALDO Fatt.n. 600007025889  del 17/07/2023 PERIODO 01.05.2023-30.06.2023 - CONSUMI PIAZZA S.D.A. CALTANA;03/08/2023;134;31;231;1;Spese correnti;3;Acquisto di beni e servizi;2;Acquisto di servizi;5;Utenze e canoni;5;Acqua;07/08/2023
2609;2;9999999;48,04;257,93;V.E.R.I.T.A.S. SPA; ;SALDO Fatt.n. 600007025877  del 17/07/2023 PERIODO 01.05.2023-30.06.2023 - CONSUMI DISTRIBUTORE ACQUA CASELLE;03/08/2023;134;31;231;1;Spese correnti;3;Acquisto di beni e servizi;2;Acquisto di servizi;5;Utenze e canoni;5;Acqua;07/08/2023
2609;3;9999999;51,69;257,93;V.E.R.I.T.A.S. SPA; ;SALDO Fatt.n. 600007025888  del 17/07/2023 PERIODO 01.05.2023-30.06.2023 - CONSUMI PIAZZA ACTV CALTANA;03/08/2023;134;31;231;1;Spese correnti;3;Acquisto di beni e servizi;2;Acquisto di servizi;5;Utenze e canoni;5;Acqua;07/08/2023
2609;4;9999999;52,21;257,93;V.E.R.I.T.A.S. SPA; ;SALDO Fatt.n. 600007025878  del 17/07/2023 PERIODO 01.05.2023-30.06.2023 - ANTINCENDIO PARCHEGGIO SMS;03/08/2023;134;31;231;1;Spese correnti;3;Acquisto di beni e servizi;2;Acquisto di servizi;5;Utenze e canoni;5;Acqua;07/08/2023
2609;5;9999999;89,48;257,93;V.E.R.I.T.A.S. SPA; ;SALDO Fatt.n. 600007025868  del 17/07/2023 PERIODO 01.05.2023-30.06.2023 - CONSUMI MERCATO DI CASELLE;03/08/2023;134;31;231;1;Spese correnti;3;Acquisto di beni e servizi;2;Acquisto di servizi;5;Utenze e canoni;5;Acqua;07/08/2023
2610;1;9999999;13,34;222,18;V.E.R.I.T.A.S. SPA; ;SALDO Fatt.n. 600007025891  del 17/07/2023 PERIODO 01.05.2023-30.06.2023 - CONSUMI PER MANIFESTAZIONI CALTANA;03/08/2023;134;31;231;1;Spese correnti;3;Acquisto di beni e servizi;2;Acquisto di servizi;5;Utenze e canoni;5;Acqua;07/08/2023
2610;2;9999999;52,21;222,18;V.E.R.I.T.A.S. SPA; ;SALDO Fatt.n. 600007025890  del 17/07/2023 PERIODO 01.05.2023-30.06.2023 -  ANTINCENCIO PARCHEGGIO STIGLIANO;03/08/2023;134;31;231;1;Spese correnti;3;Acquisto di beni e servizi;2;Acquisto di servizi;5;Utenze e canoni;5;Acqua;07/08/2023
2610;3;9999999;52,21;222,18;V.E.R.I.T.A.S. SPA; ;SALDO Fatt.n. 600007025892  del 17/07/2023 PERIODO 01.05.2023-30.06.2023 - ANTINCENDIO Z,I. SMS;03/08/2023;134;31;231;1;Spese correnti;3;Acquisto di beni e servizi;2;Acquisto di servizi;5;Utenze e canoni;5;Acqua;07/08/2023
2610;4;9999999;52,21;222,18;V.E.R.I.T.A.S. SPA; ;SALDO Fatt.n. 600007025893  del 17/07/2023 PERIODO 01.05.2023-30.06.2023 - ANTINCENDIO Z.I. SMS;03/08/2023;134;31;231;1;Spese correnti;3;Acquisto di beni e servizi;2;Acquisto di servizi;5;Utenze e canoni;5;Acqua;07/08/2023
2610;5;9999999;52,21;222,18;V.E.R.I.T.A.S. SPA; ;SALDO Fatt.n. 600007025894  del 17/07/2023 PERIODO 01.05.2023-30.06.2023 - ANTINCENDIO PARCHEGGIO C.C. PRISMA CASELLE;03/08/2023;134;31;231;1;Spese correnti;3;Acquisto di beni e servizi;2;Acquisto di servizi;5;Utenze e canoni;5;Acqua;07/08/2023
2611;1;9999999;11,72;224,04;V.E.R.I.T.A.S. SPA; ;SALDO Fatt.n. 600007025896  del 17/07/2023 PERIODO 01.05.2023-30.06.2023 - CONSUMI FONTANA VETERNIGO;03/08/2023;134;31;231;1;Spese correnti;3;Acquisto di beni e servizi;2;Acquisto di servizi;5;Utenze e canoni;5;Acqua;07/08/2023
2611;2;9999999;42,68;224,04;V.E.R.I.T.A.S. SPA; ;SALDO Fatt.n. 600007025897  del 17/07/2023 PERIODO 01.05.2023-30.06.2023 - CONSUMI MERCATO SMS;03/08/2023;134;31;231;1;Spese correnti;3;Acquisto di beni e servizi;2;Acquisto di servizi;5;Utenze e canoni;5;Acqua;07/08/2023
2611;3;9999999;52,21;224,04;V.E.R.I.T.A.S. SPA; ;SALDO Fatt.n. 600007025895  del 17/07/2023 PERIODO 01.05.2023-30.06.2023 - ANTINCENDIO STRADA PRESSO ALLOGGIO GUIOTTO;03/08/2023;134;31;231;1;Spese correnti;3;Acquisto di beni e servizi;2;Acquisto di servizi;5;Utenze e canoni;5;Acqua;07/08/2023
2611;4;9999999;52,21;224,04;V.E.R.I.T.A.S. SPA; ;SALDO Fatt.n. 600007025898  del 17/07/2023 PERIODO 01.05.2023-30.06.2023 - ANTINCENDIO PER MANIFESTAZIONI SMS;03/08/2023;134;31;231;1;Spese correnti;3;Acquisto di beni e servizi;2;Acquisto di servizi;5;Utenze e canoni;5;Acqua;07/08/2023
2611;5;9999999;65,22;224,04;V.E.R.I.T.A.S. SPA; ;SALDO Fatt.n. 600007025899  del 17/07/2023 PERIODO 01.05.2023-30.06.2023 - CONSUMI PER MANIFESTAZIONI SMS;03/08/2023;134;31;231;1;Spese correnti;3;Acquisto di beni e servizi;2;Acquisto di servizi;5;Utenze e canoni;5;Acqua;07/08/2023
2612;1;9999999;14,49;209,97;V.E.R.I.T.A.S. SPA; ;SALDO Fatt.n. 600007025910  del 17/07/2023 PERIODO 01.05.2023-30.06.2023 - FONTANA VERDE CASELLE;03/08/2023;134;31;231;1;Spese correnti;3;Acquisto di beni e servizi;2;Acquisto di servizi;5;Utenze e canoni;5;Acqua;07/08/2023
2612;2;9999999;19,43;209,97;V.E.R.I.T.A.S. SPA; ;SALDO Fatt.n. 600007025907  del 17/07/2023 PERIODO 01.05.2023-30.06.2023 - CONSUMI PARCHEGGIO CASELLE;03/08/2023;134;31;231;1;Spese correnti;3;Acquisto di beni e servizi;2;Acquisto di servizi;5;Utenze e canoni;5;Acqua;07/08/2023
2612;3;9999999;19,74;209,97;V.E.R.I.T.A.S. SPA; ;SALDO Fatt.n. 600007025906  del 17/07/2023 PERIODO 01.05.2023-30.06.2023 - CONSUMI PARCHEGGIO C.C. PRISMA CASELLE;03/08/2023;134;31;231;1;Spese correnti;3;Acquisto di beni e servizi;2;Acquisto di servizi;5;Utenze e canoni;5;Acqua;07/08/2023
2612;4;9999999;51,89;209,97;V.E.R.I.T.A.S. SPA; ;SALDO Fatt.n. 600007025909  del 17/07/2023 PERIODO 01.05.2023-30.06.2023 - CONSUMI PIAZZA CASELLE;03/08/2023;134;31;231;1;Spese correnti;3;Acquisto di beni e servizi;2;Acquisto di servizi;5;Utenze e canoni;5;Acqua;07/08/2023
2612;5;9999999;52,21;209,97;V.E.R.I.T.A.S. SPA; ;SALDO Fatt.n. 600007025905  del 17/07/2023 PERIODO 01.05.2023-30.06.2023 - ANTINCENDIO P.ZZA BEVILACQUA S.ANGELO;03/08/2023;134;31;231;1;Spese correnti;3;Acquisto di beni e servizi;2;Acquisto di servizi;5;Utenze e canoni;5;Acqua;07/08/2023
2612;6;9999999;52,21;209,97;V.E.R.I.T.A.S. SPA; ;SALDO Fatt.n. 600007025908  del 17/07/2023 PERIODO 01.05.2023-30.06.2023 - ANTINCENDIO PARCHEGGIO CASELLE;03/08/2023;134;31;231;1;Spese correnti;3;Acquisto di beni e servizi;2;Acquisto di servizi;5;Utenze e canoni;5;Acqua;07/08/2023
2613;1;9999999;174,17;174,17;V.E.R.I.T.A.S. SPA; ;SALDO Fatt.n. 600007025869  del 17/07/2023 PERIODO 01.05.2023-30.06.2023 - CONSUMI SEDE MUNICIPALE;03/08/2023;134;31;231;1;Spese correnti;3;Acquisto di beni e servizi;2;Acquisto di servizi;5;Utenze e canoni;5;Acqua;07/08/2023
2614;1;9999999;52,21;355,4;V.E.R.I.T.A.S. SPA; ;SALDO Fatt.n. 600007025873  del 17/07/2023 PERIODO 01.05.2023-30.06.2023 - ANTINCENDIO SC. ELEM. CALTANA;03/08/2023;1334;30;232;1;Spese correnti;3;Acquisto di beni e servizi;2;Acquisto di servizi;5;Utenze e canoni;5;Acqua;07/08/2023
2614;2;9999999;105,37;355,4;V.E.R.I.T.A.S. SPA; ;SALDO Fatt.n. 600007025872  del 17/07/2023 PERIODO 01.05.2023-30.06.2023 - CONSUMI SC. ELEM. SMS;03/08/2023;1334;30;232;1;Spese correnti;3;Acquisto di beni e servizi;2;Acquisto di servizi;5;Utenze e canoni;5;Acqua;07/08/2023
2614;3;9999999;197,82;355,4;V.E.R.I.T.A.S. SPA; ;SALDO Fatt.n. 600007025861  del 17/07/2023 PERIODO 21.01.2023-13.07.2023 - CONSUMI SC. ELEM. CALTANA;03/08/2023;1334;30;232;1;Spese correnti;3;Acquisto di beni e servizi;2;Acquisto di servizi;5;Utenze e canoni;5;Acqua;07/08/2023
2615;1;9999999;52,21;554,99;V.E.R.I.T.A.S. SPA; ;SALDO Fatt.n. 600007025871  del 17/07/2023 PERIODO 01.05.2023-30.06.2023 - ANTINCENDIO SC. MEDIA SMS;03/08/2023;1334;30;232;1;Spese correnti;3;Acquisto di beni e servizi;2;Acquisto di servizi;5;Utenze e canoni;5;Acqua;07/08/2023
2615;2;9999999;502,78;554,99;V.E.R.I.T.A.S. SPA; ;SALDO Fatt.n. 600007025870  del 17/07/2023 PERIODO 01.05.2023-30.06.2023 - CONSUMI SC. MEDIA SMS;03/08/2023;1334;30;232;1;Spese correnti;3;Acquisto di beni e servizi;2;Acquisto di servizi;5;Utenze e canoni;5;Acqua;07/08/2023
2616;1;9999999;14;14;V.E.R.I.T.A.S. SPA; ;ACCONTO Fatt.n. 600007025875  del 17/07/2023 PERIODO 01.05.2023-30.06.2023 - ANTINCENDIO SC.ELEM - PALESTRA VETERNIGO;03/08/2023;1334;30;232;1;Spese correnti;3;Acquisto di beni e servizi;2;Acquisto di servizi;5;Utenze e canoni;5;Acqua;07/08/2023
2617;1;9999999;24,21;24,21;V.E.R.I.T.A.S. SPA; ;ACCONTO Fatt.n. 600007025875  del 17/07/2023 PERIODO 01.05.2023-30.06.2023 - ANTINCENDIO SC.ELEM - PALESTRA VETERNIGO;03/08/2023;1334;30;232;1;Spese correnti;3;Acquisto di beni e servizi;2;Acquisto di servizi;5;Utenze e canoni;5;Acqua;07/08/2023
2618;1;9999999;14;14;V.E.R.I.T.A.S. SPA; ;ACCONTO Fatt.n. 600007025862  del 17/07/2023 PERIODO 01.05.2023-30.06.2023 - CONSUMI SC. ELEM - PALESTRA CASELLE;03/08/2023;1334;30;232;1;Spese correnti;3;Acquisto di beni e servizi;2;Acquisto di servizi;5;Utenze e canoni;5;Acqua;07/08/2023
2619;1;9999999;19,8;19,8;V.E.R.I.T.A.S. SPA; ;ACCONTO Fatt.n. 600007025862  del 17/07/2023 PERIODO 01.05.2023-30.06.2023 - CONSUMI SC. ELEM - PALESTRA CASELLE;03/08/2023;1334;30;232;1;Spese correnti;3;Acquisto di beni e servizi;2;Acquisto di servizi;5;Utenze e canoni;5;Acqua;07/08/2023
2620;1;9999999;10;10;V.E.R.I.T.A.S. SPA; ;ACCONTO Fatt.n. 600007025874  del 17/07/2023 PERIODO 01.05.2023-30.06.2023 - ANTINCENDIO SC. ELEM - PALESTRA CASELLE;03/08/2023;1334;30;232;1;Spese correnti;3;Acquisto di beni e servizi;2;Acquisto di servizi;5;Utenze e canoni;5;Acqua;07/08/2023
2621;1;9999999;32,21;32,21;V.E.R.I.T.A.S. SPA; ;ACCONTO Fatt.n. 600007025874  del 17/07/2023 PERIODO 01.05.2023-30.06.2023 - ANTINCENDIO SC. ELEM - PALESTRA CASELLE;03/08/2023;1334;30;232;1;Spese correnti;3;Acquisto di beni e servizi;2;Acquisto di servizi;5;Utenze e canoni;5;Acqua;07/08/2023
2622;1;9999999;71,79;71,79;V.E.R.I.T.A.S. SPA; ;ACCONTO Fatt.n. 600007025902  del 17/07/2023 PERIODO 01.05.2023-30.06.2023 - CONSUMI PALESTRA CALTANA;03/08/2023;1334;30;232;1;Spese correnti;3;Acquisto di beni e servizi;2;Acquisto di servizi;5;Utenze e canoni;5;Acqua;07/08/2023
2623;1;9999999;48;48;V.E.R.I.T.A.S. SPA; ;ACCONTO Fatt.n. 600007025863  del 17/07/2023 PERIODO 01.05.2023-30.06.2023 - CONSUMI SC. ELEM - PALESTRA STIGLIANO;03/08/2023;1334;30;232;1;Spese correnti;3;Acquisto di beni e servizi;2;Acquisto di servizi;5;Utenze e canoni;5;Acqua;07/08/2023
2624;1;9999999;42,28;42,28;V.E.R.I.T.A.S. SPA; ;ACCONTO Fatt.n. 600007025863  del 17/07/2023 PERIODO 01.05.2023-30.06.2023 - CONSUMI SC. ELEM - PALESTRA STIGLIANO;03/08/2023;1334;30;232;1;Spese correnti;3;Acquisto di beni e servizi;2;Acquisto di servizi;5;Utenze e canoni;5;Acqua;07/08/2023
2625;1;9999999;104,27;104,27;V.E.R.I.T.A.S. SPA; ;ACCONTO Fatt.n. 600007025866  del 17/07/2023 PERIODO 01.05.2023-30.06.2023 - CONSUMI PALESTRA SMS;03/08/2023;1334;30;232;1;Spese correnti;3;Acquisto di beni e servizi;2;Acquisto di servizi;5;Utenze e canoni;5;Acqua;07/08/2023
2626;1;9999999;40;40;V.E.R.I.T.A.S. SPA; ;ACCONTO Fatt.n. 600007025865  del 17/07/2023 PERIODO 01.05.2023-30.06.2023 - CONSUMI SC. ELEM-PALESTRA-ASILO S.ANGELO;03/08/2023;1334;30;232;1;Spese correnti;3;Acquisto di beni e servizi;2;Acquisto di servizi;5;Utenze e canoni;5;Acqua;07/08/2023
2627;1;9999999;120,92;120,92;V.E.R.I.T.A.S. SPA; ;ACCONTO Fatt.n. 600007025865  del 17/07/2023 PERIODO 01.05.2023-30.06.2023 - CONSUMI SC. ELEM-PALESTRA-ASILO S.ANGELO;03/08/2023;1334;30;232;1;Spese correnti;3;Acquisto di beni e servizi;2;Acquisto di servizi;5;Utenze e canoni;5;Acqua;07/08/2023
2628;1;9999999;10;10;V.E.R.I.T.A.S. SPA; ;ACCONTO Fatt.n. 600007025876  del 17/07/2023 PERIODO 01.05.2023-30.06.2023 - ANTINCENDIO SC. ELEM - PALESTRA - ASILO S,ANGELO;03/08/2023;1334;30;232;1;Spese correnti;3;Acquisto di beni e servizi;2;Acquisto di servizi;5;Utenze e canoni;5;Acqua;07/08/2023
2629;1;9999999;32,21;32,21;V.E.R.I.T.A.S. SPA; ;ACCONTO Fatt.n. 600007025876  del 17/07/2023 PERIODO 01.05.2023-30.06.2023 - ANTINCENDIO SC. ELEM - PALESTRA - ASILO S,ANGELO;03/08/2023;1334;30;232;1;Spese correnti;3;Acquisto di beni e servizi;2;Acquisto di servizi;5;Utenze e canoni;5;Acqua;07/08/2023
2630;1;9999999;36;36;V.E.R.I.T.A.S. SPA; ;ACCONTO Fatt.n. 600007025864  del 17/07/2023 PERIODO 01.05.2023-30.06.2023 - CONSUMI SC. ELEM - PALESTRA VETERNIGO;03/08/2023;1334;30;232;1;Spese correnti;3;Acquisto di beni e servizi;2;Acquisto di servizi;5;Utenze e canoni;5;Acqua;07/08/2023
2631;1;9999999;58,2;58,2;V.E.R.I.T.A.S. SPA; ;ACCONTO Fatt.n. 600007025864  del 17/07/2023 PERIODO 01.05.2023-30.06.2023 - CONSUMI SC. ELEM - PALESTRA VETERNIGO;03/08/2023;1334;30;232;1;Spese correnti;3;Acquisto di beni e servizi;2;Acquisto di servizi;5;Utenze e canoni;5;Acqua;07/08/2023
2632;1;9999999;26,11;26,11;V.E.R.I.T.A.S. SPA; ;ACCONTO Fatt.n. 600007025903  del 17/07/2023 PERIODO 01.05.2023-30.06.2023 - ANTINCENDIO PALESTRA CALTANA;03/08/2023;1334;30;232;1;Spese correnti;3;Acquisto di beni e servizi;2;Acquisto di servizi;5;Utenze e canoni;5;Acqua;07/08/2023
2633;1;9999999;47,01;181,06;V.E.R.I.T.A.S. SPA; ;SALDO Fatt.n. 600007025867  del 17/07/2023 PERIODO 01.05.2023-30.06.2023 - CONSUMI VILLA FARSETTI;03/08/2023;1834;0;233;1;Spese correnti;3;Acquisto di beni e servizi;2;Acquisto di servizi;5;Utenze e canoni;5;Acqua;07/08/2023
2633;2;9999999;52,21;181,06;V.E.R.I.T.A.S. SPA; ;SALDO Fatt.n. 600007025879  del 17/07/2023 PERIODO 01.05.2023-30.06.2023 - ANTINCENDIO VILLA FARSETTI;03/08/2023;1834;0;233;1;Spese correnti;3;Acquisto di beni e servizi;2;Acquisto di servizi;5;Utenze e canoni;5;Acqua;07/08/2023
2633;3;9999999;81,84;181,06;V.E.R.I.T.A.S. SPA; ;SALDO Fatt.n. 600007025904  del 17/07/2023 PERIODO 01.05.2023-30.06.2023 - CONSUMI VILLA FARSETTI;03/08/2023;1834;0;233;1;Spese correnti;3;Acquisto di beni e servizi;2;Acquisto di servizi;5;Utenze e canoni;5;Acqua;07/08/2023
2634;1;9999999;14;14;V.E.R.I.T.A.S. SPA; ;SALDO Fatt.n. 600007025875  del 17/07/2023 PERIODO 01.05.2023-30.06.2023 - ANTINCENDIO SC.ELEM - PALESTRA VETERNIGO;03/08/2023;1934;0;234;1;Spese correnti;3;Acquisto di beni e servizi;2;Acquisto di servizi;5;Utenze e canoni;5;Acqua;07/08/2023
2635;1;9999999;14;14;V.E.R.I.T.A.S. SPA; ;SALDO Fatt.n. 600007025862  del 17/07/2023 PERIODO 01.05.2023-30.06.2023 - CONSUMI SC. ELEM - PALESTRA CASELLE;03/08/2023;1934;0;234;1;Spese correnti;3;Acquisto di beni e servizi;2;Acquisto di servizi;5;Utenze e canoni;5;Acqua;07/08/2023
2636;1;9999999;10;10;V.E.R.I.T.A.S. SPA; ;SALDO Fatt.n. 600007025874  del 17/07/2023 PERIODO 01.05.2023-30.06.2023 - ANTINCENDIO SC. ELEM - PALESTRA CASELLE;03/08/2023;1934;0;234;1;Spese correnti;3;Acquisto di beni e servizi;2;Acquisto di servizi;5;Utenze e canoni;5;Acqua;07/08/2023
2637;1;9999999;71,8;71,8;V.E.R.I.T.A.S. SPA; ;SALDO Fatt.n. 600007025902  del 17/07/2023 PERIODO 01.05.2023-30.06.2023 - CONSUMI PALESTRA CALTANA;03/08/2023;1934;0;234;1;Spese correnti;3;Acquisto di beni e servizi;2;Acquisto di servizi;5;Utenze e canoni;5;Acqua;07/08/2023
2638;1;9999999;48;48;V.E.R.I.T.A.S. SPA; ;SALDO Fatt.n. 600007025863  del 17/07/2023 PERIODO 01.05.2023-30.06.2023 - CONSUMI SC. ELEM - PALESTRA STIGLIANO;03/08/2023;1934;0;234;1;Spese correnti;3;Acquisto di beni e servizi;2;Acquisto di servizi;5;Utenze e canoni;5;Acqua;07/08/2023
2639;1;9999999;104,26;104,26;V.E.R.I.T.A.S. SPA; ;SALDO Fatt.n. 600007025866  del 17/07/2023 PERIODO 01.05.2023-30.06.2023 - CONSUMI PALESTRA SMS;03/08/2023;1934;0;234;1;Spese correnti;3;Acquisto di beni e servizi;2;Acquisto di servizi;5;Utenze e canoni;5;Acqua;07/08/2023
2640;1;9999999;40;40;V.E.R.I.T.A.S. SPA; ;SALDO Fatt.n. 600007025865  del 17/07/2023 PERIODO 01.05.2023-30.06.2023 - CONSUMI SC. ELEM-PALESTRA-ASILO S.ANGELO;03/08/2023;1934;0;234;1;Spese correnti;3;Acquisto di beni e servizi;2;Acquisto di servizi;5;Utenze e canoni;5;Acqua;07/08/2023
2641;1;9999999;10;10;V.E.R.I.T.A.S. SPA; ;SALDO Fatt.n. 600007025876  del 17/07/2023 PERIODO 01.05.2023-30.06.2023 - ANTINCENDIO SC. ELEM - PALESTRA - ASILO S,ANGELO;03/08/2023;1934;0;234;1;Spese correnti;3;Acquisto di beni e servizi;2;Acquisto di servizi;5;Utenze e canoni;5;Acqua;07/08/2023
2642;1;9999999;36;36;V.E.R.I.T.A.S. SPA; ;SALDO Fatt.n. 600007025864  del 17/07/2023 PERIODO 01.05.2023-30.06.2023 - CONSUMI SC. ELEM - PALESTRA VETERNIGO;03/08/2023;1934;0;234;1;Spese correnti;3;Acquisto di beni e servizi;2;Acquisto di servizi;5;Utenze e canoni;5;Acqua;07/08/2023
2643;1;9999999;26,1;26,1;V.E.R.I.T.A.S. SPA; ;SALDO Fatt.n. 600007025903  del 17/07/2023 PERIODO 01.05.2023-30.06.2023 - ANTINCENDIO PALESTRA CALTANA;03/08/2023;1934;0;234;1;Spese correnti;3;Acquisto di beni e servizi;2;Acquisto di servizi;5;Utenze e canoni;5;Acqua;07/08/2023
2644;1;9999999;18,12;70,33;V.E.R.I.T.A.S. SPA; ;SALDO Fatt.n. 600007025880  del 17/07/2023 PERIODO 01.05.2023-30.06.2023 - CONSUMI MAGAZZINO COMUNALE;03/08/2023;3534;0;235;1;Spese correnti;3;Acquisto di beni e servizi;2;Acquisto di servizi;5;Utenze e canoni;5;Acqua;07/08/2023
2644;2;9999999;52,21;70,33;V.E.R.I.T.A.S. SPA; ;SALDO Fatt.n. 600007025881  del 17/07/2023 PERIODO 01.05.2023-30.06.2023 - ANTINCENDIO MAGAZZINO COMUNALE;03/08/2023;3534;0;235;1;Spese correnti;3;Acquisto di beni e servizi;2;Acquisto di servizi;5;Utenze e canoni;5;Acqua;07/08/2023
2645;1;9999999;47,01;99,22;V.E.R.I.T.A.S. SPA; ;SALDO Fatt.n. 600007025901  del 17/07/2023 PERIODO 01.05.2023-30.06.2023 - CONSUMI ECOCENTRO COMUNALE;03/08/2023;3534;0;235;1;Spese correnti;3;Acquisto di beni e servizi;2;Acquisto di servizi;5;Utenze e canoni;5;Acqua;07/08/2023
2645;2;9999999;52,21;99,22;V.E.R.I.T.A.S. SPA; ;SALDO Fatt.n. 600007025900  del 17/07/2023 PERIODO 01.05.2023-30.06.2023 - ANTINCENDIO ECOCENTRO COMUNALE;03/08/2023;3534;0;235;1;Spese correnti;3;Acquisto di beni e servizi;2;Acquisto di servizi;5;Utenze e canoni;5;Acqua;07/08/2023
2646;1;9999999;13,34;146,92;V.E.R.I.T.A.S. SPA; ;SALDO Fatt.n. 600007025882  del 17/07/2023 PERIODO 01.05.2023-30.06.2023 - CONSUMI CIMITERO SMS;03/08/2023;4434;0;237;1;Spese correnti;3;Acquisto di beni e servizi;2;Acquisto di servizi;5;Utenze e canoni;5;Acqua;07/08/2023
2646;2;9999999;16,51;146,92;V.E.R.I.T.A.S. SPA; ;SALDO Fatt.n. 600007025884  del 17/07/2023 PERIODO 01.05.2023-30.06.2023 - CONSUMI CIMITERO VETERNIGO;03/08/2023;4434;0;237;1;Spese correnti;3;Acquisto di beni e servizi;2;Acquisto di servizi;5;Utenze e canoni;5;Acqua;07/08/2023
2646;3;9999999;16,51;146,92;V.E.R.I.T.A.S. SPA; ;SALDO Fatt.n. 600007025885  del 17/07/2023 PERIODO 01.05.2023-30.06.2023 - CONSUMI CIMITERO S.ANGELO;03/08/2023;4434;0;237;1;Spese correnti;3;Acquisto di beni e servizi;2;Acquisto di servizi;5;Utenze e canoni;5;Acqua;07/08/2023
2646;4;9999999;17,34;146,92;V.E.R.I.T.A.S. SPA; ;SALDO Fatt.n. 600007025883  del 17/07/2023 PERIODO 01.05.2023-30.06.2023 - CONSUMI CIMITERO CALTANA;03/08/2023;4434;0;237;1;Spese correnti;3;Acquisto di beni e servizi;2;Acquisto di servizi;5;Utenze e canoni;5;Acqua;07/08/2023
2646;5;9999999;23,75;146,92;V.E.R.I.T.A.S. SPA; ;SALDO Fatt.n. 600007025886  del 17/07/2023 PERIODO 01.05.2023-30.06.2023 - CONSUMI CIMITERO CASELLE;03/08/2023;4434;0;237;1;Spese correnti;3;Acquisto di beni e servizi;2;Acquisto di servizi;5;Utenze e canoni;5;Acqua;07/08/2023
2646;6;9999999;59,47;146,92;V.E.R.I.T.A.S. SPA; ;SALDO Fatt.n. 600007025887  del 17/07/2023 PERIODO 01.05.2023-30.06.2023 - CONSUMI CIMITERO STIGLIANO;03/08/2023;4434;0;237;1;Spese correnti;3;Acquisto di beni e servizi;2;Acquisto di servizi;5;Utenze e canoni;5;Acqua;07/08/2023
2647;1;9999999;10.566,78;10.566,78;DIVERSI-AMMINISTRATORI COM.LI; ;STIPENDI MESE DI AGOSTO 23;03/08/2023;30;99;0;1;Spese correnti;3;Acquisto di beni e servizi;2;Acquisto di servizi;1;Organi e incarichi istituzionali dell'amministrazione;1;Organi istituzionali dell'amministrazione - Indennità;24/08/2023
2718;1;9999999;500;500;ASSOCIAZIONE MARZORG  - SERVIZI PER LA MUSICA; ;CONTRIBUTO  ECONOMICO PER LA REALIZZAZIONE DI UN CONCERTO NELLA CHIESA PARROCCHIALE DELLA FRAZIONE DI CASELLE NELL AMBITO DELLA RASSEGNA DI CONCERTI DORGANO MARZO ORGANISTICO 2023;04/08/2023;1859;0;628;1;Spese correnti;4;Trasferimenti correnti;4;Trasferimenti correnti a Istituzioni Sociali Private;1;Trasferimenti correnti a Istituzioni Sociali Private;1;Trasferimenti correnti a Istituzioni Sociali Private;08/08/2023
2719;1;9999999;1.421,06;1.421,06;PIEROBON DIEGO;ZC63B8A260;SALDO Fatt.n. 1/PA  del 20/07/2023 CORSO DI AGGIORNAMENTO IN MATERIA DI ANTINCENDIO;07/08/2023;1840;0;550;1;Spese correnti;3;Acquisto di beni e servizi;2;Acquisto di servizi;11;Prestazioni professionali e specialistiche;999;Altre prestazioni professionali e specialistiche n.a.c.;09/08/2023
2720;1;9999999;507,52;507,52;OMESSO NOMINATIVO NEL RISPETTO DELLA NORMATIVA SULLA PROTEZIONE DATI PERSONALI;Z3C3B9AD20;SALDO Fatt.n. 3/PA  del 20/07/2023 PREDISPOSIZIONE PIANO PER LA GESTIONE DELLE EMERGENZE PER LE MANIFESTAZIONI - RESTATE IN VILLA 2023 -;07/08/2023;1840;0;552;1;Spese correnti;3;Acquisto di beni e servizi;2;Acquisto di servizi;11;Prestazioni professionali e specialistiche;999;Altre prestazioni professionali e specialistiche n.a.c.;09/08/2023
2721;1;9999999;8.901,19;8.901,19;L'ISOLA SOC. COOPERATIVA SOCIALE;9135335CEA;SALDO Fatt.n. 14/PA  del 26/07/2023 INTERVENTI DI MANUTENZIONE DEL VERDE - IV SFALCIO;07/08/2023;2549;0;338;1;Spese correnti;3;Acquisto di beni e servizi;2;Acquisto di servizi;99;Altri servizi;9;Acquisto di sevizi per verde e arredo urbano;09/08/2023
2722;1;9999999;15.958,52;15.958,52;EUROSCAVI S.R.L.;Z5B384C862;SALDO Fatt.n. 165  del 14/07/2023 LAVORI DI INTERVENTI DI MANUTENZIONE ORDINARIA DELLE STRADE TERRITORIO COMUNALE  - SAL N. 2;07/08/2023;3538;0;938;1;Spese correnti;3;Acquisto di beni e servizi;2;Acquisto di servizi;9;Manutenzione ordinaria e riparazioni;11;Manutenzione ordinaria e riparazioni di altri beni materiali;09/08/2023
2723;1;9999999;1.526,84;1.526,84;E.N.P.A. ONLUS SEZ. DI MIRA; ;SALDO Fatt.n. 1266/PA  del 24/07/2023 CUSTODIA CANI VAGANTI MAGGIO GIUGNO 2023;07/08/2023;3659;0;116;1;Spese correnti;4;Trasferimenti correnti;4;Trasferimenti correnti a Istituzioni Sociali Private;1;Trasferimenti correnti a Istituzioni Sociali Private;1;Trasferimenti correnti a Istituzioni Sociali Private;09/08/2023
2724;1;9999999;49.860,75;49.860,75;TECNICA EDILE PROJECT SRL;9669092323;SALDO Fatt.n. 23/2023  del 20/07/2023 MANUTENZIONE STRAORDINARIA CIMITERI COMUNALI  SAL N 1 CORRISPONDENTE AL FINALE;07/08/2023;8020;0;921;2;Spese in conto capitale;2;Investimenti fissi lordi e acquisto di terreni;1;Beni materiali;9;Beni immobili;15;Cimiteri;09/08/2023
2725;1;9999999;153.572,06;153.572,06;AZIENDA ULSS N. 3 SERENISSIMA; ;DISTRETTO DI MIRANO-DOLO -SOCIALE - ANNO 2023 PAGAMENTO 3 ACCONTO GESTIONE SERVIZI SOCIALI E SOCIO SANITARI;07/08/2023;3851;0;554;1;Spese correnti;4;Trasferimenti correnti;1;Trasferimenti correnti a Amministrazioni Pubbliche;2;Trasferimenti correnti a Amministrazioni Locali;11;Trasferimenti correnti a Aziende sanitarie locali  n.a.f.;09/08/2023
2727;1;9999999;2.537,60;2.537,60;MDA STUDIO LEGALE;Z26381B096;SALDO Fatt.n. FPA 50/23  del 04/08/2023 REDAZIONE PARERE LEGALE SULLA DELLE PREVISIONI URBANISTICHE  - commi 7, 7 bis Art.18 L.R.11/2004 -;08/08/2023;540;0;879;1;Spese correnti;3;Acquisto di beni e servizi;2;Acquisto di servizi;11;Prestazioni professionali e specialistiche;999;Altre prestazioni professionali e specialistiche n.a.c.;11/08/2023
2728;1;9999999;7.905,60;7.905,60;NOISICURI PROJECT S.R.L.;Z1439AFD9D;SALDO Fatt.n. 1/327  del 20/07/2023 SERVIZI DI SUPPORTO PER IL  CONTROLLO DELLA VELOCITA ALLA POLIZIA LOCALE - PERIODO FEBBRAIO/LUGLIO 2023 - N. 9 SERVIZI FERIALI DIURNI;08/08/2023;1149;0;77;1;Spese correnti;3;Acquisto di beni e servizi;2;Acquisto di servizi;99;Altri servizi;999;Altri servizi diversi n.a.c.;11/08/2023
2729;1;9999999;1.793,25;1.793,25;DISMA SAS DI ANGELO RIGO & C.;ZBB3AB6AC1;SALDO Fatt.n. 069/2023  del 31/07/2023 SERVIZIO DI SUPPORTO ALLE ATTIVITA DELLA BIBLIOTECA COMUNALE  - LUGLIO 2023;08/08/2023;2049;0;383;1;Spese correnti;3;Acquisto di beni e servizi;2;Acquisto di servizi;99;Altri servizi;999;Altri servizi diversi n.a.c.;11/08/2023
2730;1;9999999;732;732;VENICE AMBITEC SCARL;Z113BF341E;SALDO Fatt.n. 47/001  del 31/07/2023 VERIFICA STATICA VISIVA E STRUMENTALE SU 4 TIGLII SC. ELEM. STIGLIANO;08/08/2023;2549;0;617;1;Spese correnti;3;Acquisto di beni e servizi;2;Acquisto di servizi;99;Altri servizi;9;Acquisto di sevizi per verde e arredo urbano;11/08/2023
2731;1;9999999;2,92;2,92;DOLOMITI ENERGIA SPA;9740529ACE;SALDO Fatt.n. 42303597138  del 31/07/2023 GIUGNO 2023 CONSUMI IMOOBILE COMUNALE VIA OLIMPIA SMS;08/08/2023;134;30;342;1;Spese correnti;3;Acquisto di beni e servizi;2;Acquisto di servizi;5;Utenze e canoni;6;Gas;11/08/2023
2732;1;9999999;34,44;34,44;DOLOMITI ENERGIA SPA;9740529ACE;SALDO Fatt.n. 42303597136  del 31/07/2023 GIUGNO 2023 CONSUMI SEDE MUNICIPALE;08/08/2023;134;30;342;1;Spese correnti;3;Acquisto di beni e servizi;2;Acquisto di servizi;5;Utenze e canoni;6;Gas;11/08/2023
2733;1;9999999;15,23;15,23;DOLOMITI ENERGIA SPA;9740529ACE;SALDO Fatt.n. 42303582009  del 31/07/2023 GIUGNO 2023 CONSUMI ALLOGGIO VIA DON GALLERANI CALTANA;08/08/2023;134;30;342;1;Spese correnti;3;Acquisto di beni e servizi;2;Acquisto di servizi;5;Utenze e canoni;6;Gas;11/08/2023
2734;1;9999999;34,44;34,44;DOLOMITI ENERGIA SPA;9740529ACE;SALDO Fatt.n. 42303597134  del 31/07/2023 GIUGNO 2023 CONSUMI SC. ELEM. CALTANA;08/08/2023;1334;30;344;1;Spese correnti;3;Acquisto di beni e servizi;2;Acquisto di servizi;5;Utenze e canoni;6;Gas;11/08/2023
2735;1;9999999;74,52;74,52;DOLOMITI ENERGIA SPA;9740529ACE;SALDO Fatt.n. 42303582010  del 31/07/2023 GIUGNO 2023 CONSUMI SC. ELEM - SC. MEDIA SMS;08/08/2023;1334;30;344;1;Spese correnti;3;Acquisto di beni e servizi;2;Acquisto di servizi;5;Utenze e canoni;6;Gas;11/08/2023
2736;1;9999999;28;28;DOLOMITI ENERGIA SPA;9740529ACE;ACCONTO Fatt.n. 42303597131  del 31/07/2023 GIUGNO 2023 CONSUMI SC. ELEM - PALESTRA STIGLIANO;08/08/2023;1334;30;344;1;Spese correnti;3;Acquisto di beni e servizi;2;Acquisto di servizi;5;Utenze e canoni;6;Gas;11/08/2023
2737;1;9999999;30,51;30,51;DOLOMITI ENERGIA SPA;9740529ACE;ACCONTO Fatt.n. 42303597131  del 31/07/2023 GIUGNO 2023 CONSUMI SC. ELEM - PALESTRA STIGLIANO;08/08/2023;1334;30;344;1;Spese correnti;3;Acquisto di beni e servizi;2;Acquisto di servizi;5;Utenze e canoni;6;Gas;11/08/2023
2738;1;9999999;90;90;DOLOMITI ENERGIA SPA;9740529ACE;ACCONTO Fatt.n. 42303597137  del 31/07/2023 GIUGNO 2023 CONSUMI SC. ELEM - PALESTRA - ASILO S.ANGELO;08/08/2023;1334;30;344;1;Spese correnti;3;Acquisto di beni e servizi;2;Acquisto di servizi;5;Utenze e canoni;6;Gas;11/08/2023
2739;1;9999999;272;272;DOLOMITI ENERGIA SPA;9740529ACE;ACCONTO Fatt.n. 42303597137  del 31/07/2023 GIUGNO 2023 CONSUMI SC. ELEM - PALESTRA - ASILO S.ANGELO;08/08/2023;1334;30;344;1;Spese correnti;3;Acquisto di beni e servizi;2;Acquisto di servizi;5;Utenze e canoni;6;Gas;11/08/2023
2740;1;9999999;73;73;DOLOMITI ENERGIA SPA;9740529ACE;ACCONTO Fatt.n. 42303597135  del 31/07/2023 GIUGNO 2023 CONSUMI SC. ELEM - PALESTRA CASELLE;08/08/2023;1334;30;344;1;Spese correnti;3;Acquisto di beni e servizi;2;Acquisto di servizi;5;Utenze e canoni;6;Gas;11/08/2023
2741;1;9999999;219,55;219,55;DOLOMITI ENERGIA SPA;9740529ACE;ACCONTO Fatt.n. 42303597135  del 31/07/2023 GIUGNO 2023 CONSUMI SC. ELEM - PALESTRA CASELLE;08/08/2023;1334;30;344;1;Spese correnti;3;Acquisto di beni e servizi;2;Acquisto di servizi;5;Utenze e canoni;6;Gas;11/08/2023
2742;1;9999999;123,25;123,25;DOLOMITI ENERGIA SPA;9740529ACE;ACCONTO Fatt.n. 42303582013  del 31/07/2023 GIUGNO 2023 CONSUMI PALESTRA CALTANA;08/08/2023;1334;30;344;1;Spese correnti;3;Acquisto di beni e servizi;2;Acquisto di servizi;5;Utenze e canoni;6;Gas;11/08/2023
2743;1;9999999;28;28;DOLOMITI ENERGIA SPA;9740529ACE;ACCONTO Fatt.n. 42303597132  del 31/07/2023 GIUGNO 2023 CONSUMI SC. ELEM - PALESTRA VETERNIGO;08/08/2023;1334;30;344;1;Spese correnti;3;Acquisto di beni e servizi;2;Acquisto di servizi;5;Utenze e canoni;6;Gas;11/08/2023
2744;1;9999999;47,76;47,76;DOLOMITI ENERGIA SPA;9740529ACE;ACCONTO Fatt.n. 42303597132  del 31/07/2023 GIUGNO 2023 CONSUMI SC. ELEM - PALESTRA VETERNIGO;08/08/2023;1334;30;344;1;Spese correnti;3;Acquisto di beni e servizi;2;Acquisto di servizi;5;Utenze e canoni;6;Gas;11/08/2023
2745;1;9999999;60,85;60,85;DOLOMITI ENERGIA SPA;9740529ACE;ACCONTO Fatt.n. 42303582011  del 31/07/2023 GIUGNO 2023 CONSUMI PALESTRA SMS;08/08/2023;1334;30;344;1;Spese correnti;3;Acquisto di beni e servizi;2;Acquisto di servizi;5;Utenze e canoni;6;Gas;11/08/2023
2746;1;9999999;74,49;74,49;DOLOMITI ENERGIA SPA;9740529ACE;SALDO Fatt.n. 42303582014  del 31/07/2023 GIUGNO 2023 CONSUMI IMP. SPORT. PARROCCHIA CASELLE;08/08/2023;1934;0;346;1;Spese correnti;3;Acquisto di beni e servizi;2;Acquisto di servizi;5;Utenze e canoni;6;Gas;11/08/2023
2747;1;9999999;42;42;DOLOMITI ENERGIA SPA;9740529ACE;SALDO Fatt.n. 42303597131  del 31/07/2023 GIUGNO 2023 CONSUMI SC. ELEM - PALESTRA STIGLIANO;08/08/2023;1934;0;346;1;Spese correnti;3;Acquisto di beni e servizi;2;Acquisto di servizi;5;Utenze e canoni;6;Gas;11/08/2023
2748;1;9999999;90;90;DOLOMITI ENERGIA SPA;9740529ACE;SALDO Fatt.n. 42303597137  del 31/07/2023 GIUGNO 2023 CONSUMI SC. ELEM - PALESTRA - ASILO S.ANGELO;08/08/2023;1934;0;346;1;Spese correnti;3;Acquisto di beni e servizi;2;Acquisto di servizi;5;Utenze e canoni;6;Gas;11/08/2023
2749;1;9999999;73;73;DOLOMITI ENERGIA SPA;9740529ACE;SALDO Fatt.n. 42303597135  del 31/07/2023 GIUGNO 2023 CONSUMI SC. ELEM - PALESTRA CASELLE;08/08/2023;1934;0;346;1;Spese correnti;3;Acquisto di beni e servizi;2;Acquisto di servizi;5;Utenze e canoni;6;Gas;11/08/2023
2750;1;9999999;123,24;123,24;DOLOMITI ENERGIA SPA;9740529ACE;SALDO Fatt.n. 42303582013  del 31/07/2023 GIUGNO 2023 CONSUMI PALESTRA CALTANA;08/08/2023;1934;0;346;1;Spese correnti;3;Acquisto di beni e servizi;2;Acquisto di servizi;5;Utenze e canoni;6;Gas;11/08/2023
2751;1;9999999;28;28;DOLOMITI ENERGIA SPA;9740529ACE;SALDO Fatt.n. 42303597132  del 31/07/2023 GIUGNO 2023 CONSUMI SC. ELEM - PALESTRA VETERNIGO;08/08/2023;1934;0;346;1;Spese correnti;3;Acquisto di beni e servizi;2;Acquisto di servizi;5;Utenze e canoni;6;Gas;11/08/2023
2752;1;9999999;60,86;60,86;DOLOMITI ENERGIA SPA;9740529ACE;SALDO Fatt.n. 42303582011  del 31/07/2023 GIUGNO 2023 CONSUMI PALESTRA SMS;08/08/2023;1934;0;346;1;Spese correnti;3;Acquisto di beni e servizi;2;Acquisto di servizi;5;Utenze e canoni;6;Gas;11/08/2023
2753;1;9999999;5,47;5,47;DOLOMITI ENERGIA SPA;9740529ACE;SALDO Fatt.n. 42303582012  del 31/07/2023 GIUGNO 2023 CONSUMI MAGAZZINO COMUNALE;08/08/2023;3534;0;347;1;Spese correnti;3;Acquisto di beni e servizi;2;Acquisto di servizi;5;Utenze e canoni;6;Gas;11/08/2023
2754;1;9999999;190,22;190,22;DOLOMITI ENERGIA SPA;9740529ACE;SALDO Fatt.n. 42303597133  del 31/07/2023 GIUGNO 2023 CONSUMI VILLA FARSETTI;08/08/2023;4234;0;348;1;Spese correnti;3;Acquisto di beni e servizi;2;Acquisto di servizi;5;Utenze e canoni;6;Gas;11/08/2023
2755;1;9999999;1.459,12;1.459,12;OMESSO NOMINATIVO NEL RISPETTO DELLA NORMATIVA SULLA PROTEZIONE DATI PERSONALI;Z5F3B70259;SALDO Fatt.n. 2023/VE1/23  del 08/08/2023 ASSISTENZA AMMINISTRATIVA PROCEDIMENTO PENALE N.  9819-2019  -  SALDO;08/08/2023;40;0;553;1;Spese correnti;3;Acquisto di beni e servizi;2;Acquisto di servizi;11;Prestazioni professionali e specialistiche;6;Patrocinio legale;11/08/2023
2756;1;9999999;512,4;512,4;OMESSO NOMINATIVO NEL RISPETTO DELLA NORMATIVA SULLA PROTEZIONE DATI PERSONALI;Z453B9AC9C;SALDO Fatt.n. 2/PA  del 20/07/2023 FORNITURA ESTINTORI PER CORSO ANTINCENDIO;08/08/2023;1840;0;551;1;Spese correnti;3;Acquisto di beni e servizi;2;Acquisto di servizi;11;Prestazioni professionali e specialistiche;999;Altre prestazioni professionali e specialistiche n.a.c.;11/08/2023
2758;1;9999999;39.588,56;39.588,56;AGENZIA DELLE ENTRATE - IVA; ;LIQUIDAZIONE IVA COMMERCIALE MESE DI LUGLIO 2023;08/08/2023;291;0;642;1;Spese correnti;10;Altre spese correnti;3;Versamenti IVA a debito;1;Versamenti IVA a debito per le gestioni commerciali;1;Versamenti IVA a debito per le gestioni commerciali;17/08/2023
2759;1;9999999;250;250;OMESSO NOMINATIVO NEL RISPETTO DELLA NORMATIVA SULLA PROTEZIONE DATI PERSONALI; ;LUGLIO 2023 PROGETTO RIA;10/08/2023;3957;54;124;1;Spese correnti;4;Trasferimenti correnti;2;Trasferimenti correnti a Famiglie;5;Altri trasferimenti a famiglie;999;Altri trasferimenti a famiglie n.a.c.;14/08/2023
2760;1;9999999;250;250;OMESSO NOMINATIVO NEL RISPETTO DELLA NORMATIVA SULLA PROTEZIONE DATI PERSONALI; ;LUGLIO 2023 PROGETTO RIA;10/08/2023;3957;54;124;1;Spese correnti;4;Trasferimenti correnti;2;Trasferimenti correnti a Famiglie;5;Altri trasferimenti a famiglie;999;Altri trasferimenti a famiglie n.a.c.;16/08/2023
2761;1;9999999;250;250;OMESSO NOMINATIVO NEL RISPETTO DELLA NORMATIVA SULLA PROTEZIONE DATI PERSONALI; ;LUGLIO 2023 PROGETTO RIA;10/08/2023;3957;54;124;1;Spese correnti;4;Trasferimenti correnti;2;Trasferimenti correnti a Famiglie;5;Altri trasferimenti a famiglie;999;Altri trasferimenti a famiglie n.a.c.;21/08/2023
2762;1;9999999;250;250;OMESSO NOMINATIVO NEL RISPETTO DELLA NORMATIVA SULLA PROTEZIONE DATI PERSONALI; ;LUGLIO 2023 PROGETTO RIA;10/08/2023;3957;54;124;1;Spese correnti;4;Trasferimenti correnti;2;Trasferimenti correnti a Famiglie;5;Altri trasferimenti a famiglie;999;Altri trasferimenti a famiglie n.a.c.;18/08/2023
2763;1;9999999;250;250;OMESSO NOMINATIVO NEL RISPETTO DELLA NORMATIVA SULLA PROTEZIONE DATI PERSONALI; ;LUGLIO 2023 PROGETTO RIA;10/08/2023;3957;54;124;1;Spese correnti;4;Trasferimenti correnti;2;Trasferimenti correnti a Famiglie;5;Altri trasferimenti a famiglie;999;Altri trasferimenti a famiglie n.a.c.;16/08/2023
2764;1;9999999;52,5;52,5;NEXI PAYMENTS SPA;Z122EED501;Fatt.n. 3151933  del 12/07/2023 SPESE CANONE POS - Comp. aprile maggio giugno 23 11269357Linea Diretta - Servizio Assistenza Nexi Payments SpA 0234 Codice Personale didentificazione 046963476;10/08/2023;146;0;711;1;Spese correnti;3;Acquisto di beni e servizi;2;Acquisto di servizi;17;Servizi finanziari;999;Spese per servizi finanziari n.a.c.;14/08/2023
2765;1;9999999;1;1;BANCA MPS SPA; ;COMMISSIONI BANCA INCASSI POS FISICO PAGO PA INTEGRATO CON IL NODO NAZIONALE DEI PAGAMENTI PAGO PA NANNO 2023-2025;10/08/2023;146;0;100;1;Spese correnti;3;Acquisto di beni e servizi;2;Acquisto di servizi;17;Servizi finanziari;999;Spese per servizi finanziari n.a.c.;14/08/2023
2766;1;9999999;53,62;756,48;COMUNE DI S.MARIA DI SALA; ;CONTRIBUTO IFEL RISCOSSIONE IMU PRELEVAMENTO 09-05-2023;10/08/2023;332;0;0;1;Spese correnti;3;Acquisto di beni e servizi;2;Acquisto di servizi;3;Aggi di riscossione;999;Altri aggi di riscossione n.a.c.;25/08/2023
2766;2;9999999;89,4;756,48;COMUNE DI S.MARIA DI SALA; ;CONTRIBUTO IFEL RISCOSSIONE IMU PRELEVAMENTO 26-07-2023;10/08/2023;332;0;0;1;Spese correnti;3;Acquisto di beni e servizi;2;Acquisto di servizi;3;Aggi di riscossione;999;Altri aggi di riscossione n.a.c.;25/08/2023
2766;3;9999999;613,46;756,48;COMUNE DI S.MARIA DI SALA; ;CONTRIBUTO IFEL RISCOSSIONE IMU PRELEVAMENTO 07-07-2023;10/08/2023;332;0;0;1;Spese correnti;3;Acquisto di beni e servizi;2;Acquisto di servizi;3;Aggi di riscossione;999;Altri aggi di riscossione n.a.c.;25/08/2023
2767;1;9999999;11,55;11,55;NEXI PAYMENTS SPA;Z122EED501;SALDO Fatt.n. 3151933  del 12/07/2023 SPESE CANONE POS - Comp. aprile maggio giugno 23 11269357Linea Diretta - Servizio Assistenza Nexi Payments SpA 0234 Codice Personale didentificazione 046963476;10/08/2023;146;0;711;1;Spese correnti;3;Acquisto di beni e servizi;2;Acquisto di servizi;17;Servizi finanziari;999;Spese per servizi finanziari n.a.c.;25/08/2023
2769;1;9999999;11.294,27;11.294,27;SCANTAMBURLO PIETRO;913650419E;SALDO Fatt.n. 83  del 31/07/2023 PULIZIA E RIORDINO CENTRI URBANI;28/08/2023;2549;0;337;1;Spese correnti;3;Acquisto di beni e servizi;2;Acquisto di servizi;99;Altri servizi;9;Acquisto di sevizi per verde e arredo urbano;31/08/2023
2770;1;9999999;490;490;OMESSO NOMINATIVO NEL RISPETTO DELLA NORMATIVA SULLA PROTEZIONE DATI PERSONALI; ;AGOSTO 2023  INTEGRAZIONE RETTA CASA DI RIPOSO RESIDENZA RIVIERA DEL BRENTA - CENTRO DI SOGGIORNO PER ANZIANI DI DOLO.;28/08/2023;3844;0;125;1;Spese correnti;3;Acquisto di beni e servizi;2;Acquisto di servizi;15;Contratti di servizio pubblico;8;Contratti di servizio di assistenza sociale residenziale e semiresidenziale;31/08/2023
2771;1;9999999;719;719;OMESSO NOMINATIVO NEL RISPETTO DELLA NORMATIVA SULLA PROTEZIONE DATI PERSONALI; ;AGOSTO 2023 INTEGRAZIONE RETTA CASA DI RIPOSO CENTRO RESIDENZIALE ANZIANI  UMBERTO PRIMO DI STRA -;28/08/2023;3844;0;298;1;Spese correnti;3;Acquisto di beni e servizi;2;Acquisto di servizi;15;Contratti di servizio pubblico;8;Contratti di servizio di assistenza sociale residenziale e semiresidenziale;31/08/2023
2772;1;9999999;700;700;OMESSO NOMINATIVO NEL RISPETTO DELLA NORMATIVA SULLA PROTEZIONE DATI PERSONALI; ;AGOSTO 2023 INTEGRAZIONE RETTA CASA DI RIPOSO RELAXXI DI NOALE -;28/08/2023;3844;0;363;1;Spese correnti;3;Acquisto di beni e servizi;2;Acquisto di servizi;15;Contratti di servizio pubblico;8;Contratti di servizio di assistenza sociale residenziale e semiresidenziale;31/08/2023
2773;1;9999999;916,5;916,5;OMESSO NOMINATIVO NEL RISPETTO DELLA NORMATIVA SULLA PROTEZIONE DATI PERSONALI; ;AGOSTO 2023 INTEGRAZIONE RETTA CASA DI RIPOSO IPAB L.MARIUTTO DI MIRANO -;28/08/2023;3844;0;364;1;Spese correnti;3;Acquisto di beni e servizi;2;Acquisto di servizi;15;Contratti di servizio pubblico;8;Contratti di servizio di assistenza sociale residenziale e semiresidenziale;31/08/2023
2774;1;9999999;526;526;OMESSO NOMINATIVO NEL RISPETTO DELLA NORMATIVA SULLA PROTEZIONE DATI PERSONALI; ;AGOSTO 2023 INTEGRAZIONE RETTA CASA DI RIPOSO RELAXXI DI NOALE -;28/08/2023;3844;0;365;1;Spese correnti;3;Acquisto di beni e servizi;2;Acquisto di servizi;15;Contratti di servizio pubblico;8;Contratti di servizio di assistenza sociale residenziale e semiresidenziale;31/08/2023
2775;1;9999999;500;500;OMESSO NOMINATIVO NEL RISPETTO DELLA NORMATIVA SULLA PROTEZIONE DATI PERSONALI; ;AGOSTO 2023 INTEGRAZIONE RETTA CASA DI RIPOSO DON ORIONE DI TREBASELEGHE.;28/08/2023;3844;0;126;1;Spese correnti;3;Acquisto di beni e servizi;2;Acquisto di servizi;15;Contratti di servizio pubblico;8;Contratti di servizio di assistenza sociale residenziale e semiresidenziale;31/08/2023
2776;1;9999999;550,5;550,5;OMESSO NOMINATIVO NEL RISPETTO DELLA NORMATIVA SULLA PROTEZIONE DATI PERSONALI; ;AGOSTO 2023 INTEGRAZIONE RETTA CASA DI RIPOSO E SOGGIORNO DON VITTORIO ALLEGRI DI SALZANO -;28/08/2023;3844;0;294;1;Spese correnti;3;Acquisto di beni e servizi;2;Acquisto di servizi;15;Contratti di servizio pubblico;8;Contratti di servizio di assistenza sociale residenziale e semiresidenziale;31/08/2023
2777;1;9999999;770;770;OMESSO NOMINATIVO NEL RISPETTO DELLA NORMATIVA SULLA PROTEZIONE DATI PERSONALI; ;AGOSTO 2023  INTEGRAZIONE RETTA CASA DI RIPOSO RELAXXI DI NOALE -;28/08/2023;3844;0;296;1;Spese correnti;3;Acquisto di beni e servizi;2;Acquisto di servizi;15;Contratti di servizio pubblico;8;Contratti di servizio di assistenza sociale residenziale e semiresidenziale;31/08/2023
2778;1;9999999;1.100,00;1.100,00;OMESSO NOMINATIVO NEL RISPETTO DELLA NORMATIVA SULLA PROTEZIONE DATI PERSONALI; ;AGOSTO 2023 INTEGRAZIONE RETTA CASA DI RIPOSO LA SALUTE DI FIESSO DARTICO -;28/08/2023;3844;0;295;1;Spese correnti;3;Acquisto di beni e servizi;2;Acquisto di servizi;15;Contratti di servizio pubblico;8;Contratti di servizio di assistenza sociale residenziale e semiresidenziale;31/08/2023
2779;1;9999999;500;500;COMUNE DI STANGHELLA; ;N.1 POSTO OPERAIO SPECIALIZZATO ORBOLATO STEFANO - COMPARTECIPAZIONE SPESE CONCORSUALI;28/08/2023;849;0;370;1;Spese correnti;3;Acquisto di beni e servizi;2;Acquisto di servizi;99;Altri servizi;999;Altri servizi diversi n.a.c.;31/08/2023
2780;1;9999999;183;183;FORNITECNICA S.R.L.;Z9B3B3C947;SALDO Fatt.n. 000212PA23  del 04/08/2023 ACQUISTO N. 10 ROTOLI ETICHETTE ADESIVE PER STAMPE UFFICIO PROTOCOLLO;29/08/2023;121;6;472;1;Spese correnti;3;Acquisto di beni e servizi;1;Acquisto di beni;2;Altri beni di consumo;1;Carta, cancelleria e stampati;31/08/2023
2781;1;9999999;332,48;332,48;KUWAIT PETROLEUM ITALIA SPA;Z543524413;ACCONTO Fatt.n. PJ07138076  del 31/07/2023 LUGLIO 2023 - FORNITURA CARBURANTE;29/08/2023;121;7;185;1;Spese correnti;3;Acquisto di beni e servizi;1;Acquisto di beni;2;Altri beni di consumo;2;Carburanti, combustibili e lubrificanti;31/08/2023
2782;1;9999999;467,76;467,76;ABACO S.P.A.;5325258DE8;SALDO Fatt.n. 2023140003063  del 07/08/2023 AGGIO SU RISCOSSO - INCASSI I CI IMU TASI LOTTO 3 RENDICONTO DELLA GESTIONE DAL 01/07/2023 A 31/07/2023 CIG 5325258DE8;29/08/2023;332;0;121;1;Spese correnti;3;Acquisto di beni e servizi;2;Acquisto di servizi;3;Aggi di riscossione;999;Altri aggi di riscossione n.a.c.;31/08/2023
2783;1;9999999;169,67;169,67;ABACO S.P.A.;766214493F;SALDO Fatt.n. 2023140003064  del 07/08/2023 AGGIO SU RISCOSSIONI - ICI IMU T ASI LOTTO 10-11-12-13-14-15-16-17-18DET . 788-19 RENDICONTO DELLA GESTIONE DAL 01/07/2023 A 31/07/2023 CIG 766214493F;29/08/2023;332;0;122;1;Spese correnti;3;Acquisto di beni e servizi;2;Acquisto di servizi;3;Aggi di riscossione;999;Altri aggi di riscossione n.a.c.;31/08/2023
2784;1;9999999;306,09;306,09;KUWAIT PETROLEUM ITALIA SPA;Z543524413;SALDO Fatt.n. PJ07138076  del 31/07/2023 LUGLIO 2023 - FORNITURA CARBURANTE;29/08/2023;521;0;186;1;Spese correnti;3;Acquisto di beni e servizi;1;Acquisto di beni;2;Altri beni di consumo;999;Altri beni e materiali di consumo n.a.c.;31/08/2023
2785;1;9999999;1.572,69;1.572,69;SONEPAR ITALIA  SPA;ZB939BAE73;ACCONTO Fatt.n. 0031227099  del 31/07/2023 MATERIALE ELETTRICO PER MANUTENZIONI;29/08/2023;521;0;86;1;Spese correnti;3;Acquisto di beni e servizi;1;Acquisto di beni;2;Altri beni di consumo;999;Altri beni e materiali di consumo n.a.c.;31/08/2023
2786;1;9999999;762,5;762,5;F.LLI SPAGGIARI SNC DI SPAGGIARI ALEX E C.;Z4C3B95F14;SALDO Fatt.n. 107  del 09/08/2023 FORNITURA DI N. 50 BORCHIE PER LOCULI CIMITERIALI;29/08/2023;521;0;561;1;Spese correnti;3;Acquisto di beni e servizi;1;Acquisto di beni;2;Altri beni di consumo;999;Altri beni e materiali di consumo n.a.c.;31/08/2023
2787;1;9999999;140,3;140,3;VEDETTA 2 MONDIALPOL SPA;ZD032B120B;SALDO Fatt.n. V9-2443  del 08/08/2023 LUGLIO 2023 SERVIZIO DI VIGILANZA MAGAZZINO - PROTEZIONE CIVILE V.LE FERRARIS - VILLA FARSETTI;29/08/2023;548;0;688;1;Spese correnti;3;Acquisto di beni e servizi;2;Acquisto di servizi;9;Manutenzione ordinaria e riparazioni;8;Manutenzione ordinaria e riparazioni di beni immobili;31/08/2023
2788;1;9999999;1.500,00;1.500,00;DEPURACQUE SERVIZI SRL;ZB63BFE4F4;ACCONTO Fatt.n. 000015/PA  del 31/07/2023 INTERVENTO DI SVUOTAMENTO SERBATOIO INTERRATO E LAVAGGIO CONDOTTA PRESSO LA SCUOLA ELEMENTARE DI STIGLIANO;29/08/2023;548;0;610;1;Spese correnti;3;Acquisto di beni e servizi;2;Acquisto di servizi;9;Manutenzione ordinaria e riparazioni;11;Manutenzione ordinaria e riparazioni di altri beni materiali;31/08/2023
2789;1;9999999;155,88;155,88;ABACO S.P.A.;Z4B0FF1CA6;SALDO Fatt.n. 2023140003062  del 07/08/2023 AGGIO SU RISCOSSIONI - CDS LOTTO 1 RENDICONTO DELLA GESTIONE DAL 01/07/2023 A 31/07/2023 CIG Z4B0FF1CA6;29/08/2023;1132;0;643;1;Spese correnti;3;Acquisto di beni e servizi;2;Acquisto di servizi;3;Aggi di riscossione;999;Altri aggi di riscossione n.a.c.;31/08/2023
2790;1;9999999;42,93;42,93;ABACO S.P.A.;766214493F;SALDO Fatt.n. 2023140003065  del 07/08/2023 AGGIO SU RISCOSSIONI - CDS LOTTO 3 RENDICONTO DELLA GESTIONE DAL 01/07/2023 A 31/07/2023 CIG 766214493F;29/08/2023;1132;0;945;1;Spese correnti;3;Acquisto di beni e servizi;2;Acquisto di servizi;3;Aggi di riscossione;999;Altri aggi di riscossione n.a.c.;31/08/2023
2791;1;9999999;16,31;490,41;SONEPAR ITALIA  SPA;ZB939BAE73;SALDO Fatt.n. 0031227101  del 31/07/2023 MATERIALE ELETTRICO PER MANUTENZIONI;29/08/2023;1338;0;87;1;Spese correnti;3;Acquisto di beni e servizi;2;Acquisto di servizi;9;Manutenzione ordinaria e riparazioni;4;Manutenzione ordinaria e riparazioni di impianti e macchinari;31/08/2023
2791;2;9999999;58,69;490,41;SONEPAR ITALIA  SPA;ZB939BAE73;SALDO Fatt.n. 0031227102  del 31/07/2023 MATERIALE ELETTRICO PER MANUTENZIONI;29/08/2023;1338;0;87;1;Spese correnti;3;Acquisto di beni e servizi;2;Acquisto di servizi;9;Manutenzione ordinaria e riparazioni;4;Manutenzione ordinaria e riparazioni di impianti e macchinari;31/08/2023
2791;3;9999999;415,41;490,41;SONEPAR ITALIA  SPA;ZB939BAE73;SALDO Fatt.n. 0031227100  del 31/07/2023 MATERIALE ELETTRICO PER MANUTENZIONI;29/08/2023;1338;0;87;1;Spese correnti;3;Acquisto di beni e servizi;2;Acquisto di servizi;9;Manutenzione ordinaria e riparazioni;4;Manutenzione ordinaria e riparazioni di impianti e macchinari;31/08/2023
2792;1;9999999;143,88;143,88;SONEPAR ITALIA  SPA;ZB939BAE73;ACCONTO Fatt.n. 0031227098  del 31/07/2023 MATERIALE ELETTRICO PER MANUTENZIONI;29/08/2023;1338;0;87;1;Spese correnti;3;Acquisto di beni e servizi;2;Acquisto di servizi;9;Manutenzione ordinaria e riparazioni;4;Manutenzione ordinaria e riparazioni di impianti e macchinari;31/08/2023
2793;1;9999999;148,52;148,52;SONEPAR ITALIA  SPA;ZB939BAE73;SALDO Fatt.n. 0031227099  del 31/07/2023 MATERIALE ELETTRICO PER MANUTENZIONI;29/08/2023;1338;0;87;1;Spese correnti;3;Acquisto di beni e servizi;2;Acquisto di servizi;9;Manutenzione ordinaria e riparazioni;4;Manutenzione ordinaria e riparazioni di impianti e macchinari;31/08/2023
2794;1;9999999;326,11;326,11;MEB SRL;ZC839D1F3A;SALDO Fatt.n. 039819  del 31/07/2023 MATERIALE ELETTRICO PER MANUTENZIONI;29/08/2023;1338;0;97;1;Spese correnti;3;Acquisto di beni e servizi;2;Acquisto di servizi;9;Manutenzione ordinaria e riparazioni;4;Manutenzione ordinaria e riparazioni di impianti e macchinari;31/08/2023
2795;1;9999999;1.627,59;1.627,59;DEPURACQUE SERVIZI SRL;ZB63BFE4F4;SALDO Fatt.n. 000015/PA  del 31/07/2023 INTERVENTO DI SVUOTAMENTO SERBATOIO INTERRATO E LAVAGGIO CONDOTTA PRESSO LA SCUOLA ELEMENTARE DI STIGLIANO;29/08/2023;1338;0;611;1;Spese correnti;3;Acquisto di beni e servizi;2;Acquisto di servizi;9;Manutenzione ordinaria e riparazioni;11;Manutenzione ordinaria e riparazioni di altri beni materiali;31/08/2023
2796;1;9999999;123;123;MUFFATO CLAUDIO;Z3339B74C3;SALDO Fatt.n. 247  del 31/07/2023 INTERVENTO DI RIPARAZIONE SU DECESPUGLIATORE ECHO SRM-300TES;29/08/2023;2538;0;83;1;Spese correnti;3;Acquisto di beni e servizi;2;Acquisto di servizi;9;Manutenzione ordinaria e riparazioni;5;Manutenzione ordinaria e riparazioni di attrezzature;31/08/2023
2797;1;9999999;88,28;88,28;EPIU' SRL - COSTRUIRE INSIEME;Z7939B3159;SALDO Fatt.n. 19970  del 31/07/2023 FORNITURA MATERIALE EDILE PER MANUTENZIONI;29/08/2023;3538;0;80;1;Spese correnti;3;Acquisto di beni e servizi;2;Acquisto di servizi;9;Manutenzione ordinaria e riparazioni;8;Manutenzione ordinaria e riparazioni di beni immobili;31/08/2023
2798;1;9999999;619,4;619,4;SONEPAR ITALIA  SPA;ZB939BAE73;SALDO Fatt.n. 0031227098  del 31/07/2023 MATERIALE ELETTRICO PER MANUTENZIONI;29/08/2023;3538;0;88;1;Spese correnti;3;Acquisto di beni e servizi;2;Acquisto di servizi;9;Manutenzione ordinaria e riparazioni;4;Manutenzione ordinaria e riparazioni di impianti e macchinari;31/08/2023
2799;1;9999999;69,49;69,49;C.E.I.F. DI BESSEGA DANIELE;Z2A39B329B;SALDO Fatt.n. 1-9  del 31/07/2023 MATERIALE VARIO PER MANUTENZIONI;29/08/2023;522;0;81;1;Spese correnti;3;Acquisto di beni e servizi;1;Acquisto di beni;2;Altri beni di consumo;999;Altri beni e materiali di consumo n.a.c.;31/08/2023
2800;1;9999999;78.171,90;78.171,90;V.E.R.I.T.A.S. SPA; ;SALDO Fatt.n. 310003138898  del 02/08/2023 SERVIZIO RIFIUTI periodo 01.01.2022-31.12.2022;29/08/2023;4758;0;918;1;Spese correnti;4;Trasferimenti correnti;3;Trasferimenti correnti a Imprese;99;Trasferimenti correnti a altre imprese;999;Trasferimenti correnti a altre imprese;31/08/2023
2801;1;9999999;100;100;DIVERSI-VERSAMENTO I.C.I. TOSAP C/C/P 12261301; ;SPESE GESTIONE  CONTO CORRENTE POSTALE 12261301;29/08/2023;146;0;52;1;Spese correnti;3;Acquisto di beni e servizi;2;Acquisto di servizi;17;Servizi finanziari;999;Spese per servizi finanziari n.a.c.;31/08/2023
2802;1;9999999;100;100;DIVERSI CCP LAMPADE VOTIVE C/C/P 19041300; ;SPESE GESTIONE CONTO CORRENTE POSTALE 19041300;29/08/2023;146;0;52;1;Spese correnti;3;Acquisto di beni e servizi;2;Acquisto di servizi;17;Servizi finanziari;999;Spese per servizi finanziari n.a.c.;31/08/2023
2803;1;9999999;100;100;C/C/P 10299303 POLIZIA LOCALE SERVIZIO D; ;SPESE GESTIONE CONTO CORRENTE POSTALE 10299303;29/08/2023;146;0;52;1;Spese correnti;3;Acquisto di beni e servizi;2;Acquisto di servizi;17;Servizi finanziari;999;Spese per servizi finanziari n.a.c.;31/08/2023
2807;1;9999999;10.292,13;10.292,13;SCUOLA MATERNA S.GIUSEPPE; ;II ACCONTO QUOTA ANNO 2023 CONTRIBUTO ECONOMICO;29/08/2023;1259;0;596;1;Spese correnti;4;Trasferimenti correnti;4;Trasferimenti correnti a Istituzioni Sociali Private;1;Trasferimenti correnti a Istituzioni Sociali Private;1;Trasferimenti correnti a Istituzioni Sociali Private;31/08/2023
2808;1;9999999;11.253,68;11.253,68;ASILO INFANTILE F.T.CROVATO; ;II ACCONTO QUOTA ANNO 2023 CONTRIBUTO ECONOMICO;29/08/2023;1259;0;596;1;Spese correnti;4;Trasferimenti correnti;4;Trasferimenti correnti a Istituzioni Sociali Private;1;Trasferimenti correnti a Istituzioni Sociali Private;1;Trasferimenti correnti a Istituzioni Sociali Private;31/08/2023
2809;1;9999999;9.223,74;9.223,74;SC.MAT.MADONNA DEL ROSARIO-ASILO NIDO; ;II ACCONTO QUOTA ANNO 2023 CONTRIBUTO ECONOMICO;29/08/2023;1259;0;596;1;Spese correnti;4;Trasferimenti correnti;4;Trasferimenti correnti a Istituzioni Sociali Private;1;Trasferimenti correnti a Istituzioni Sociali Private;1;Trasferimenti correnti a Istituzioni Sociali Private;31/08/2023
2810;1;9999999;14.565,68;14.565,68;SCUOLA MATERNA MARIA BAMBINA; ;II ACCONTO QUOTA ANNO 2023 CONTRIBUTO ECONOMICO;29/08/2023;1259;0;596;1;Spese correnti;4;Trasferimenti correnti;4;Trasferimenti correnti a Istituzioni Sociali Private;1;Trasferimenti correnti a Istituzioni Sociali Private;1;Trasferimenti correnti a Istituzioni Sociali Private;31/08/2023
2811;1;9999999;9.864,77;9.864,77;SCUOLA DELL INFANZIA SACRO CUORE; ;II ACCONTO QUOTA ANNO 2023 CONTRIBUTO ECONOMICO;29/08/2023;1259;0;596;1;Spese correnti;4;Trasferimenti correnti;4;Trasferimenti correnti a Istituzioni Sociali Private;1;Trasferimenti correnti a Istituzioni Sociali Private;1;Trasferimenti correnti a Istituzioni Sociali Private;31/08/2023
2812;1;9999999;29.375,57;29.375,57;AZIENDA ULSS N. 3 SERENISSIMA; ;DISTRETTO DI MIRANO DOLO ANNO 2022 SOCIALE SALDO BILANCIO DESERCIZIO 2022;29/08/2023;3851;0;519;1;Spese correnti;4;Trasferimenti correnti;1;Trasferimenti correnti a Amministrazioni Pubbliche;2;Trasferimenti correnti a Amministrazioni Locali;11;Trasferimenti correnti a Aziende sanitarie locali  n.a.f.;31/08/2023
2817;1;9999999;19,99;19,99;MOROSIN LUCA; ;INDENITA DI PRESENZA PER PARTECIPAZIONE ALLE SEDUTE I SEMESTRE 2023 - CONSIGLI COMUNALI E COMMISSIONI;29/08/2023;30;99;131;1;Spese correnti;3;Acquisto di beni e servizi;2;Acquisto di servizi;1;Organi e incarichi istituzionali dell'amministrazione;1;Organi istituzionali dell'amministrazione - Indennità;01/09/2023
2818;1;9999999;159,92;159,92;MARCHIORO AURORA; ;INDENITA DI PRESENZA PER PARTECIPAZIONE ALLE SEDUTE I SEMESTRE 2023 - CONSIGLI COMUNALI E COMMISSIONI;29/08/2023;30;99;131;1;Spese correnti;3;Acquisto di beni e servizi;2;Acquisto di servizi;1;Organi e incarichi istituzionali dell'amministrazione;1;Organi istituzionali dell'amministrazione - Indennità;01/09/2023
2819;1;9999999;119,94;119,94;MONTIN MANUEL; ;INDENITA DI PRESENZA PER PARTECIPAZIONE ALLE SEDUTE I SEMESTRE 2023 - CONSIGLI COMUNALI E COMMISSIONI;29/08/2023;30;99;131;1;Spese correnti;3;Acquisto di beni e servizi;2;Acquisto di servizi;1;Organi e incarichi istituzionali dell'amministrazione;1;Organi istituzionali dell'amministrazione - Indennità;01/09/2023
2820;1;9999999;119,94;119,94;CASARI SILVIA; ;INDENITA DI PRESENZA PER PARTECIPAZIONE ALLE SEDUTE I SEMESTRE 2023 - CONSIGLI COMUNALI E COMMISSIONI;29/08/2023;30;99;131;1;Spese correnti;3;Acquisto di beni e servizi;2;Acquisto di servizi;1;Organi e incarichi istituzionali dell'amministrazione;1;Organi istituzionali dell'amministrazione - Indennità;01/09/2023
2821;1;9999999;119,94;119,94;PITTARELLO MATTIA; ;INDENITA DI PRESENZA PER PARTECIPAZIONE ALLE SEDUTE I SEMESTRE 2023 - CONSIGLI COMUNALI E COMMISSIONI;29/08/2023;30;99;131;1;Spese correnti;3;Acquisto di beni e servizi;2;Acquisto di servizi;1;Organi e incarichi istituzionali dell'amministrazione;1;Organi istituzionali dell'amministrazione - Indennità;01/09/2023
2822;1;9999999;59,97;59,97;NEBRADIGA MICHAEL; ;INDENITA DI PRESENZA PER PARTECIPAZIONE ALLE SEDUTE I SEMESTRE 2023 - CONSIGLI COMUNALI E COMMISSIONI;29/08/2023;30;99;131;1;Spese correnti;3;Acquisto di beni e servizi;2;Acquisto di servizi;1;Organi e incarichi istituzionali dell'amministrazione;1;Organi istituzionali dell'amministrazione - Indennità;01/09/2023
2823;1;9999999;59,97;59,97;MALAGUTI FRANCA; ;INDENITA DI PRESENZA PER PARTECIPAZIONE ALLE SEDUTE I SEMESTRE 2023 - CONSIGLI COMUNALI E COMMISSIONI;29/08/2023;30;99;131;1;Spese correnti;3;Acquisto di beni e servizi;2;Acquisto di servizi;1;Organi e incarichi istituzionali dell'amministrazione;1;Organi istituzionali dell'amministrazione - Indennità;01/09/2023
2824;1;9999999;159,92;159,92;BUGIN LAURA; ;INDENITA DI PRESENZA PER PARTECIPAZIONE ALLE SEDUTE I SEMESTRE 2023 - CONSIGLI COMUNALI E COMMISSIONI;29/08/2023;30;99;131;1;Spese correnti;3;Acquisto di beni e servizi;2;Acquisto di servizi;1;Organi e incarichi istituzionali dell'amministrazione;1;Organi istituzionali dell'amministrazione - Indennità;01/09/2023
2825;1;9999999;119,94;119,94;BERTOLDO PRIMO; ;INDENITA DI PRESENZA PER PARTECIPAZIONE ALLE SEDUTE I SEMESTRE 2023 - CONSIGLI COMUNALI E COMMISSIONI;29/08/2023;30;99;131;1;Spese correnti;3;Acquisto di beni e servizi;2;Acquisto di servizi;1;Organi e incarichi istituzionali dell'amministrazione;1;Organi istituzionali dell'amministrazione - Indennità;01/09/2023
2826;1;9999999;119,94;119,94;BASSO GIOIA; ;INDENITA DI PRESENZA PER PARTECIPAZIONE ALLE SEDUTE I SEMESTRE 2023 - CONSIGLI COMUNALI E COMMISSIONI;29/08/2023;30;99;131;1;Spese correnti;3;Acquisto di beni e servizi;2;Acquisto di servizi;1;Organi e incarichi istituzionali dell'amministrazione;1;Organi istituzionali dell'amministrazione - Indennità;01/09/2023
2827;1;9999999;99,95;99,95;SAMBATI GIUSEPPE; ;INDENITA DI PRESENZA PER PARTECIPAZIONE ALLE SEDUTE I SEMESTRE 2023 - CONSIGLI COMUNALI E COMMISSIONI;29/08/2023;30;99;131;1;Spese correnti;3;Acquisto di beni e servizi;2;Acquisto di servizi;1;Organi e incarichi istituzionali dell'amministrazione;1;Organi istituzionali dell'amministrazione - Indennità;01/09/2023
2828;1;9999999;159,92;159,92;CAMPANARO SIMONETTA; ;INDENITA DI PRESENZA PER PARTECIPAZIONE ALLE SEDUTE I SEMESTRE 2023 - CONSIGLI COMUNALI E COMMISSIONI;29/08/2023;30;99;131;1;Spese correnti;3;Acquisto di beni e servizi;2;Acquisto di servizi;1;Organi e incarichi istituzionali dell'amministrazione;1;Organi istituzionali dell'amministrazione - Indennità;01/09/2023
2829;1;9999999;79,96;79,96;SCATTO FRANCESCA; ;INDENITA DI PRESENZA PER PARTECIPAZIONE ALLE SEDUTE I SEMESTRE 2023 - CONSIGLI COMUNALI E COMMISSIONI;29/08/2023;30;99;131;1;Spese correnti;3;Acquisto di beni e servizi;2;Acquisto di servizi;1;Organi e incarichi istituzionali dell'amministrazione;1;Organi istituzionali dell'amministrazione - Indennità;01/09/2023
2830;1;9999999;99,95;99,95;BACCHIN STEFANO; ;INDENITA DI PRESENZA PER PARTECIPAZIONE ALLE SEDUTE I SEMESTRE 2023 - CONSIGLI COMUNALI E COMMISSIONI;29/08/2023;30;99;131;1;Spese correnti;3;Acquisto di beni e servizi;2;Acquisto di servizi;1;Organi e incarichi istituzionali dell'amministrazione;1;Organi istituzionali dell'amministrazione - Indennità;01/09/2023
2831;1;9999999;159,92;159,92;FAVARO LEANDRO; ;INDENITA DI PRESENZA PER PARTECIPAZIONE ALLE SEDUTE I SEMESTRE 2023 - CONSIGLI COMUNALI E COMMISSIONI;29/08/2023;30;99;131;1;Spese correnti;3;Acquisto di beni e servizi;2;Acquisto di servizi;1;Organi e incarichi istituzionali dell'amministrazione;1;Organi istituzionali dell'amministrazione - Indennità;01/09/2023
2832;1;9999999;79,96;79,96;RIZZO ERICA; ;INDENITA DI PRESENZA PER PARTECIPAZIONE ALLE SEDUTE I SEMESTRE 2023 - CONSIGLI COMUNALI E COMMISSIONI;29/08/2023;30;99;131;1;Spese correnti;3;Acquisto di beni e servizi;2;Acquisto di servizi;1;Organi e incarichi istituzionali dell'amministrazione;1;Organi istituzionali dell'amministrazione - Indennità;01/09/2023
2833;1;9999999;150;150;OMESSO NOMINATIVO NEL RISPETTO DELLA NORMATIVA SULLA PROTEZIONE DATI PERSONALI; ;AGOSTO 2023 MINIMO VITALE - EROGAZIONE CONTRIBUTO;30/08/2023;4157;0;584;1;Spese correnti;4;Trasferimenti correnti;2;Trasferimenti correnti a Famiglie;2;Interventi assistenziali;999;Altri assegni e sussidi assistenziali;04/09/2023
2834;1;9999999;150;150;OMESSO NOMINATIVO NEL RISPETTO DELLA NORMATIVA SULLA PROTEZIONE DATI PERSONALI; ;AGOSTO 2023 MINIMO VITALE - EROGAZIONE CONTRIBUTO;30/08/2023;4157;0;652;1;Spese correnti;4;Trasferimenti correnti;2;Trasferimenti correnti a Famiglie;2;Interventi assistenziali;999;Altri assegni e sussidi assistenziali;05/09/2023
2835;1;9999999;100;100;OMESSO NOMINATIVO NEL RISPETTO DELLA NORMATIVA SULLA PROTEZIONE DATI PERSONALI; ;AGOSTO 2023 MINIMO VITALE - EROGAZIONE CONTRIBUTO;30/08/2023;4157;0;585;1;Spese correnti;4;Trasferimenti correnti;2;Trasferimenti correnti a Famiglie;2;Interventi assistenziali;999;Altri assegni e sussidi assistenziali;14/09/2023
2836;1;9999999;100;100;OMESSO NOMINATIVO NEL RISPETTO DELLA NORMATIVA SULLA PROTEZIONE DATI PERSONALI; ;AGOSTO 2023 MINIMO VITALE - EROGAZIONE CONTRIBUTO;30/08/2023;4157;0;657;1;Spese correnti;4;Trasferimenti correnti;2;Trasferimenti correnti a Famiglie;2;Interventi assistenziali;999;Altri assegni e sussidi assistenziali;06/09/2023
2837;1;9999999;700;700;OMESSO NOMINATIVO NEL RISPETTO DELLA NORMATIVA SULLA PROTEZIONE DATI PERSONALI; ;AGOSTO 2023 MINIMO VITALE - EROGAZIONE CONTRIBUTO;30/08/2023;4157;0;653;1;Spese correnti;4;Trasferimenti correnti;2;Trasferimenti correnti a Famiglie;2;Interventi assistenziali;999;Altri assegni e sussidi assistenziali;04/09/2023
2838;1;9999999;500;500;OMESSO NOMINATIVO NEL RISPETTO DELLA NORMATIVA SULLA PROTEZIONE DATI PERSONALI; ;AGOSTO 2023 MINIMO VITALE - EROGAZIONE CONTRIBUTO;30/08/2023;4157;0;656;1;Spese correnti;4;Trasferimenti correnti;2;Trasferimenti correnti a Famiglie;2;Interventi assistenziali;999;Altri assegni e sussidi assistenziali;13/09/2023
2839;1;9999999;150;150;OMESSO NOMINATIVO NEL RISPETTO DELLA NORMATIVA SULLA PROTEZIONE DATI PERSONALI; ;AGOSTO 2023 MINIMO VITALE - EROGAZIONE CONTRIBUTO;30/08/2023;4157;0;494;1;Spese correnti;4;Trasferimenti correnti;2;Trasferimenti correnti a Famiglie;2;Interventi assistenziali;999;Altri assegni e sussidi assistenziali;15/09/2023
2840;1;9999999;500;500;OMESSO NOMINATIVO NEL RISPETTO DELLA NORMATIVA SULLA PROTEZIONE DATI PERSONALI; ;AGOSTO 2023 MINIMO VITALE - EROGAZIONE CONTRIBUTO;30/08/2023;4157;0;654;1;Spese correnti;4;Trasferimenti correnti;2;Trasferimenti correnti a Famiglie;2;Interventi assistenziali;999;Altri assegni e sussidi assistenziali;05/09/2023
2841;1;9999999;150;150;OMESSO NOMINATIVO NEL RISPETTO DELLA NORMATIVA SULLA PROTEZIONE DATI PERSONALI; ;AGOSTO 2023 MINIMO VITALE - EROGAZIONE CONTRIBUTO;30/08/2023;4157;0;497;1;Spese correnti;4;Trasferimenti correnti;2;Trasferimenti correnti a Famiglie;2;Interventi assistenziali;999;Altri assegni e sussidi assistenziali;13/09/2023
2842;1;9999999;150;300;OMESSO NOMINATIVO NEL RISPETTO DELLA NORMATIVA SULLA PROTEZIONE DATI PERSONALI; ;AGOSTO 2023 MINIMO VITALE - EROGAZIONE CONTRIBUTO;30/08/2023;4157;0;659;1;Spese correnti;4;Trasferimenti correnti;2;Trasferimenti correnti a Famiglie;2;Interventi assistenziali;999;Altri assegni e sussidi assistenziali;01/09/2023
2842;2;9999999;150;300;OMESSO NOMINATIVO NEL RISPETTO DELLA NORMATIVA SULLA PROTEZIONE DATI PERSONALI; ;ARRETRATI LUGLIO  2023 MINIMO VITALE - EROGAZIONE CONTRIBUTO;30/08/2023;4157;0;659;1;Spese correnti;4;Trasferimenti correnti;2;Trasferimenti correnti a Famiglie;2;Interventi assistenziali;999;Altri assegni e sussidi assistenziali;01/09/2023
2843;1;9999999;100;100;OMESSO NOMINATIVO NEL RISPETTO DELLA NORMATIVA SULLA PROTEZIONE DATI PERSONALI; ;AGOSTO 2023 MINIMO VITALE - EROGAZIONE CONTRIBUTO;30/08/2023;4157;0;493;1;Spese correnti;4;Trasferimenti correnti;2;Trasferimenti correnti a Famiglie;2;Interventi assistenziali;999;Altri assegni e sussidi assistenziali;04/09/2023
2844;1;9999999;150;150;OMESSO NOMINATIVO NEL RISPETTO DELLA NORMATIVA SULLA PROTEZIONE DATI PERSONALI; ;AGOSTO 2023 MINIMO VITALE - EROGAZIONE CONTRIBUTO;30/08/2023;4157;0;280;1;Spese correnti;4;Trasferimenti correnti;2;Trasferimenti correnti a Famiglie;2;Interventi assistenziali;999;Altri assegni e sussidi assistenziali;05/09/2023
2845;1;9999999;700;700;OMESSO NOMINATIVO NEL RISPETTO DELLA NORMATIVA SULLA PROTEZIONE DATI PERSONALI; ;AGOSTO 2023 MINIMO VITALE - EROGAZIONE CONTRIBUTO;30/08/2023;4157;0;65;1;Spese correnti;4;Trasferimenti correnti;2;Trasferimenti correnti a Famiglie;2;Interventi assistenziali;999;Altri assegni e sussidi assistenziali;04/09/2023
2846;1;9999999;150;150;OMESSO NOMINATIVO NEL RISPETTO DELLA NORMATIVA SULLA PROTEZIONE DATI PERSONALI; ;AGOSTO 2023 MINIMO VITALE - EROGAZIONE CONTRIBUTO;30/08/2023;4157;0;655;1;Spese correnti;4;Trasferimenti correnti;2;Trasferimenti correnti a Famiglie;2;Interventi assistenziali;999;Altri assegni e sussidi assistenziali;04/09/2023
2847;1;9999999;150;150;OMESSO NOMINATIVO NEL RISPETTO DELLA NORMATIVA SULLA PROTEZIONE DATI PERSONALI; ;AGOSTO 2023 MINIMO VITALE - EROGAZIONE CONTRIBUTO;30/08/2023;4157;0;583;1;Spese correnti;4;Trasferimenti correnti;2;Trasferimenti correnti a Famiglie;2;Interventi assistenziali;999;Altri assegni e sussidi assistenziali;29/09/2023
2848;1;9999999;400;400;OMESSO NOMINATIVO NEL RISPETTO DELLA NORMATIVA SULLA PROTEZIONE DATI PERSONALI; ;AGOSTO 2023 MINIMO VITALE - EROGAZIONE CONTRIBUTO;30/08/2023;4157;0;658;1;Spese correnti;4;Trasferimenti correnti;2;Trasferimenti correnti a Famiglie;2;Interventi assistenziali;999;Altri assegni e sussidi assistenziali;20/09/2023
2849;1;9999999;150;150;OMESSO NOMINATIVO NEL RISPETTO DELLA NORMATIVA SULLA PROTEZIONE DATI PERSONALI; ;AGOSTO 2023 MINIMO VITALE - EROGAZIONE CONTRIBUTO;30/08/2023;4157;0;605;1;Spese correnti;4;Trasferimenti correnti;2;Trasferimenti correnti a Famiglie;2;Interventi assistenziali;999;Altri assegni e sussidi assistenziali;19/09/2023
2850;1;9999999;130;130;OMESSO NOMINATIVO NEL RISPETTO DELLA NORMATIVA SULLA PROTEZIONE DATI PERSONALI; ;AGOSTO 2023 MINIMO VITALE - EROGAZIONE CONTRIBUTO;30/08/2023;4157;0;606;1;Spese correnti;4;Trasferimenti correnti;2;Trasferimenti correnti a Famiglie;2;Interventi assistenziali;999;Altri assegni e sussidi assistenziali;05/09/2023
2851;1;9999999;100;100;OMESSO NOMINATIVO NEL RISPETTO DELLA NORMATIVA SULLA PROTEZIONE DATI PERSONALI; ;AGOSTO 2023 MINIMO VITALE - EROGAZIONE CONTRIBUTO;30/08/2023;4157;0;660;1;Spese correnti;4;Trasferimenti correnti;2;Trasferimenti correnti a Famiglie;2;Interventi assistenziali;999;Altri assegni e sussidi assistenziali;08/09/2023
2852;1;9999999;5,52;5,52;ENEL ENERGIA SPA;97224145D7;ACCONTO Fatt.n. 004355104899  del 07/08/2023 LUGLIO 2023 - CONSUMI CIMITERO S.ANGELO - LAMPADE VOTIVE;31/08/2023;134;30;312;1;Spese correnti;3;Acquisto di beni e servizi;2;Acquisto di servizi;5;Utenze e canoni;4;Energia elettrica;04/09/2023
2853;1;9999999;5,57;5,57;ENEL ENERGIA SPA;97224145D7;ACCONTO Fatt.n. 004355104901  del 07/08/2023 LUGLIO 2023 - CONSUMI CIMITERO CASELLE - LAMPADE VOTIVE;31/08/2023;134;30;312;1;Spese correnti;3;Acquisto di beni e servizi;2;Acquisto di servizi;5;Utenze e canoni;4;Energia elettrica;04/09/2023
2854;1;9999999;18;18;ENEL ENERGIA SPA;97224145D7;ACCONTO Fatt.n. 004355104888  del 07/08/2023 LUGLIO 2023 - CONSUMI CIMITERO CALTANA - LAMPADE VOTIVE;31/08/2023;134;30;312;1;Spese correnti;3;Acquisto di beni e servizi;2;Acquisto di servizi;5;Utenze e canoni;4;Energia elettrica;04/09/2023
2855;1;9999999;4,27;4,27;ENEL ENERGIA SPA;97224145D7;ACCONTO Fatt.n. 004355104908  del 07/08/2023 LUGLIO 2023 - CONSUMI CIMITERO VETERNIGO - LAMPADE VOTIVE;31/08/2023;134;30;312;1;Spese correnti;3;Acquisto di beni e servizi;2;Acquisto di servizi;5;Utenze e canoni;4;Energia elettrica;04/09/2023
2856;1;9999999;8,12;8,12;ENEL ENERGIA SPA;97224145D7;ACCONTO Fatt.n. 004357514974  del 09/08/2023 LUGLIO 2023 - CONSUMI CIMITERO SMS - LAMPADE VOTIVE;31/08/2023;134;30;312;1;Spese correnti;3;Acquisto di beni e servizi;2;Acquisto di servizi;5;Utenze e canoni;4;Energia elettrica;04/09/2023
2857;1;9999999;17,74;450,03;ENEL ENERGIA SPA;97224145D7;SALDO Fatt.n. 004355104905  del 07/08/2023 LUGLIO 2023 - CONSUMI IMMOBILE COMUNALE VIA OLIMPIA SMS;31/08/2023;134;31;313;1;Spese correnti;3;Acquisto di beni e servizi;2;Acquisto di servizi;5;Utenze e canoni;4;Energia elettrica;04/09/2023
2857;2;9999999;42,27;450,03;ENEL ENERGIA SPA;97224145D7;SALDO Fatt.n. 004355104892  del 07/08/2023 LUGLIO 2023 - CONSUMI ALLOGGIO VIA DON GALLERANI CALTANA;31/08/2023;134;31;313;1;Spese correnti;3;Acquisto di beni e servizi;2;Acquisto di servizi;5;Utenze e canoni;4;Energia elettrica;04/09/2023
2857;3;9999999;77,8;450,03;ENEL ENERGIA SPA;97224145D7;SALDO Fatt.n. 004355104904  del 07/08/2023 LUGLIO 2023 - CONSUMI MERCATO CALTANA;31/08/2023;134;31;313;1;Spese correnti;3;Acquisto di beni e servizi;2;Acquisto di servizi;5;Utenze e canoni;4;Energia elettrica;04/09/2023
2857;4;9999999;92,57;450,03;ENEL ENERGIA SPA;97224145D7;SALDO Fatt.n. 004355104897  del 07/08/2023 LUGLIO 2023 - CONSUMI PARCHEGGIO OVALE SMS;31/08/2023;134;31;313;1;Spese correnti;3;Acquisto di beni e servizi;2;Acquisto di servizi;5;Utenze e canoni;4;Energia elettrica;04/09/2023
2857;5;9999999;101,42;450,03;ENEL ENERGIA SPA;97224145D7;SALDO Fatt.n. 004355104909  del 07/08/2023 LUGLIO 2023 - CONSUMI MERCATO SMS;31/08/2023;134;31;313;1;Spese correnti;3;Acquisto di beni e servizi;2;Acquisto di servizi;5;Utenze e canoni;4;Energia elettrica;04/09/2023
2857;6;9999999;118,23;450,03;ENEL ENERGIA SPA;97224145D7;SALDO Fatt.n. 004355104891  del 07/08/2023 LUGLIO 2023 - CONSUMI MERCATO CASELLE;31/08/2023;134;31;313;1;Spese correnti;3;Acquisto di beni e servizi;2;Acquisto di servizi;5;Utenze e canoni;4;Energia elettrica;04/09/2023
2858;1;9999999;54,53;367,35;ENEL ENERGIA SPA;97224145D7;SALDO Fatt.n. 004355697166  del 08/08/2023 LUGLIO 2023 - CONSUMI PARCHEGGIO SMS;31/08/2023;134;31;313;1;Spese correnti;3;Acquisto di beni e servizi;2;Acquisto di servizi;5;Utenze e canoni;4;Energia elettrica;04/09/2023
2858;2;9999999;79,68;367,35;ENEL ENERGIA SPA;97224145D7;SALDO Fatt.n. 004362519804  del 12/08/2023 LUGLIO 2023 - CONSUMI FONTANA VETERNIGO;31/08/2023;134;31;313;1;Spese correnti;3;Acquisto di beni e servizi;2;Acquisto di servizi;5;Utenze e canoni;4;Energia elettrica;04/09/2023
2858;3;9999999;98,56;367,35;ENEL ENERGIA SPA;97224145D7;SALDO Fatt.n. 004355697165  del 08/08/2023 LUGLIO 2023 - CONSUMI P.ZZA S.D.A. CALTANA;31/08/2023;134;31;313;1;Spese correnti;3;Acquisto di beni e servizi;2;Acquisto di servizi;5;Utenze e canoni;4;Energia elettrica;04/09/2023
2858;4;9999999;134,58;367,35;ENEL ENERGIA SPA;97224145D7;SALDO Fatt.n. 004361142529  del 11/08/2023 LUGLIO 2023 - CONSUMI PARCHEGGIO C.C. PRISMA CASELLE;31/08/2023;134;31;313;1;Spese correnti;3;Acquisto di beni e servizi;2;Acquisto di servizi;5;Utenze e canoni;4;Energia elettrica;04/09/2023
2859;1;9999999;1.988,26;1.988,26;ENEL ENERGIA SPA;97224145D7;SALDO Fatt.n. 004361142528  del 11/08/2023 LUGLIO 2023 - CONSUMI SEDE MUNICIPALE;31/08/2023;134;31;313;1;Spese correnti;3;Acquisto di beni e servizi;2;Acquisto di servizi;5;Utenze e canoni;4;Energia elettrica;04/09/2023
2860;1;9999999;99,11;1.063,32;ENEL ENERGIA SPA;97224145D7;SALDO Fatt.n. 004355104907  del 07/08/2023 LUGLIO 2023 - CONSUMI SC. ELEM. CALTANA;31/08/2023;1334;30;314;1;Spese correnti;3;Acquisto di beni e servizi;2;Acquisto di servizi;5;Utenze e canoni;4;Energia elettrica;04/09/2023
2860;2;9999999;245,85;1.063,32;ENEL ENERGIA SPA;97224145D7;SALDO Fatt.n. 004355104903  del 07/08/2023 LUGLIO 2023 - CONSUMI SC. ELEM. CASELLE;31/08/2023;1334;30;314;1;Spese correnti;3;Acquisto di beni e servizi;2;Acquisto di servizi;5;Utenze e canoni;4;Energia elettrica;04/09/2023
2860;3;9999999;718,36;1.063,32;ENEL ENERGIA SPA;97224145D7;SALDO Fatt.n. 004355104889  del 07/08/2023 LUGLIO 2023 - CONSUMI SC. ELEM - SC. MEDIA SMS;31/08/2023;1334;30;314;1;Spese correnti;3;Acquisto di beni e servizi;2;Acquisto di servizi;5;Utenze e canoni;4;Energia elettrica;04/09/2023
2861;1;9999999;160;160;ENEL ENERGIA SPA;97224145D7;ACCONTO Fatt.n. 004355104898  del 07/08/2023 LUGLIO 2023 - CONSUMI SC. ELEM - PALESTRA - ASILO S.ANGELO;31/08/2023;1334;30;314;1;Spese correnti;3;Acquisto di beni e servizi;2;Acquisto di servizi;5;Utenze e canoni;4;Energia elettrica;04/09/2023
2862;1;9999999;481,56;481,56;ENEL ENERGIA SPA;97224145D7;ACCONTO Fatt.n. 004355104898  del 07/08/2023 LUGLIO 2023 - CONSUMI SC. ELEM - PALESTRA - ASILO S.ANGELO;31/08/2023;1334;30;314;1;Spese correnti;3;Acquisto di beni e servizi;2;Acquisto di servizi;5;Utenze e canoni;4;Energia elettrica;04/09/2023
2863;1;9999999;54,47;54,47;ENEL ENERGIA SPA;97224145D7;ACCONTO Fatt.n. 004355104890  del 07/08/2023 LUGLIO 2023 - CONSUMI PALESTRA CASELLE;31/08/2023;1334;30;314;1;Spese correnti;3;Acquisto di beni e servizi;2;Acquisto di servizi;5;Utenze e canoni;4;Energia elettrica;04/09/2023
2864;1;9999999;133,47;133,47;ENEL ENERGIA SPA;97224145D7;ACCONTO Fatt.n. 004355104900  del 07/08/2023 LUGLIO 2023 - CONSUMI PALESTRA SMS;31/08/2023;1334;30;314;1;Spese correnti;3;Acquisto di beni e servizi;2;Acquisto di servizi;5;Utenze e canoni;4;Energia elettrica;04/09/2023
2865;1;9999999;112,04;112,04;ENEL ENERGIA SPA;97224145D7;ACCONTO Fatt.n. 004355104895  del 07/08/2023 LUGLIO 2023 - CONSUMI PALESTRA CALTANA;31/08/2023;1334;30;314;1;Spese correnti;3;Acquisto di beni e servizi;2;Acquisto di servizi;5;Utenze e canoni;4;Energia elettrica;04/09/2023
2866;1;9999999;67,2;67,2;ENEL ENERGIA SPA;97224145D7;ACCONTO Fatt.n. 004355104902  del 07/08/2023 LUGLIO 2023 - CONSUMI SC. ELEM - PALESTRA STIGLIANO;31/08/2023;1334;30;314;1;Spese correnti;3;Acquisto di beni e servizi;2;Acquisto di servizi;5;Utenze e canoni;4;Energia elettrica;04/09/2023
2867;1;9999999;72,17;72,17;ENEL ENERGIA SPA;97224145D7;ACCONTO Fatt.n. 004355104902  del 07/08/2023 LUGLIO 2023 - CONSUMI SC. ELEM - PALESTRA STIGLIANO;31/08/2023;1334;30;314;1;Spese correnti;3;Acquisto di beni e servizi;2;Acquisto di servizi;5;Utenze e canoni;4;Energia elettrica;04/09/2023
2868;1;9999999;80;80;ENEL ENERGIA SPA;97224145D7;ACCONTO Fatt.n. 004361142530  del 11/08/2023 LUGLIO 2023 - CONSUMI SC. ELEM - PALESTRA VETERNIGO;31/08/2023;1334;30;314;1;Spese correnti;3;Acquisto di beni e servizi;2;Acquisto di servizi;5;Utenze e canoni;4;Energia elettrica;04/09/2023
2869;1;9999999;128,92;128,92;ENEL ENERGIA SPA;97224145D7;ACCONTO Fatt.n. 004361142530  del 11/08/2023 LUGLIO 2023 - CONSUMI SC. ELEM - PALESTRA VETERNIGO;31/08/2023;1334;30;314;1;Spese correnti;3;Acquisto di beni e servizi;2;Acquisto di servizi;5;Utenze e canoni;4;Energia elettrica;04/09/2023
2870;1;9999999;354,93;354,93;ENEL ENERGIA SPA;97224145D7;SALDO Fatt.n. 004355104912  del 07/08/2023 LUGLIO 2023 - CONSUMI IMP. SPORT. SMS;31/08/2023;1934;0;316;1;Spese correnti;3;Acquisto di beni e servizi;2;Acquisto di servizi;5;Utenze e canoni;4;Energia elettrica;04/09/2023
2871;1;9999999;224,03;224,03;ENEL ENERGIA SPA;97224145D7;SALDO Fatt.n. 004355104894  del 07/08/2023 LUGLIO 2023 - CONSUMI IMP. SPORT. PARROCCHIA CASELLE;31/08/2023;1934;0;316;1;Spese correnti;3;Acquisto di beni e servizi;2;Acquisto di servizi;5;Utenze e canoni;4;Energia elettrica;04/09/2023
2872;1;9999999;506,12;506,12;ENEL ENERGIA SPA;97224145D7;SALDO Fatt.n. 004355104910  del 07/08/2023 LUGLIO 2023 - CONSUMI IMP. SPORT. VETERNIGO;31/08/2023;1934;0;316;1;Spese correnti;3;Acquisto di beni e servizi;2;Acquisto di servizi;5;Utenze e canoni;4;Energia elettrica;04/09/2023
2873;1;9999999;86,21;86,21;ENEL ENERGIA SPA;97224145D7;SALDO Fatt.n. 004355104906  del 07/08/2023 LUGLIO 2023 - CONSUMI IMP. SPORT. SMS;31/08/2023;1934;0;316;1;Spese correnti;3;Acquisto di beni e servizi;2;Acquisto di servizi;5;Utenze e canoni;4;Energia elettrica;04/09/2023
2874;1;9999999;36,15;36,15;ENEL ENERGIA SPA;97224145D7;SALDO Fatt.n. 004355104893  del 07/08/2023 LUGLIO 2023 - CONSUMI IMP. SPORT. CASELLE;31/08/2023;1934;0;316;1;Spese correnti;3;Acquisto di beni e servizi;2;Acquisto di servizi;5;Utenze e canoni;4;Energia elettrica;04/09/2023
2875;1;9999999;130,97;130,97;ENEL ENERGIA SPA;97224145D7;SALDO Fatt.n. 004355104911  del 07/08/2023 LUGLIO 2023 - CONSUMI IMP. SPORT. CALTANA;31/08/2023;1934;0;316;1;Spese correnti;3;Acquisto di beni e servizi;2;Acquisto di servizi;5;Utenze e canoni;4;Energia elettrica;04/09/2023
2876;1;9999999;160;160;ENEL ENERGIA SPA;97224145D7;SALDO Fatt.n. 004355104898  del 07/08/2023 LUGLIO 2023 - CONSUMI SC. ELEM - PALESTRA - ASILO S.ANGELO;31/08/2023;1934;0;316;1;Spese correnti;3;Acquisto di beni e servizi;2;Acquisto di servizi;5;Utenze e canoni;4;Energia elettrica;04/09/2023
2877;1;9999999;54,46;54,46;ENEL ENERGIA SPA;97224145D7;SALDO Fatt.n. 004355104890  del 07/08/2023 LUGLIO 2023 - CONSUMI PALESTRA CASELLE;31/08/2023;1934;0;316;1;Spese correnti;3;Acquisto di beni e servizi;2;Acquisto di servizi;5;Utenze e canoni;4;Energia elettrica;04/09/2023
2878;1;9999999;133,48;133,48;ENEL ENERGIA SPA;97224145D7;SALDO Fatt.n. 004355104900  del 07/08/2023 LUGLIO 2023 - CONSUMI PALESTRA SMS;31/08/2023;1934;0;316;1;Spese correnti;3;Acquisto di beni e servizi;2;Acquisto di servizi;5;Utenze e canoni;4;Energia elettrica;04/09/2023
2879;1;9999999;112,03;112,03;ENEL ENERGIA SPA;97224145D7;SALDO Fatt.n. 004355104895  del 07/08/2023 LUGLIO 2023 - CONSUMI PALESTRA CALTANA;31/08/2023;1934;0;316;1;Spese correnti;3;Acquisto di beni e servizi;2;Acquisto di servizi;5;Utenze e canoni;4;Energia elettrica;04/09/2023
2880;1;9999999;100,8;100,8;ENEL ENERGIA SPA;97224145D7;SALDO Fatt.n. 004355104902  del 07/08/2023 LUGLIO 2023 - CONSUMI SC. ELEM - PALESTRA STIGLIANO;31/08/2023;1934;0;316;1;Spese correnti;3;Acquisto di beni e servizi;2;Acquisto di servizi;5;Utenze e canoni;4;Energia elettrica;04/09/2023
2881;1;9999999;80;80;ENEL ENERGIA SPA;97224145D7;SALDO Fatt.n. 004361142530  del 11/08/2023 LUGLIO 2023 - CONSUMI SC. ELEM - PALESTRA VETERNIGO;31/08/2023;1934;0;316;1;Spese correnti;3;Acquisto di beni e servizi;2;Acquisto di servizi;5;Utenze e canoni;4;Energia elettrica;04/09/2023
2882;1;9999999;74,44;74,44;ENEL ENERGIA SPA;97224145D7;SALDO Fatt.n. 004355104885  del 07/08/2023 LUGLIO 2023 - CONSUMI ECOCENTRO COMUNALE;31/08/2023;3534;0;318;1;Spese correnti;3;Acquisto di beni e servizi;2;Acquisto di servizi;5;Utenze e canoni;4;Energia elettrica;04/09/2023
2883;1;9999999;275,43;275,43;ENEL ENERGIA SPA;97224145D7;SALDO Fatt.n. 004355104884  del 07/08/2023 LUGLIO 2023 - CONSUMI MAGAZZINO COMUNALE;31/08/2023;3534;0;318;1;Spese correnti;3;Acquisto di beni e servizi;2;Acquisto di servizi;5;Utenze e canoni;4;Energia elettrica;04/09/2023
2884;1;9999999;346,25;13.572,40;ENEL ENERGIA SPA;97224145D7;SALDO Fatt.n. 004363472047  del 13/08/2023 LUGLIO 2023 - CONSUMI ILLUMINAZIONE PUBBLICA;31/08/2023;3544;0;321;1;Spese correnti;3;Acquisto di beni e servizi;2;Acquisto di servizi;15;Contratti di servizio pubblico;15;Contratti di servizio per l'illuminazione pubblica;04/09/2023
2884;2;9999999;2.733,84;13.572,40;ENEL ENERGIA SPA;97224145D7;SALDO Fatt.n. 004363472048  del 13/08/2023 LUGLIO 2023 - CONSUMI ILLUMINAZIONE PUBBLICA;31/08/2023;3544;0;321;1;Spese correnti;3;Acquisto di beni e servizi;2;Acquisto di servizi;15;Contratti di servizio pubblico;15;Contratti di servizio per l'illuminazione pubblica;04/09/2023
2884;3;9999999;10.492,31;13.572,40;ENEL ENERGIA SPA;97224145D7;SALDO Fatt.n. 004363472046  del 13/08/2023 LUGLIO 2023 - CONSUMI ILLUMINAZIONE PUBBLICA;31/08/2023;3544;0;321;1;Spese correnti;3;Acquisto di beni e servizi;2;Acquisto di servizi;15;Contratti di servizio pubblico;15;Contratti di servizio per l'illuminazione pubblica;04/09/2023
2885;1;9999999;374,3;1.031,43;ENEL ENERGIA SPA;97224145D7;SALDO Fatt.n. 004355104896  del 07/08/2023 LUGLIO 2023 - CONSUMI VILLA FARSETTI;31/08/2023;4234;0;319;1;Spese correnti;3;Acquisto di beni e servizi;2;Acquisto di servizi;5;Utenze e canoni;4;Energia elettrica;04/09/2023
2885;2;9999999;657,13;1.031,43;ENEL ENERGIA SPA;97224145D7;SALDO Fatt.n. 004355104887  del 07/08/2023 LUGLIO 2023 - CONSUMI VILLA FARSETTI;31/08/2023;4234;0;319;1;Spese correnti;3;Acquisto di beni e servizi;2;Acquisto di servizi;5;Utenze e canoni;4;Energia elettrica;04/09/2023
2886;1;9999999;43,96;43,96;ENEL ENERGIA SPA;97224145D7;SALDO Fatt.n. 004355104886  del 07/08/2023 LUGLIO 2023 - CONSUMI CIMITERO STIGLIANO - LAMPADE VOTIVE;31/08/2023;4434;0;320;1;Spese correnti;3;Acquisto di beni e servizi;2;Acquisto di servizi;5;Utenze e canoni;4;Energia elettrica;04/09/2023
2887;1;9999999;37;37;ENEL ENERGIA SPA;97224145D7;SALDO Fatt.n. 004355104899  del 07/08/2023 LUGLIO 2023 - CONSUMI CIMITERO S.ANGELO - LAMPADE VOTIVE;31/08/2023;4434;0;320;1;Spese correnti;3;Acquisto di beni e servizi;2;Acquisto di servizi;5;Utenze e canoni;4;Energia elettrica;04/09/2023
2888;1;9999999;46;46;ENEL ENERGIA SPA;97224145D7;SALDO Fatt.n. 004355104901  del 07/08/2023 LUGLIO 2023 - CONSUMI CIMITERO CASELLE - LAMPADE VOTIVE;31/08/2023;4434;0;320;1;Spese correnti;3;Acquisto di beni e servizi;2;Acquisto di servizi;5;Utenze e canoni;4;Energia elettrica;04/09/2023
2889;1;9999999;92;92;ENEL ENERGIA SPA;97224145D7;SALDO Fatt.n. 004355104888  del 07/08/2023 LUGLIO 2023 - CONSUMI CIMITERO CALTANA - LAMPADE VOTIVE;31/08/2023;4434;0;320;1;Spese correnti;3;Acquisto di beni e servizi;2;Acquisto di servizi;5;Utenze e canoni;4;Energia elettrica;04/09/2023
2890;1;9999999;40;40;ENEL ENERGIA SPA;97224145D7;SALDO Fatt.n. 004355104908  del 07/08/2023 LUGLIO 2023 - CONSUMI CIMITERO VETERNIGO - LAMPADE VOTIVE;31/08/2023;4434;0;320;1;Spese correnti;3;Acquisto di beni e servizi;2;Acquisto di servizi;5;Utenze e canoni;4;Energia elettrica;04/09/2023
2891;1;9999999;37;37;ENEL ENERGIA SPA;97224145D7;SALDO Fatt.n. 004357514974  del 09/08/2023 LUGLIO 2023 - CONSUMI CIMITERO SMS - LAMPADE VOTIVE;31/08/2023;4434;0;320;1;Spese correnti;3;Acquisto di beni e servizi;2;Acquisto di servizi;5;Utenze e canoni;4;Energia elettrica;04/09/2023
2892;1;9999999;14.444,80;14.444,80;CRISTOFORETTI SERVIZI ENERGIA S.P.A.;ZCA3B73D95;SALDO Fatt.n. 0023004095  del 31/07/2023 INSTALLAZIONE E NOLEGGIO GRUPPO TERMICO PER IMPIANTO CLIMATIZZAZIONE SEDE MUNICIPALE 2023;31/08/2023;536;0;565;1;Spese correnti;3;Acquisto di beni e servizi;2;Acquisto di servizi;7;Utilizzo di beni di terzi;8;Noleggi di impianti e macchinari;04/09/2023
2893;1;9999999;732;732;BIT4ID;Z2C3C03760;SALDO Fatt.n. 23001103  del 04/08/2023 KIT FIRMA DIGITALE CNS CON KEY4 LEG;31/08/2023;748;0;618;1;Spese correnti;3;Acquisto di beni e servizi;2;Acquisto di servizi;19;Servizi informatici e di telecomunicazioni;7;Servizi di gestione documentale;04/09/2023
2894;1;9999999;11.046,49;11.046,49;TREVISAN FEDERICO;9124726A18;SALDO Fatt.n. 4/B00  del 07/08/2023 LAVORI DI SFALCIO ERBA BANCHINE STRADALI ANNO 2023  - TERZO INTERVENTO;31/08/2023;2549;0;335;1;Spese correnti;3;Acquisto di beni e servizi;2;Acquisto di servizi;99;Altri servizi;9;Acquisto di sevizi per verde e arredo urbano;04/09/2023
2895;1;9999999;1.600,00;1.600,00;QUADIENT ITALY SRL;ZEB3965868;III TRANCHE 2023 FONDO SPESE PER UTILIZZO MACCHINA AFFRANCATRICE IN USO ALLUFFICIO PROTOCOLLO;31/08/2023;145;0;41;1;Spese correnti;3;Acquisto di beni e servizi;2;Acquisto di servizi;16;Servizi amministrativi;999;Altre spese per servizi amministrativi;04/09/2023
2896;1;9999999;90,57;90,57;MCTC MINISTERO INFRASTRUTTURE TRASPORTI; ;LIQUIDAZIONE I E II TRIMESTRE 2023 MCTC;31/08/2023;1134;0;36;1;Spese correnti;3;Acquisto di beni e servizi;2;Acquisto di servizi;5;Utenze e canoni;3;Accesso a banche dati e a pubblicazioni on line;04/09/2023
2897;1;9999999;2.000,00;2.000,00;AREA LS SPEEDLINE; ;EROGAZIONE CONTRIBUTO PER IL SOSTEGNO NELL ATTIVITA POSTA INESSERE PER LA VENDITA DELLA SOCIETA E PER IL MANTENIMENTO DEI POSTI DI LAVORO -;01/09/2023;59;0;667;1;Spese correnti;4;Trasferimenti correnti;4;Trasferimenti correnti a Istituzioni Sociali Private;1;Trasferimenti correnti a Istituzioni Sociali Private;1;Trasferimenti correnti a Istituzioni Sociali Private;05/09/2023
2898;1;9999999;150;150;OMESSO NOMINATIVO NEL RISPETTO DELLA NORMATIVA SULLA PROTEZIONE DATI PERSONALI; ;SETTEMBRE 2023 AFFIDO FAMILIARE;01/09/2023;3757;50;619;1;Spese correnti;4;Trasferimenti correnti;2;Trasferimenti correnti a Famiglie;2;Interventi assistenziali;999;Altri assegni e sussidi assistenziali;05/09/2023
2899;1;9999999;3.549,80;3.549,80;COOP.SOCIALE LIBERTA' ONLUS;Z673AAF407;SALDO Fatt.n. 717  del 31/07/2023 SERVIZIO DI PULIZIA E SANIFICAZIONE UFFICI COMUNALI LUGLIO 2023;01/09/2023;142;0;384;1;Spese correnti;3;Acquisto di beni e servizi;2;Acquisto di servizi;13;Servizi ausiliari per il funzionamento dell'ente;2;Servizi di pulizia e lavanderia;05/09/2023
2900;1;9999999;752,5;1.624,60;ABACO S.P.A.;766214493F;SALDO Fatt.n. 2023120004341  del 09/08/2023 AGGIO SU RISCOSSIONI ESPOSIZIONI PUBBLICITARIE CUP RENDICONTO DELLA GESTIONE DAL 01/07/2023 A 31/07/2023 cig 766214493F;01/09/2023;332;0;1228;1;Spese correnti;3;Acquisto di beni e servizi;2;Acquisto di servizi;3;Aggi di riscossione;999;Altri aggi di riscossione n.a.c.;05/09/2023
2900;2;9999999;872,1;1.624,60;ABACO S.P.A.;766214493F;SALDO Fatt.n. 2023120004342  del 09/08/2023 AGGIO SU RISCOSSIONI OCCUPAZIONE SUOLO PUBBLICO CUP RENDICONTO DELLA GESTIONE DAL 01/07/2023 A 31/07/2023 CIG 766214493F;01/09/2023;332;0;1228;1;Spese correnti;3;Acquisto di beni e servizi;2;Acquisto di servizi;3;Aggi di riscossione;999;Altri aggi di riscossione n.a.c.;05/09/2023
2902;1;9999999;1.100,04;1.100,04;ARTEA  SNC DI LION & SALVIATO;90182921FD;SALDO Fatt.n. 20-2023/PA  del 10/08/2023 OPERAZIONI EFFETTUATE NEI CIMITERI DEL COMUNE DI SANTA MARIA DI SALA NEL MESE DI LUGLIO 2023;01/09/2023;4438;0;1152;1;Spese correnti;3;Acquisto di beni e servizi;2;Acquisto di servizi;9;Manutenzione ordinaria e riparazioni;8;Manutenzione ordinaria e riparazioni di beni immobili;05/09/2023
2905;1;9999999;134,4;1.232,38;TIM SPA - TELECOM ITALIA SPA;ZE027DF92B;SALDO Fatt.n. 4220423800049704  del 10/08/2023 PERIODO 5 GIU-LUG 2023 - CONNETTIVITA E BACKUP SEDE MUNICIPALE;05/09/2023;134;0;179;1;Spese correnti;3;Acquisto di beni e servizi;2;Acquisto di servizi;5;Utenze e canoni;999;Utenze e canoni per altri servizi n.a.c.;11/09/2023
2905;2;9999999;1.097,98;1.232,38;TIM SPA - TELECOM ITALIA SPA;ZE027DF92B;SALDO Fatt.n. 4220423800050029  del 10/08/2023 PERIODO 5 GIU-LUG 2023 - CONNETTIVITA FIBRE GBE;05/09/2023;134;0;179;1;Spese correnti;3;Acquisto di beni e servizi;2;Acquisto di servizi;5;Utenze e canoni;999;Utenze e canoni per altri servizi n.a.c.;11/09/2023
2906;1;9999999;73,2;1.229,35;TIM SPA - TELECOM ITALIA SPA;Z502F0ADA2;SALDO Fatt.n. 8E00693765  del 10/08/2023 PERIODO 5 GIU-LUG 2023 - FAX SEDE MUNICIPALE;05/09/2023;134;0;944;1;Spese correnti;3;Acquisto di beni e servizi;2;Acquisto di servizi;5;Utenze e canoni;1;Telefonia fissa;11/09/2023
2906;2;9999999;73,2;1.229,35;TIM SPA - TELECOM ITALIA SPA;Z502F0ADA2;SALDO Fatt.n. 8E00694240  del 10/08/2023 PERIODO 5 GIU-LUG 2023 - FAX BIBLIOTECA COMUNALE;05/09/2023;134;0;944;1;Spese correnti;3;Acquisto di beni e servizi;2;Acquisto di servizi;5;Utenze e canoni;1;Telefonia fissa;11/09/2023
